Organisation Name,Organisation Code,Unique Ref No,Effective Date,Directorate  where expenditure incurred,Supplier Name,Payment Date,Net Amount,Procurement Classification (Higher Level),Purpose of Spend,Procurement Classification (Lower Level),Capital/Revenue
Walsall Council,http://opendatacommunities.org/id/metropolitan-district-council/walsall,WC106-01,31/07/2019,Childrens,11KBW,24/07/2019,340.00,73014-LEGAL FEES-PRIV CONTRACTOR FEES,GENERAL MANAGEMENT SUPPORT (INC LEGAL),Third Party Payments,Revenue
Walsall Council,http://opendatacommunities.org/id/metropolitan-district-council/walsall,WC106-02,01/08/2019,Childrens,247 CARS (WILLENHALL) LIMITED,24/07/2019,349.40,52000-WITH DRIVER-HIRE OF VEHICLES,FOSTERING SUPPORT TEAM,Transport,Revenue
Walsall Council,http://opendatacommunities.org/id/metropolitan-district-council/walsall,WC106-03,02/08/2019,Childrens,247 CARS (WILLENHALL) LIMITED,10/07/2019,421.50,52000-WITH DRIVER-HIRE OF VEHICLES,SAFEGUARDING & FAMILY SUPPORT,Transport,Revenue
Walsall Council,http://opendatacommunities.org/id/metropolitan-district-council/walsall,WC106-04,03/08/2019,Childrens,247 CARS (WILLENHALL) LIMITED,25/07/2019,"6,647.00",52000-WITH DRIVER-HIRE OF VEHICLES,HOME TO SCHOOL TRANSPORT,Transport,Revenue
Walsall Council,http://opendatacommunities.org/id/metropolitan-district-council/walsall,WC106-05,04/08/2019,Resources and Transformation,2BM LIMITED,01/07/2019,"2,400.00",63800-COMPUTER EQUIPMENT AND SUPPLIES,DATA CENTRES,Supplies & Services,Revenue
Walsall Council,http://opendatacommunities.org/id/metropolitan-district-council/walsall,WC106-06,05/08/2019,Resources and Transformation,2HILLS CONSULTANCY,01/07/2019,"2,511.50",63102-CONSULTANTS FEES - CORPORATE,COMMUNITY SAFETY 2012/2013,Supplies & Services,Revenue
Walsall Council,http://opendatacommunities.org/id/metropolitan-district-council/walsall,WC106-07,06/08/2019,Childrens,39 ESSEX STREET LLP PFA,15/07/2019,500.00,63116-EXTERNAL BARRISTERS-SERVICES-FEES,GENERAL MANAGEMENT SUPPORT (INC LEGAL),Supplies & Services,Revenue
Walsall Council,http://opendatacommunities.org/id/metropolitan-district-council/walsall,WC106-08,07/08/2019,Childrens,402K CONSULTANCY LTD,01/07/2019,490.24,63102-CONSULTANTS FEES - CORPORATE,SAFEGUARDING BOARD,Supplies & Services,Revenue
Walsall Council,http://opendatacommunities.org/id/metropolitan-district-council/walsall,WC106-09,08/08/2019,Adult Social Care,5 CARE SERVICES LTD,22/07/2019,317.87,73507-DOMICILIARY CARE,SOCIAL SUPPORT,Third Party Payments,Revenue
Walsall Council,http://opendatacommunities.org/id/metropolitan-district-council/walsall,WC106-10,09/08/2019,Adult Social Care,5 CARE SERVICES LTD,22/07/2019,319.06,73507-DOMICILIARY CARE,PHYSICAL SUPPORT,Third Party Payments,Revenue
Walsall Council,http://opendatacommunities.org/id/metropolitan-district-council/walsall,WC106-11,10/08/2019,Adult Social Care,5 CARE SERVICES LTD,22/07/2019,319.06,73507-DOMICILIARY CARE,SOCIAL SUPPORT,Third Party Payments,Revenue
Walsall Council,http://opendatacommunities.org/id/metropolitan-district-council/walsall,WC106-12,11/08/2019,Adult Social Care,5 CARE SERVICES LTD,22/07/2019,325.04,73507-DOMICILIARY CARE,MENTAL HEALTH SUPPORT,Third Party Payments,Revenue
Walsall Council,http://opendatacommunities.org/id/metropolitan-district-council/walsall,WC106-13,12/08/2019,Adult Social Care,5 CARE SERVICES LTD,22/07/2019,334.55,73507-DOMICILIARY CARE,PHYSICAL SUPPORT,Third Party Payments,Revenue
Walsall Council,http://opendatacommunities.org/id/metropolitan-district-council/walsall,WC106-14,13/08/2019,Adult Social Care,5 CARE SERVICES LTD,22/07/2019,334.60,73507-DOMICILIARY CARE,PHYSICAL SUPPORT,Third Party Payments,Revenue
Walsall Council,http://opendatacommunities.org/id/metropolitan-district-council/walsall,WC106-15,14/08/2019,Adult Social Care,5 CARE SERVICES LTD,22/07/2019,358.26,73507-DOMICILIARY CARE,PHYSICAL SUPPORT,Third Party Payments,Revenue
Walsall Council,http://opendatacommunities.org/id/metropolitan-district-council/walsall,WC106-16,15/08/2019,Adult Social Care,5 CARE SERVICES LTD,22/07/2019,366.85,73507-DOMICILIARY CARE,SENSORY SUPPORT,Third Party Payments,Revenue
Walsall Council,http://opendatacommunities.org/id/metropolitan-district-council/walsall,WC106-17,16/08/2019,Adult Social Care,5 CARE SERVICES LTD,22/07/2019,369.27,73507-DOMICILIARY CARE,PHYSICAL SUPPORT,Third Party Payments,Revenue
Walsall Council,http://opendatacommunities.org/id/metropolitan-district-council/walsall,WC106-18,17/08/2019,Adult Social Care,5 CARE SERVICES LTD,22/07/2019,388.37,73507-DOMICILIARY CARE,PHYSICAL SUPPORT,Third Party Payments,Revenue
Walsall Council,http://opendatacommunities.org/id/metropolitan-district-council/walsall,WC106-19,18/08/2019,Adult Social Care,5 CARE SERVICES LTD,22/07/2019,389.45,73507-DOMICILIARY CARE,SENSORY SUPPORT,Third Party Payments,Revenue
Walsall Council,http://opendatacommunities.org/id/metropolitan-district-council/walsall,WC106-20,19/08/2019,Adult Social Care,5 CARE SERVICES LTD,22/07/2019,389.57,73507-DOMICILIARY CARE,PHYSICAL SUPPORT,Third Party Payments,Revenue
Walsall Council,http://opendatacommunities.org/id/metropolitan-district-council/walsall,WC106-21,20/08/2019,Adult Social Care,5 CARE SERVICES LTD,22/07/2019,397.93,73507-DOMICILIARY CARE,PHYSICAL SUPPORT,Third Party Payments,Revenue
Walsall Council,http://opendatacommunities.org/id/metropolitan-district-council/walsall,WC106-22,21/08/2019,Adult Social Care,5 CARE SERVICES LTD,22/07/2019,402.71,73507-DOMICILIARY CARE,PHYSICAL SUPPORT,Third Party Payments,Revenue
Walsall Council,http://opendatacommunities.org/id/metropolitan-district-council/walsall,WC106-23,22/08/2019,Adult Social Care,5 CARE SERVICES LTD,22/07/2019,460.07,73507-DOMICILIARY CARE,PHYSICAL SUPPORT,Third Party Payments,Revenue
Walsall Council,http://opendatacommunities.org/id/metropolitan-district-council/walsall,WC106-24,23/08/2019,Adult Social Care,5 CARE SERVICES LTD,22/07/2019,461.20,73507-DOMICILIARY CARE,PHYSICAL SUPPORT,Third Party Payments,Revenue
Walsall Council,http://opendatacommunities.org/id/metropolitan-district-council/walsall,WC106-25,24/08/2019,Adult Social Care,5 CARE SERVICES LTD,22/07/2019,464.88,73507-DOMICILIARY CARE,PHYSICAL SUPPORT,Third Party Payments,Revenue
Walsall Council,http://opendatacommunities.org/id/metropolitan-district-council/walsall,WC106-26,25/08/2019,Adult Social Care,5 CARE SERVICES LTD,22/07/2019,467.25,73507-DOMICILIARY CARE,PHYSICAL SUPPORT,Third Party Payments,Revenue
Walsall Council,http://opendatacommunities.org/id/metropolitan-district-council/walsall,WC106-27,26/08/2019,Adult Social Care,5 CARE SERVICES LTD,22/07/2019,473.22,73507-DOMICILIARY CARE,SENSORY SUPPORT,Third Party Payments,Revenue
Walsall Council,http://opendatacommunities.org/id/metropolitan-district-council/walsall,WC106-28,27/08/2019,Adult Social Care,5 CARE SERVICES LTD,22/07/2019,476.79,73507-DOMICILIARY CARE,PHYSICAL SUPPORT,Third Party Payments,Revenue
Walsall Council,http://opendatacommunities.org/id/metropolitan-district-council/walsall,WC106-29,28/08/2019,Adult Social Care,5 CARE SERVICES LTD,22/07/2019,479.24,73507-DOMICILIARY CARE,PHYSICAL SUPPORT,Third Party Payments,Revenue
Walsall Council,http://opendatacommunities.org/id/metropolitan-district-council/walsall,WC106-30,29/08/2019,Adult Social Care,5 CARE SERVICES LTD,22/07/2019,494.69,73507-DOMICILIARY CARE,PHYSICAL SUPPORT,Third Party Payments,Revenue
Walsall Council,http://opendatacommunities.org/id/metropolitan-district-council/walsall,WC106-31,30/08/2019,Adult Social Care,5 CARE SERVICES LTD,22/07/2019,499.51,73507-DOMICILIARY CARE,PHYSICAL SUPPORT,Third Party Payments,Revenue
Walsall Council,http://opendatacommunities.org/id/metropolitan-district-council/walsall,WC106-32,31/08/2019,Adult Social Care,5 CARE SERVICES LTD,22/07/2019,501.76,73507-DOMICILIARY CARE,PHYSICAL SUPPORT,Third Party Payments,Revenue
Walsall Council,http://opendatacommunities.org/id/metropolitan-district-council/walsall,WC106-33,01/09/2019,Adult Social Care,5 CARE SERVICES LTD,22/07/2019,529.38,73507-DOMICILIARY CARE,PHYSICAL SUPPORT,Third Party Payments,Revenue
Walsall Council,http://opendatacommunities.org/id/metropolitan-district-council/walsall,WC106-34,02/09/2019,Adult Social Care,5 CARE SERVICES LTD,22/07/2019,547.31,73507-DOMICILIARY CARE,PHYSICAL SUPPORT,Third Party Payments,Revenue
Walsall Council,http://opendatacommunities.org/id/metropolitan-district-council/walsall,WC106-35,03/09/2019,Adult Social Care,5 CARE SERVICES LTD,22/07/2019,599.87,73507-DOMICILIARY CARE,PHYSICAL SUPPORT,Third Party Payments,Revenue
Walsall Council,http://opendatacommunities.org/id/metropolitan-district-council/walsall,WC106-36,04/09/2019,Adult Social Care,5 CARE SERVICES LTD,22/07/2019,602.28,73507-DOMICILIARY CARE,PHYSICAL SUPPORT,Third Party Payments,Revenue
Walsall Council,http://opendatacommunities.org/id/metropolitan-district-council/walsall,WC106-37,05/09/2019,Adult Social Care,5 CARE SERVICES LTD,22/07/2019,627.22,73507-DOMICILIARY CARE,LEARNING DISABILITY SUPPORT,Third Party Payments,Revenue
Walsall Council,http://opendatacommunities.org/id/metropolitan-district-council/walsall,WC106-38,06/09/2019,Adult Social Care,5 CARE SERVICES LTD,22/07/2019,633.34,73507-DOMICILIARY CARE,PHYSICAL SUPPORT,Third Party Payments,Revenue
Walsall Council,http://opendatacommunities.org/id/metropolitan-district-council/walsall,WC106-39,07/09/2019,Adult Social Care,5 CARE SERVICES LTD,22/07/2019,646.56,73507-DOMICILIARY CARE,PHYSICAL SUPPORT,Third Party Payments,Revenue
Walsall Council,http://opendatacommunities.org/id/metropolitan-district-council/walsall,WC106-40,08/09/2019,Adult Social Care,5 CARE SERVICES LTD,22/07/2019,666.62,73507-DOMICILIARY CARE,PHYSICAL SUPPORT,Third Party Payments,Revenue
Walsall Council,http://opendatacommunities.org/id/metropolitan-district-council/walsall,WC106-41,09/09/2019,Adult Social Care,5 CARE SERVICES LTD,29/07/2019,695.41,73025-PROFESSIONAL SERVICES-PRIV CONTRACTOR & OTHER AGENCIES,INTERMEDIATE CARE SERVICE,Third Party Payments,Revenue
Walsall Council,http://opendatacommunities.org/id/metropolitan-district-council/walsall,WC106-42,10/09/2019,Adult Social Care,5 CARE SERVICES LTD,22/07/2019,773.15,73507-DOMICILIARY CARE,PHYSICAL SUPPORT,Third Party Payments,Revenue
Walsall Council,http://opendatacommunities.org/id/metropolitan-district-council/walsall,WC106-43,11/09/2019,Adult Social Care,5 CARE SERVICES LTD,22/07/2019,786.31,73507-DOMICILIARY CARE,PHYSICAL SUPPORT,Third Party Payments,Revenue
Walsall Council,http://opendatacommunities.org/id/metropolitan-district-council/walsall,WC106-44,12/09/2019,Adult Social Care,5 CARE SERVICES LTD,22/07/2019,825.47,73507-DOMICILIARY CARE,PHYSICAL SUPPORT,Third Party Payments,Revenue
Walsall Council,http://opendatacommunities.org/id/metropolitan-district-council/walsall,WC106-45,13/09/2019,Adult Social Care,5 CARE SERVICES LTD,22/07/2019,876.94,73507-DOMICILIARY CARE,PHYSICAL SUPPORT,Third Party Payments,Revenue
Walsall Council,http://opendatacommunities.org/id/metropolitan-district-council/walsall,WC106-46,14/09/2019,Adult Social Care,5 CARE SERVICES LTD,22/07/2019,892.53,73507-DOMICILIARY CARE,PHYSICAL SUPPORT,Third Party Payments,Revenue
Walsall Council,http://opendatacommunities.org/id/metropolitan-district-council/walsall,WC106-47,15/09/2019,Adult Social Care,5 CARE SERVICES LTD,22/07/2019,898.18,73507-DOMICILIARY CARE,LEARNING DISABILITY SUPPORT,Third Party Payments,Revenue
Walsall Council,http://opendatacommunities.org/id/metropolitan-district-council/walsall,WC106-48,16/09/2019,Adult Social Care,5 CARE SERVICES LTD,22/07/2019,898.49,73507-DOMICILIARY CARE,PHYSICAL SUPPORT,Third Party Payments,Revenue
Walsall Council,http://opendatacommunities.org/id/metropolitan-district-council/walsall,WC106-49,17/09/2019,Adult Social Care,5 CARE SERVICES LTD,22/07/2019,908.05,73507-DOMICILIARY CARE,PHYSICAL SUPPORT,Third Party Payments,Revenue
Walsall Council,http://opendatacommunities.org/id/metropolitan-district-council/walsall,WC106-50,18/09/2019,Adult Social Care,5 CARE SERVICES LTD,22/07/2019,997.57,73507-DOMICILIARY CARE,PHYSICAL SUPPORT,Third Party Payments,Revenue
Walsall Council,http://opendatacommunities.org/id/metropolitan-district-council/walsall,WC106-51,19/09/2019,Adult Social Care,5 CARE SERVICES LTD,22/07/2019,"1,185.44",73507-DOMICILIARY CARE,PHYSICAL SUPPORT,Third Party Payments,Revenue
Walsall Council,http://opendatacommunities.org/id/metropolitan-district-council/walsall,WC106-52,20/09/2019,Adult Social Care,5 CARE SERVICES LTD,22/07/2019,"1,271.21",73507-DOMICILIARY CARE,PHYSICAL SUPPORT,Third Party Payments,Revenue
Walsall Council,http://opendatacommunities.org/id/metropolitan-district-council/walsall,WC106-53,21/09/2019,Adult Social Care,5 CARE SERVICES LTD,22/07/2019,"1,375.68",73507-DOMICILIARY CARE,PHYSICAL SUPPORT,Third Party Payments,Revenue
Walsall Council,http://opendatacommunities.org/id/metropolitan-district-council/walsall,WC106-54,22/09/2019,Adult Social Care,5 CARE SERVICES LTD,22/07/2019,"1,392.96",73507-DOMICILIARY CARE,PHYSICAL SUPPORT,Third Party Payments,Revenue
Walsall Council,http://opendatacommunities.org/id/metropolitan-district-council/walsall,WC106-55,23/09/2019,Adult Social Care,5 CARE SERVICES LTD,22/07/2019,"1,514.06",73507-DOMICILIARY CARE,PHYSICAL SUPPORT,Third Party Payments,Revenue
Walsall Council,http://opendatacommunities.org/id/metropolitan-district-council/walsall,WC106-56,24/09/2019,Adult Social Care,5 CARE SERVICES LTD,22/07/2019,"1,606.08",73507-DOMICILIARY CARE,PHYSICAL SUPPORT,Third Party Payments,Revenue
Walsall Council,http://opendatacommunities.org/id/metropolitan-district-council/walsall,WC106-57,25/09/2019,Adult Social Care,5 CARE SERVICES LTD,22/07/2019,"1,624.94",73507-DOMICILIARY CARE,PHYSICAL SUPPORT,Third Party Payments,Revenue
Walsall Council,http://opendatacommunities.org/id/metropolitan-district-council/walsall,WC106-58,26/09/2019,Adult Social Care,5 CARE SERVICES LTD,22/07/2019,"1,734.86",73507-DOMICILIARY CARE,PHYSICAL SUPPORT,Third Party Payments,Revenue
Walsall Council,http://opendatacommunities.org/id/metropolitan-district-council/walsall,WC106-59,27/09/2019,Adult Social Care,5 CARE SERVICES LTD,22/07/2019,"1,885.16",73507-DOMICILIARY CARE,PHYSICAL SUPPORT,Third Party Payments,Revenue
Walsall Council,http://opendatacommunities.org/id/metropolitan-district-council/walsall,WC106-60,28/09/2019,Adult Social Care,5 CARE SERVICES LTD,22/07/2019,"1,974.94",73507-DOMICILIARY CARE,PHYSICAL SUPPORT,Third Party Payments,Revenue
Walsall Council,http://opendatacommunities.org/id/metropolitan-district-council/walsall,WC106-61,29/09/2019,Adult Social Care,A & A SERVICES WEST MIDLANDS,24/07/2019,310.00,60006-NEW-FURNITURE & EQUIPMENT,MENTAL HEALTH TEAM,Supplies & Services,Revenue
Walsall Council,http://opendatacommunities.org/id/metropolitan-district-council/walsall,WC106-62,30/09/2019,Adult Social Care,A & A SERVICES WEST MIDLANDS,17/07/2019,650.00,73025-PROFESSIONAL SERVICES-PRIV CONTRACTOR & OTHER AGENCIES,INTERMEDIATE CARE SERVICE,Third Party Payments,Revenue
Walsall Council,http://opendatacommunities.org/id/metropolitan-district-council/walsall,WC106-63,01/10/2019,Adult Social Care,A & A SERVICES WEST MIDLANDS,03/07/2019,"1,300.00",73025-PROFESSIONAL SERVICES-PRIV CONTRACTOR & OTHER AGENCIES,INTERMEDIATE CARE SERVICE,Third Party Payments,Revenue
Walsall Council,http://opendatacommunities.org/id/metropolitan-district-council/walsall,WC106-64,02/10/2019,Economy & Environment,A ASHTON,03/07/2019,300.00,60500-GENERAL MATERIALS,INFRASTRUCTURE MAINTENANCE,Supplies & Services,Revenue
Walsall Council,http://opendatacommunities.org/id/metropolitan-district-council/walsall,WC106-65,03/10/2019,Resources and Transformation,A D T FIRE AND SECURITY PLC,29/07/2019,232.00,73002-SECURITY-PRIV CONTRACTOR FEES,CENTRALISED MAINTENANCE,Third Party Payments,Revenue
Walsall Council,http://opendatacommunities.org/id/metropolitan-district-council/walsall,WC106-66,04/10/2019,Economy & Environment,A F BLAKEMORE & SON LTD,10/07/2019,277.43,61018-DRINKS-PROVISIONS,OAK PARK,Supplies & Services,Revenue
Walsall Council,http://opendatacommunities.org/id/metropolitan-district-council/walsall,WC106-67,05/10/2019,Economy & Environment,A F BLAKEMORE & SON LTD,22/07/2019,310.09,61018-DRINKS-PROVISIONS,OAK PARK,Supplies & Services,Revenue
Walsall Council,http://opendatacommunities.org/id/metropolitan-district-council/walsall,WC106-68,06/10/2019,Economy & Environment,A F BLAKEMORE & SON LTD,01/07/2019,317.19,61002-DRY FOODS-PROVISIONS,WALSALL GALA CENTRE,Supplies & Services,Revenue
Walsall Council,http://opendatacommunities.org/id/metropolitan-district-council/walsall,WC106-69,07/10/2019,Economy & Environment,A F BLAKEMORE & SON LTD,01/07/2019,354.32,61008-CONFECTIONERY/SNACKS-PROVISIONS,DARLASTON LEISURE CENTRE,Supplies & Services,Revenue
Walsall Council,http://opendatacommunities.org/id/metropolitan-district-council/walsall,WC106-70,08/10/2019,Economy & Environment,A F BLAKEMORE & SON LTD,01/07/2019,372.01,61018-DRINKS-PROVISIONS,OAK PARK,Supplies & Services,Revenue
Walsall Council,http://opendatacommunities.org/id/metropolitan-district-council/walsall,WC106-71,09/10/2019,Economy & Environment,A F BLAKEMORE & SON LTD,29/07/2019,392.19,61018-DRINKS-PROVISIONS,OAK PARK,Supplies & Services,Revenue
Walsall Council,http://opendatacommunities.org/id/metropolitan-district-council/walsall,WC106-72,10/10/2019,Economy & Environment,A F BLAKEMORE & SON LTD,09/07/2019,409.32,61018-DRINKS-PROVISIONS,OAK PARK,Supplies & Services,Revenue
Walsall Council,http://opendatacommunities.org/id/metropolitan-district-council/walsall,WC106-73,11/10/2019,Adult Social Care,A F BLAKEMORE & SON LTD,10/07/2019,481.32,61016-FOOD AND BEVERAGES-PROVISIONS,GOSCOTE,Supplies & Services,Revenue
Walsall Council,http://opendatacommunities.org/id/metropolitan-district-council/walsall,WC106-74,12/10/2019,Adult Social Care,A F BLAKEMORE & SON LTD,29/07/2019,594.04,61016-FOOD AND BEVERAGES-PROVISIONS,GOSCOTE,Supplies & Services,Revenue
Walsall Council,http://opendatacommunities.org/id/metropolitan-district-council/walsall,WC106-75,13/10/2019,Economy & Environment,A F BLAKEMORE & SON LTD,18/07/2019,596.23,61008-CONFECTIONERY/SNACKS-PROVISIONS,OAK PARK,Supplies & Services,Revenue
Walsall Council,http://opendatacommunities.org/id/metropolitan-district-council/walsall,WC106-76,14/10/2019,Adult Social Care,A F BLAKEMORE & SON LTD,01/07/2019,624.36,61016-FOOD AND BEVERAGES-PROVISIONS,GOSCOTE,Supplies & Services,Revenue
Walsall Council,http://opendatacommunities.org/id/metropolitan-district-council/walsall,WC106-77,15/10/2019,Economy & Environment,A F BLAKEMORE & SON LTD,29/07/2019,"1,190.95",61008-CONFECTIONERY/SNACKS-PROVISIONS,BLOXWICH LEISURE CENTRE,Supplies & Services,Revenue
Walsall Council,http://opendatacommunities.org/id/metropolitan-district-council/walsall,WC106-78,16/10/2019,Childrens,REDACTED,08/07/2019,712.12,73506-DIRECT PAYMENT,FAMILY SUPPORT - DIRECT PAYMENTS,Third Party Payments,Revenue
Walsall Council,http://opendatacommunities.org/id/metropolitan-district-council/walsall,WC106-79,17/10/2019,Childrens,REDACTED,30/07/2019,712.12,73506-DIRECT PAYMENT,FAMILY SUPPORT - DIRECT PAYMENTS,Third Party Payments,Revenue
Walsall Council,http://opendatacommunities.org/id/metropolitan-district-council/walsall,WC106-80,18/10/2019,Adult Social Care,ABBEY COURT NURSING & RESIDEN,22/07/2019,"1,814.96",73500-RESIDENTIAL,PHYSICAL SUPPORT,Third Party Payments,Revenue
Walsall Council,http://opendatacommunities.org/id/metropolitan-district-council/walsall,WC106-81,19/10/2019,Adult Social Care,ABBEY COURT NURSING & RESIDEN,22/07/2019,"1,972.24",73501-RESIDENTIAL EMI,PHYSICAL SUPPORT,Third Party Payments,Revenue
Walsall Council,http://opendatacommunities.org/id/metropolitan-district-council/walsall,WC106-82,20/10/2019,Adult Social Care,ABBEY COURT NURSING & RESIDEN,22/07/2019,"1,972.24",73501-RESIDENTIAL EMI,SUPPORT WITH MEMORY & COGNITION,Third Party Payments,Revenue
Walsall Council,http://opendatacommunities.org/id/metropolitan-district-council/walsall,WC106-83,21/10/2019,Adult Social Care,ABBEY COURT NURSING & RESIDEN,22/07/2019,"1,972.24",73501-RESIDENTIAL EMI,PHYSICAL SUPPORT,Third Party Payments,Revenue
Walsall Council,http://opendatacommunities.org/id/metropolitan-district-council/walsall,WC106-84,22/10/2019,Adult Social Care,ABBEY COURT NURSING & RESIDEN,22/07/2019,"2,358.08",73503-NURSING EMI,MENTAL HEALTH SUPPORT,Third Party Payments,Revenue
Walsall Council,http://opendatacommunities.org/id/metropolitan-district-council/walsall,WC106-85,23/10/2019,Adult Social Care,ABBEY COURT NURSING & RESIDEN,22/07/2019,"2,383.72",73502-NURSING,SUPPORT WITH MEMORY & COGNITION,Third Party Payments,Revenue
Walsall Council,http://opendatacommunities.org/id/metropolitan-district-council/walsall,WC106-86,24/10/2019,Economy & Environment,ABBEY ENGLAND LIMITED,09/07/2019,344.35,60500-GENERAL MATERIALS,LEATHER MUSEUM,Supplies & Services,Revenue
Walsall Council,http://opendatacommunities.org/id/metropolitan-district-council/walsall,WC106-87,25/10/2019,Adult Social Care,ABBEY HEALTHCARE HOMES LTD,22/07/2019,"-7,525.38",73502-NURSING,PHYSICAL SUPPORT,Third Party Payments,Revenue
Walsall Council,http://opendatacommunities.org/id/metropolitan-district-council/walsall,WC106-88,26/10/2019,Adult Social Care,ABBEY HEALTHCARE HOMES LTD,22/07/2019,"-3,003.49",73500-RESIDENTIAL,PHYSICAL SUPPORT,Third Party Payments,Revenue
Walsall Council,http://opendatacommunities.org/id/metropolitan-district-council/walsall,WC106-89,27/10/2019,Adult Social Care,ABBEY HEALTHCARE HOMES LTD,22/07/2019,"2,106.32",73502-NURSING,PHYSICAL SUPPORT,Third Party Payments,Revenue
Walsall Council,http://opendatacommunities.org/id/metropolitan-district-council/walsall,WC106-90,28/10/2019,Adult Social Care,ABBEY HEALTHCARE HOMES LTD,22/07/2019,"2,317.04",73500-RESIDENTIAL,PHYSICAL SUPPORT,Third Party Payments,Revenue
Walsall Council,http://opendatacommunities.org/id/metropolitan-district-council/walsall,WC106-91,29/10/2019,Adult Social Care,ABBEY HEALTHCARE HOMES LTD,22/07/2019,"3,030.00",73500-RESIDENTIAL,LEARNING DISABILITY SUPPORT,Third Party Payments,Revenue
Walsall Council,http://opendatacommunities.org/id/metropolitan-district-council/walsall,WC106-92,30/10/2019,Adult Social Care,ABBEY HEALTHCARE HOMES LTD,22/07/2019,"3,030.00",73500-RESIDENTIAL,LEARNING DISABILITY SUPPORT,Third Party Payments,Revenue
Walsall Council,http://opendatacommunities.org/id/metropolitan-district-council/walsall,WC106-93,31/10/2019,Adult Social Care,ABBEY HEALTHCARE HOMES LTD,22/07/2019,"3,030.00",73500-RESIDENTIAL,PHYSICAL SUPPORT,Third Party Payments,Revenue
Walsall Council,http://opendatacommunities.org/id/metropolitan-district-council/walsall,WC106-94,01/11/2019,Adult Social Care,ABBEY HEALTHCARE HOMES LTD,22/07/2019,"3,030.00",73500-RESIDENTIAL,LEARNING DISABILITY SUPPORT,Third Party Payments,Revenue
Walsall Council,http://opendatacommunities.org/id/metropolitan-district-council/walsall,WC106-95,02/11/2019,Adult Social Care,ABBEY HEALTHCARE HOMES LTD,22/07/2019,"3,434.00",73500-RESIDENTIAL,LEARNING DISABILITY SUPPORT,Third Party Payments,Revenue
Walsall Council,http://opendatacommunities.org/id/metropolitan-district-council/walsall,WC106-96,03/11/2019,Adult Social Care,ABBEY HEALTHCARE HOMES LTD,22/07/2019,"3,514.44",73503-NURSING EMI,PHYSICAL SUPPORT,Third Party Payments,Revenue
Walsall Council,http://opendatacommunities.org/id/metropolitan-district-council/walsall,WC106-97,04/11/2019,Childrens,ABC TEACHERS LIMITED,22/07/2019,"1,305.45",63000-PROFESSIONAL FEES AND SERVICES,SCHOOL IMPROVEMENT-VIRTUAL SCHOOL,Supplies & Services,Revenue
Walsall Council,http://opendatacommunities.org/id/metropolitan-district-council/walsall,WC106-98,05/11/2019,Childrens,ABC TEACHERS LIMITED,22/07/2019,"1,305.45",63000-PROFESSIONAL FEES AND SERVICES,SCHOOL IMPROVEMENT-VIRTUAL SCHOOL,Supplies & Services,Revenue
Walsall Council,http://opendatacommunities.org/id/metropolitan-district-council/walsall,WC106-99,06/11/2019,Childrens,ABC TEACHERS LIMITED,24/07/2019,"1,305.45",63000-PROFESSIONAL FEES AND SERVICES,SCHOOL IMPROVEMENT-VIRTUAL SCHOOL,Supplies & Services,Revenue
Walsall Council,http://opendatacommunities.org/id/metropolitan-district-council/walsall,WC106-100,07/11/2019,Adult Social Care,REDACTED,10/07/2019,"1,999.20",73506-DIRECT PAYMENT,LEARNING DISABILITY SUPPORT,Third Party Payments,Revenue
Walsall Council,http://opendatacommunities.org/id/metropolitan-district-council/walsall,WC106-101,08/11/2019,Childrens,ABLEWELL CARS,22/07/2019,"4,624.78",52000-WITH DRIVER-HIRE OF VEHICLES,HOME TO SCHOOL TRANSPORT,Transport,Revenue
Walsall Council,http://opendatacommunities.org/id/metropolitan-district-council/walsall,WC106-102,09/11/2019,Childrens,ABS TAXIS (ALDRIDGE),25/07/2019,"1,418.90",52000-WITH DRIVER-HIRE OF VEHICLES,HOME TO SCHOOL TRANSPORT,Transport,Revenue
Walsall Council,http://opendatacommunities.org/id/metropolitan-district-council/walsall,WC106-103,10/11/2019,Resources and Transformation,ACCORD HOUSING ASSOCIATION LTD#135,01/07/2019,"-4,991.54",01045-PRIVATE GRANTS,CFR 1359 DISABLED FACILITIES GRANT,Capital,Capital
Walsall Council,http://opendatacommunities.org/id/metropolitan-district-council/walsall,WC106-104,11/11/2019,Adult Social Care,ACCORD HOUSING ASSOCIATION LTD#135,22/07/2019,334.32,73507-DOMICILIARY CARE,PHYSICAL SUPPORT,Third Party Payments,Revenue
Walsall Council,http://opendatacommunities.org/id/metropolitan-district-council/walsall,WC106-105,12/11/2019,Adult Social Care,ACCORD HOUSING ASSOCIATION LTD#135,22/07/2019,334.32,73507-DOMICILIARY CARE,MENTAL HEALTH SUPPORT,Third Party Payments,Revenue
Walsall Council,http://opendatacommunities.org/id/metropolitan-district-council/walsall,WC106-106,13/11/2019,Adult Social Care,ACCORD HOUSING ASSOCIATION LTD#135,22/07/2019,396.39,73508-COMMUNITY SUPPORTED LIVING/SUPPORTED ACCOMMODATION,LEARNING DISABILITY SUPPORT,Third Party Payments,Revenue
Walsall Council,http://opendatacommunities.org/id/metropolitan-district-council/walsall,WC106-107,14/11/2019,Adult Social Care,ACCORD HOUSING ASSOCIATION LTD#135,22/07/2019,400.68,73507-DOMICILIARY CARE,PHYSICAL SUPPORT,Third Party Payments,Revenue
Walsall Council,http://opendatacommunities.org/id/metropolitan-district-council/walsall,WC106-108,15/11/2019,Adult Social Care,ACCORD HOUSING ASSOCIATION LTD#135,22/07/2019,400.68,73507-DOMICILIARY CARE,MENTAL HEALTH SUPPORT,Third Party Payments,Revenue
Walsall Council,http://opendatacommunities.org/id/metropolitan-district-council/walsall,WC106-109,16/11/2019,Adult Social Care,ACCORD HOUSING ASSOCIATION LTD#135,22/07/2019,400.68,73507-DOMICILIARY CARE,SUPPORT WITH MEMORY & COGNITION,Third Party Payments,Revenue
Walsall Council,http://opendatacommunities.org/id/metropolitan-district-council/walsall,WC106-110,17/11/2019,Adult Social Care,ACCORD HOUSING ASSOCIATION LTD#135,22/07/2019,415.38,73507-DOMICILIARY CARE,PHYSICAL SUPPORT,Third Party Payments,Revenue
Walsall Council,http://opendatacommunities.org/id/metropolitan-district-council/walsall,WC106-111,18/11/2019,Adult Social Care,ACCORD HOUSING ASSOCIATION LTD#135,22/07/2019,451.63,73507-DOMICILIARY CARE,PHYSICAL SUPPORT,Third Party Payments,Revenue
Walsall Council,http://opendatacommunities.org/id/metropolitan-district-council/walsall,WC106-112,19/11/2019,Adult Social Care,ACCORD HOUSING ASSOCIATION LTD#135,22/07/2019,467.88,73507-DOMICILIARY CARE,SOCIAL SUPPORT,Third Party Payments,Revenue
Walsall Council,http://opendatacommunities.org/id/metropolitan-district-council/walsall,WC106-113,20/11/2019,Adult Social Care,ACCORD HOUSING ASSOCIATION LTD#135,22/07/2019,486.66,73507-DOMICILIARY CARE,MENTAL HEALTH SUPPORT,Third Party Payments,Revenue
Walsall Council,http://opendatacommunities.org/id/metropolitan-district-council/walsall,WC106-114,21/11/2019,Adult Social Care,ACCORD HOUSING ASSOCIATION LTD#135,22/07/2019,501.76,73507-DOMICILIARY CARE,MENTAL HEALTH SUPPORT,Third Party Payments,Revenue
Walsall Council,http://opendatacommunities.org/id/metropolitan-district-council/walsall,WC106-115,22/11/2019,Adult Social Care,ACCORD HOUSING ASSOCIATION LTD#135,22/07/2019,534.24,73507-DOMICILIARY CARE,PHYSICAL SUPPORT,Third Party Payments,Revenue
Walsall Council,http://opendatacommunities.org/id/metropolitan-district-council/walsall,WC106-116,23/11/2019,Adult Social Care,ACCORD HOUSING ASSOCIATION LTD#135,22/07/2019,558.67,73507-DOMICILIARY CARE,PHYSICAL SUPPORT,Third Party Payments,Revenue
Walsall Council,http://opendatacommunities.org/id/metropolitan-district-council/walsall,WC106-117,24/11/2019,Adult Social Care,ACCORD HOUSING ASSOCIATION LTD#135,22/07/2019,563.35,73507-DOMICILIARY CARE,PHYSICAL SUPPORT,Third Party Payments,Revenue
Walsall Council,http://opendatacommunities.org/id/metropolitan-district-council/walsall,WC106-118,25/11/2019,Adult Social Care,ACCORD HOUSING ASSOCIATION LTD#135,22/07/2019,642.24,73507-DOMICILIARY CARE,MENTAL HEALTH SUPPORT,Third Party Payments,Revenue
Walsall Council,http://opendatacommunities.org/id/metropolitan-district-council/walsall,WC106-119,26/11/2019,Adult Social Care,ACCORD HOUSING ASSOCIATION LTD#135,22/07/2019,661.47,73507-DOMICILIARY CARE,PHYSICAL SUPPORT,Third Party Payments,Revenue
Walsall Council,http://opendatacommunities.org/id/metropolitan-district-council/walsall,WC106-120,27/11/2019,Adult Social Care,ACCORD HOUSING ASSOCIATION LTD#135,22/07/2019,668.64,73507-DOMICILIARY CARE,PHYSICAL SUPPORT,Third Party Payments,Revenue
Walsall Council,http://opendatacommunities.org/id/metropolitan-district-council/walsall,WC106-121,28/11/2019,Adult Social Care,ACCORD HOUSING ASSOCIATION LTD#135,10/07/2019,677.46,73507-DOMICILIARY CARE,PHYSICAL SUPPORT,Third Party Payments,Revenue
Walsall Council,http://opendatacommunities.org/id/metropolitan-district-council/walsall,WC106-122,29/11/2019,Adult Social Care,ACCORD HOUSING ASSOCIATION LTD#135,10/07/2019,680.04,73508-COMMUNITY SUPPORTED LIVING/SUPPORTED ACCOMMODATION,MENTAL HEALTH SUPPORT,Third Party Payments,Revenue
Walsall Council,http://opendatacommunities.org/id/metropolitan-district-council/walsall,WC106-123,30/11/2019,Adult Social Care,ACCORD HOUSING ASSOCIATION LTD#135,22/07/2019,680.04,73508-COMMUNITY SUPPORTED LIVING/SUPPORTED ACCOMMODATION,MENTAL HEALTH SUPPORT,Third Party Payments,Revenue
Walsall Council,http://opendatacommunities.org/id/metropolitan-district-council/walsall,WC106-124,01/12/2019,Adult Social Care,ACCORD HOUSING ASSOCIATION LTD#135,22/07/2019,716.08,73507-DOMICILIARY CARE,SOCIAL SUPPORT,Third Party Payments,Revenue
Walsall Council,http://opendatacommunities.org/id/metropolitan-district-council/walsall,WC106-125,02/12/2019,Adult Social Care,ACCORD HOUSING ASSOCIATION LTD#135,22/07/2019,717.80,73508-COMMUNITY SUPPORTED LIVING/SUPPORTED ACCOMMODATION,MENTAL HEALTH SUPPORT,Third Party Payments,Revenue
Walsall Council,http://opendatacommunities.org/id/metropolitan-district-council/walsall,WC106-126,03/12/2019,Adult Social Care,ACCORD HOUSING ASSOCIATION LTD#135,22/07/2019,717.80,73508-COMMUNITY SUPPORTED LIVING/SUPPORTED ACCOMMODATION,MENTAL HEALTH SUPPORT,Third Party Payments,Revenue
Walsall Council,http://opendatacommunities.org/id/metropolitan-district-council/walsall,WC106-127,04/12/2019,Adult Social Care,ACCORD HOUSING ASSOCIATION LTD#135,22/07/2019,725.53,73507-DOMICILIARY CARE,PHYSICAL SUPPORT,Third Party Payments,Revenue
Walsall Council,http://opendatacommunities.org/id/metropolitan-district-council/walsall,WC106-128,05/12/2019,Adult Social Care,ACCORD HOUSING ASSOCIATION LTD#135,22/07/2019,755.60,73508-COMMUNITY SUPPORTED LIVING/SUPPORTED ACCOMMODATION,MENTAL HEALTH SUPPORT,Third Party Payments,Revenue
Walsall Council,http://opendatacommunities.org/id/metropolitan-district-council/walsall,WC106-129,06/12/2019,Adult Social Care,ACCORD HOUSING ASSOCIATION LTD#135,22/07/2019,773.62,73507-DOMICILIARY CARE,SOCIAL SUPPORT,Third Party Payments,Revenue
Walsall Council,http://opendatacommunities.org/id/metropolitan-district-council/walsall,WC106-130,07/12/2019,Adult Social Care,ACCORD HOUSING ASSOCIATION LTD#135,22/07/2019,817.31,73508-COMMUNITY SUPPORTED LIVING/SUPPORTED ACCOMMODATION,LEARNING DISABILITY SUPPORT,Third Party Payments,Revenue
Walsall Council,http://opendatacommunities.org/id/metropolitan-district-council/walsall,WC106-131,08/12/2019,Adult Social Care,ACCORD HOUSING ASSOCIATION LTD#135,22/07/2019,845.70,73507-DOMICILIARY CARE,MENTAL HEALTH SUPPORT,Third Party Payments,Revenue
Walsall Council,http://opendatacommunities.org/id/metropolitan-district-council/walsall,WC106-132,09/12/2019,Adult Social Care,ACCORD HOUSING ASSOCIATION LTD#135,22/07/2019,850.04,73508-COMMUNITY SUPPORTED LIVING/SUPPORTED ACCOMMODATION,MENTAL HEALTH SUPPORT,Third Party Payments,Revenue
Walsall Council,http://opendatacommunities.org/id/metropolitan-district-council/walsall,WC106-133,10/12/2019,Adult Social Care,ACCORD HOUSING ASSOCIATION LTD#135,22/07/2019,854.72,73507-DOMICILIARY CARE,LEARNING DISABILITY SUPPORT,Third Party Payments,Revenue
Walsall Council,http://opendatacommunities.org/id/metropolitan-district-council/walsall,WC106-134,11/12/2019,Adult Social Care,ACCORD HOUSING ASSOCIATION LTD#135,22/07/2019,895.13,73507-DOMICILIARY CARE,PHYSICAL SUPPORT,Third Party Payments,Revenue
Walsall Council,http://opendatacommunities.org/id/metropolitan-district-council/walsall,WC106-135,12/12/2019,Adult Social Care,ACCORD HOUSING ASSOCIATION LTD#135,22/07/2019,903.28,73507-DOMICILIARY CARE,PHYSICAL SUPPORT,Third Party Payments,Revenue
Walsall Council,http://opendatacommunities.org/id/metropolitan-district-council/walsall,WC106-136,13/12/2019,Adult Social Care,ACCORD HOUSING ASSOCIATION LTD#135,22/07/2019,969.04,73507-DOMICILIARY CARE,LEARNING DISABILITY SUPPORT,Third Party Payments,Revenue
Walsall Council,http://opendatacommunities.org/id/metropolitan-district-council/walsall,WC106-137,14/12/2019,Adult Social Care,ACCORD HOUSING ASSOCIATION LTD#135,22/07/2019,982.28,73507-DOMICILIARY CARE,MENTAL HEALTH SUPPORT,Third Party Payments,Revenue
Walsall Council,http://opendatacommunities.org/id/metropolitan-district-council/walsall,WC106-138,15/12/2019,Adult Social Care,ACCORD HOUSING ASSOCIATION LTD#135,22/07/2019,"1,122.52",73507-DOMICILIARY CARE,PHYSICAL SUPPORT,Third Party Payments,Revenue
Walsall Council,http://opendatacommunities.org/id/metropolitan-district-council/walsall,WC106-139,16/12/2019,Adult Social Care,ACCORD HOUSING ASSOCIATION LTD#135,22/07/2019,"1,193.34",73507-DOMICILIARY CARE,PHYSICAL SUPPORT,Third Party Payments,Revenue
Walsall Council,http://opendatacommunities.org/id/metropolitan-district-council/walsall,WC106-140,17/12/2019,Adult Social Care,ACCORD HOUSING ASSOCIATION LTD#135,22/07/2019,"1,470.56",73507-DOMICILIARY CARE,MENTAL HEALTH SUPPORT,Third Party Payments,Revenue
Walsall Council,http://opendatacommunities.org/id/metropolitan-district-council/walsall,WC106-141,18/12/2019,Adult Social Care,ACCORD HOUSING ASSOCIATION LTD#135,22/07/2019,"1,471.12",73507-DOMICILIARY CARE,PHYSICAL SUPPORT,Third Party Payments,Revenue
Walsall Council,http://opendatacommunities.org/id/metropolitan-district-council/walsall,WC106-142,19/12/2019,Adult Social Care,ACCORD HOUSING ASSOCIATION LTD#135,22/07/2019,"1,656.06",73507-DOMICILIARY CARE,PHYSICAL SUPPORT,Third Party Payments,Revenue
Walsall Council,http://opendatacommunities.org/id/metropolitan-district-council/walsall,WC106-143,20/12/2019,Adult Social Care,ACCORD HOUSING ASSOCIATION LTD#135,22/07/2019,"1,672.16",73507-DOMICILIARY CARE,PHYSICAL SUPPORT,Third Party Payments,Revenue
Walsall Council,http://opendatacommunities.org/id/metropolitan-district-council/walsall,WC106-144,21/12/2019,Adult Social Care,ACCORD HOUSING ASSOCIATION LTD#135,22/07/2019,"1,684.90",73507-DOMICILIARY CARE,SOCIAL SUPPORT,Third Party Payments,Revenue
Walsall Council,http://opendatacommunities.org/id/metropolitan-district-council/walsall,WC106-145,22/12/2019,Adult Social Care,ACCORD HOUSING ASSOCIATION LTD#135,22/07/2019,"1,705.13",73507-DOMICILIARY CARE,LEARNING DISABILITY SUPPORT,Third Party Payments,Revenue
Walsall Council,http://opendatacommunities.org/id/metropolitan-district-council/walsall,WC106-146,23/12/2019,Adult Social Care,ACCORD HOUSING ASSOCIATION LTD#135,22/07/2019,"1,705.48",73507-DOMICILIARY CARE,PHYSICAL SUPPORT,Third Party Payments,Revenue
Walsall Council,http://opendatacommunities.org/id/metropolitan-district-council/walsall,WC106-147,24/12/2019,Adult Social Care,ACCORD HOUSING ASSOCIATION LTD#135,22/07/2019,"4,550.44",73500-RESIDENTIAL,LEARNING DISABILITY SUPPORT,Third Party Payments,Revenue
Walsall Council,http://opendatacommunities.org/id/metropolitan-district-council/walsall,WC106-148,25/12/2019,Adult Social Care,ACCORD HOUSING ASSOCIATION LTD#135,22/07/2019,"4,550.44",73500-RESIDENTIAL,LEARNING DISABILITY SUPPORT,Third Party Payments,Revenue
Walsall Council,http://opendatacommunities.org/id/metropolitan-district-council/walsall,WC106-149,26/12/2019,Adult Social Care,ACCORD HOUSING ASSOCIATION LTD#135,22/07/2019,"4,550.44",73500-RESIDENTIAL,LEARNING DISABILITY SUPPORT,Third Party Payments,Revenue
Walsall Council,http://opendatacommunities.org/id/metropolitan-district-council/walsall,WC106-150,27/12/2019,Adult Social Care,ACCORD HOUSING ASSOCIATION LTD#135,22/07/2019,"4,550.44",73500-RESIDENTIAL,LEARNING DISABILITY SUPPORT,Third Party Payments,Revenue
Walsall Council,http://opendatacommunities.org/id/metropolitan-district-council/walsall,WC106-151,28/12/2019,Resources and Transformation,ACCORD HOUSING ASSOCIATION LTD#135,01/07/2019,"4,991.54",01045-PRIVATE GRANTS,CFR 1359 DISABLED FACILITIES GRANT,Capital,Capital
Walsall Council,http://opendatacommunities.org/id/metropolitan-district-council/walsall,WC106-152,29/12/2019,Resources and Transformation,ACCORD HOUSING ASSOCIATION LTD#135,01/07/2019,"4,991.54",01045-PRIVATE GRANTS,CFR 1359 DISABLED FACILITIES GRANT,Capital,Capital
Walsall Council,http://opendatacommunities.org/id/metropolitan-district-council/walsall,WC106-153,30/12/2019,Resources and Transformation,ACCORD HOUSING ASSOCIATION LTD#135,01/07/2019,"4,991.54",01045-PRIVATE GRANTS,CFR 1359 DISABLED FACILITIES GRANT,Capital,Capital
Walsall Council,http://opendatacommunities.org/id/metropolitan-district-council/walsall,WC106-154,31/12/2019,Resources and Transformation,ACCORD HOUSING ASSOCIATION LTD#135,18/07/2019,"4,991.54",01045-PRIVATE GRANTS,CFR 1359 DISABLED FACILITIES GRANT,Capital,Capital
Walsall Council,http://opendatacommunities.org/id/metropolitan-district-council/walsall,WC106-155,01/01/2020,Adult Social Care,ACCORD HOUSING ASSOCIATION LTD#135,22/07/2019,"6,350.96",73500-RESIDENTIAL,LEARNING DISABILITY SUPPORT,Third Party Payments,Revenue
Walsall Council,http://opendatacommunities.org/id/metropolitan-district-council/walsall,WC106-156,02/01/2020,Adult Social Care,ACCORD HOUSING ASSOCIATION LTD#135,22/07/2019,"6,350.96",73500-RESIDENTIAL,LEARNING DISABILITY SUPPORT,Third Party Payments,Revenue
Walsall Council,http://opendatacommunities.org/id/metropolitan-district-council/walsall,WC106-157,03/01/2020,Resources and Transformation,ACCORD HOUSING ASSOCIATION LTD#135,16/07/2019,"47,217.50",73365-BLOCK GROSS-SUPPORTING PEOPLE,HOMELESS PREVENTION GRANT,Third Party Payments,Revenue
Walsall Council,http://opendatacommunities.org/id/metropolitan-district-council/walsall,WC106-158,04/01/2020,Childrens,ACE CARS & MINIBUSES LTD,22/07/2019,"72,453.94",52000-WITH DRIVER-HIRE OF VEHICLES,HOME TO SCHOOL TRANSPORT,Transport,Revenue
Walsall Council,http://opendatacommunities.org/id/metropolitan-district-council/walsall,WC106-159,05/01/2020,Adult Social Care,ACEPAY LTD (COTTAGE NUR HOME),22/07/2019,"1,088.16",73502-NURSING,PHYSICAL SUPPORT,Third Party Payments,Revenue
Walsall Council,http://opendatacommunities.org/id/metropolitan-district-council/walsall,WC106-160,06/01/2020,Adult Social Care,ACEPAY LTD (COTTAGE NUR HOME),22/07/2019,"1,774.96",73500-RESIDENTIAL,PHYSICAL SUPPORT,Third Party Payments,Revenue
Walsall Council,http://opendatacommunities.org/id/metropolitan-district-council/walsall,WC106-161,07/01/2020,Adult Social Care,ACEPAY LTD (COTTAGE NUR HOME),22/07/2019,"1,972.24",73501-RESIDENTIAL EMI,PHYSICAL SUPPORT,Third Party Payments,Revenue
Walsall Council,http://opendatacommunities.org/id/metropolitan-district-council/walsall,WC106-162,08/01/2020,Adult Social Care,ACEPAY LTD (COTTAGE NUR HOME),22/07/2019,"2,143.72",73502-NURSING,PHYSICAL SUPPORT,Third Party Payments,Revenue
Walsall Council,http://opendatacommunities.org/id/metropolitan-district-council/walsall,WC106-163,09/01/2020,Adult Social Care,ACEPAY LTD (COTTAGE NUR HOME),22/07/2019,"2,143.72",73502-NURSING,PHYSICAL SUPPORT,Third Party Payments,Revenue
Walsall Council,http://opendatacommunities.org/id/metropolitan-district-council/walsall,WC106-164,10/01/2020,Adult Social Care,ACEPAY LTD (COTTAGE NUR HOME),22/07/2019,"2,143.72",73502-NURSING,PHYSICAL SUPPORT,Third Party Payments,Revenue
Walsall Council,http://opendatacommunities.org/id/metropolitan-district-council/walsall,WC106-165,11/01/2020,Adult Social Care,ACEPAY LTD (COTTAGE NUR HOME),22/07/2019,"2,143.72",73502-NURSING,SUPPORT WITH MEMORY & COGNITION,Third Party Payments,Revenue
Walsall Council,http://opendatacommunities.org/id/metropolitan-district-council/walsall,WC106-166,12/01/2020,Adult Social Care,ACEPAY LTD (COTTAGE NUR HOME),22/07/2019,"2,143.72",73502-NURSING,PHYSICAL SUPPORT,Third Party Payments,Revenue
Walsall Council,http://opendatacommunities.org/id/metropolitan-district-council/walsall,WC106-167,13/01/2020,Adult Social Care,ACEPAY LTD (COTTAGE NUR HOME),22/07/2019,"2,143.72",73502-NURSING,PHYSICAL SUPPORT,Third Party Payments,Revenue
Walsall Council,http://opendatacommunities.org/id/metropolitan-district-council/walsall,WC106-168,14/01/2020,Adult Social Care,ACEPAY LTD (COTTAGE NUR HOME),22/07/2019,"2,143.72",73502-NURSING,SOCIAL SUPPORT,Third Party Payments,Revenue
Walsall Council,http://opendatacommunities.org/id/metropolitan-district-council/walsall,WC106-169,15/01/2020,Adult Social Care,ACEPAY LTD (COTTAGE NUR HOME),22/07/2019,"2,143.72",73502-NURSING,PHYSICAL SUPPORT,Third Party Payments,Revenue
Walsall Council,http://opendatacommunities.org/id/metropolitan-district-council/walsall,WC106-170,16/01/2020,Adult Social Care,ACEPAY LTD (COTTAGE NUR HOME),22/07/2019,"2,143.72",73502-NURSING,PHYSICAL SUPPORT,Third Party Payments,Revenue
Walsall Council,http://opendatacommunities.org/id/metropolitan-district-council/walsall,WC106-171,17/01/2020,Adult Social Care,ACEPAY LTD (COTTAGE NUR HOME),22/07/2019,"2,143.72",73502-NURSING,PHYSICAL SUPPORT,Third Party Payments,Revenue
Walsall Council,http://opendatacommunities.org/id/metropolitan-district-council/walsall,WC106-172,18/01/2020,Adult Social Care,ACEPAY LTD (COTTAGE NUR HOME),22/07/2019,"2,143.72",73502-NURSING,SUPPORT WITH MEMORY & COGNITION,Third Party Payments,Revenue
Walsall Council,http://opendatacommunities.org/id/metropolitan-district-council/walsall,WC106-173,19/01/2020,Adult Social Care,ACEPAY LTD (COTTAGE NUR HOME),22/07/2019,"2,143.72",73502-NURSING,PHYSICAL SUPPORT,Third Party Payments,Revenue
Walsall Council,http://opendatacommunities.org/id/metropolitan-district-council/walsall,WC106-174,20/01/2020,Adult Social Care,ACEPAY LTD (COTTAGE NUR HOME),22/07/2019,"2,143.72",73502-NURSING,SUPPORT WITH MEMORY & COGNITION,Third Party Payments,Revenue
Walsall Council,http://opendatacommunities.org/id/metropolitan-district-council/walsall,WC106-175,21/01/2020,Adult Social Care,ACEPAY LTD (COTTAGE NUR HOME),22/07/2019,"2,143.72",73502-NURSING,PHYSICAL SUPPORT,Third Party Payments,Revenue
Walsall Council,http://opendatacommunities.org/id/metropolitan-district-council/walsall,WC106-176,22/01/2020,Adult Social Care,ACEPAY LTD (COTTAGE NUR HOME),22/07/2019,"2,143.72",73502-NURSING,SUPPORT WITH MEMORY & COGNITION,Third Party Payments,Revenue
Walsall Council,http://opendatacommunities.org/id/metropolitan-district-council/walsall,WC106-177,23/01/2020,Childrens,ACORN CARE & EDUCATION LTD (SALES),19/07/2019,"14,053.33",66502-TOP UP FUNDING -GRANTS TO SCHOOLS,INDEPENDENT PROVIDERS - SPECIAL & AP,Third Party Payments,Revenue
Walsall Council,http://opendatacommunities.org/id/metropolitan-district-council/walsall,WC106-178,24/01/2020,Adult Social Care,ACORN REST HOME,22/07/2019,"2,226.12",73500-RESIDENTIAL,SOCIAL SUPPORT,Third Party Payments,Revenue
Walsall Council,http://opendatacommunities.org/id/metropolitan-district-council/walsall,WC106-179,25/01/2020,Childrens,ACTIVE CARE SOLUTIONS LTD,12/07/2019,"2,662.80",74037-INDEPENDENT FOSTER CARE-OTH AGENCY PROVISION,EXTERNAL FOSTER CARE PROVISION,Third Party Payments,Revenue
Walsall Council,http://opendatacommunities.org/id/metropolitan-district-council/walsall,WC106-180,26/01/2020,Childrens,ACTIVE CARE SOLUTIONS LTD,12/07/2019,"3,024.00",74037-INDEPENDENT FOSTER CARE-OTH AGENCY PROVISION,EXTERNAL FOSTER CARE PROVISION,Third Party Payments,Revenue
Walsall Council,http://opendatacommunities.org/id/metropolitan-district-council/walsall,WC106-181,27/01/2020,Childrens,ACTIVE CARE SOLUTIONS LTD,12/07/2019,"3,024.00",74037-INDEPENDENT FOSTER CARE-OTH AGENCY PROVISION,EXTERNAL FOSTER CARE PROVISION,Third Party Payments,Revenue
Walsall Council,http://opendatacommunities.org/id/metropolitan-district-council/walsall,WC106-182,28/01/2020,Childrens,ACTIVE CARE SOLUTIONS LTD,12/07/2019,"3,310.00",74037-INDEPENDENT FOSTER CARE-OTH AGENCY PROVISION,EXTERNAL FOSTER CARE PROVISION,Third Party Payments,Revenue
Walsall Council,http://opendatacommunities.org/id/metropolitan-district-council/walsall,WC106-183,29/01/2020,Resources and Transformation,ADA BUILDERS & JOINERS,09/07/2019,"11,000.00",01045-PRIVATE GRANTS,CFR 1359 DISABLED FACILITIES GRANT,Capital,Capital
Walsall Council,http://opendatacommunities.org/id/metropolitan-district-council/walsall,WC106-184,30/01/2020,Adult Social Care,REDACTED,10/07/2019,442.52,73506-DIRECT PAYMENT,LEARNING DISABILITY SUPPORT,Third Party Payments,Revenue
Walsall Council,http://opendatacommunities.org/id/metropolitan-district-council/walsall,WC106-185,31/01/2020,Resources and Transformation,ADELIE FOODS LTD,03/07/2019,839.86,61305-CATERING,TOWN HALL RESTAURANT BISTRO,Supplies & Services,Revenue
Walsall Council,http://opendatacommunities.org/id/metropolitan-district-council/walsall,WC106-186,01/02/2020,Resources and Transformation,ADELIE FOODS LTD,26/07/2019,881.70,61305-CATERING,TOWN HALL RESTAURANT BISTRO,Supplies & Services,Revenue
Walsall Council,http://opendatacommunities.org/id/metropolitan-district-council/walsall,WC106-187,02/02/2020,Resources and Transformation,ADELIE FOODS LTD,26/07/2019,924.28,61305-CATERING,TOWN HALL RESTAURANT BISTRO,Supplies & Services,Revenue
Walsall Council,http://opendatacommunities.org/id/metropolitan-district-council/walsall,WC106-188,03/02/2020,Resources and Transformation,ADELIE FOODS LTD,03/07/2019,977.94,61305-CATERING,TOWN HALL RESTAURANT BISTRO,Supplies & Services,Revenue
Walsall Council,http://opendatacommunities.org/id/metropolitan-district-council/walsall,WC106-189,04/02/2020,Resources and Transformation,ADELIE FOODS LTD,01/07/2019,982.73,61305-CATERING,TOWN HALL RESTAURANT BISTRO,Supplies & Services,Revenue
Walsall Council,http://opendatacommunities.org/id/metropolitan-district-council/walsall,WC106-190,05/02/2020,Resources and Transformation,ADELIE FOODS LTD,26/07/2019,"1,228.80",61305-CATERING,TOWN HALL RESTAURANT BISTRO,Supplies & Services,Revenue
Walsall Council,http://opendatacommunities.org/id/metropolitan-district-council/walsall,WC106-191,06/02/2020,Adult Social Care,REDACTED,10/07/2019,"1,033.16",73506-DIRECT PAYMENT,PHYSICAL SUPPORT,Third Party Payments,Revenue
Walsall Council,http://opendatacommunities.org/id/metropolitan-district-council/walsall,WC106-192,07/02/2020,Childrens,ADMIRAL SELF STORAGE LTD,15/07/2019,228.78,63000-PROFESSIONAL FEES AND SERVICES,CHILDREN'S COMMISSIONING,Supplies & Services,Revenue
Walsall Council,http://opendatacommunities.org/id/metropolitan-district-council/walsall,WC106-193,08/02/2020,Childrens,ADMIRAL SELF STORAGE LTD,15/07/2019,228.78,63000-PROFESSIONAL FEES AND SERVICES,CHILDREN'S COMMISSIONING,Supplies & Services,Revenue
Walsall Council,http://opendatacommunities.org/id/metropolitan-district-council/walsall,WC106-194,09/02/2020,Childrens,REDACTED,01/07/2019,333.12,74510-RESIDENTS ORDERS,ADOPTION ALLOWANCES,Third Party Payments,Revenue
Walsall Council,http://opendatacommunities.org/id/metropolitan-district-council/walsall,WC106-195,10/02/2020,Childrens,REDACTED,29/07/2019,333.12,74510-RESIDENTS ORDERS,ADOPTION ALLOWANCES,Third Party Payments,Revenue
Walsall Council,http://opendatacommunities.org/id/metropolitan-district-council/walsall,WC106-196,11/02/2020,Childrens,REDACTED,01/07/2019,361.12,74510-RESIDENTS ORDERS,ADOPTION ALLOWANCES,Third Party Payments,Revenue
Walsall Council,http://opendatacommunities.org/id/metropolitan-district-council/walsall,WC106-197,12/02/2020,Childrens,REDACTED,29/07/2019,361.12,74510-RESIDENTS ORDERS,ADOPTION ALLOWANCES,Third Party Payments,Revenue
Walsall Council,http://opendatacommunities.org/id/metropolitan-district-council/walsall,WC106-198,13/02/2020,Adult Social Care,REDACTED,10/07/2019,"2,083.20",73506-DIRECT PAYMENT,LEARNING DISABILITY SUPPORT,Third Party Payments,Revenue
Walsall Council,http://opendatacommunities.org/id/metropolitan-district-council/walsall,WC106-199,14/02/2020,Adult Social Care,ADVANCE HEALTH CARE (UK) LTD,24/07/2019,-451.40,73025-PROFESSIONAL SERVICES-PRIV CONTRACTOR & OTHER AGENCIES,INTERMEDIATE CARE SERVICE,Third Party Payments,Revenue
Walsall Council,http://opendatacommunities.org/id/metropolitan-district-council/walsall,WC106-200,15/02/2020,Adult Social Care,ADVANCE HEALTH CARE (UK) LTD,24/07/2019,-279.44,73025-PROFESSIONAL SERVICES-PRIV CONTRACTOR & OTHER AGENCIES,INTERMEDIATE CARE SERVICE,Third Party Payments,Revenue
Walsall Council,http://opendatacommunities.org/id/metropolitan-district-council/walsall,WC106-201,16/02/2020,Adult Social Care,ADVANCE HEALTH CARE (UK) LTD,24/07/2019,-257.95,73025-PROFESSIONAL SERVICES-PRIV CONTRACTOR & OTHER AGENCIES,INTERMEDIATE CARE SERVICE,Third Party Payments,Revenue
Walsall Council,http://opendatacommunities.org/id/metropolitan-district-council/walsall,WC106-202,17/02/2020,Adult Social Care,ADVANCE HEALTH CARE (UK) LTD,03/07/2019,250.78,73025-PROFESSIONAL SERVICES-PRIV CONTRACTOR & OTHER AGENCIES,INTERMEDIATE CARE SERVICE,Third Party Payments,Revenue
Walsall Council,http://opendatacommunities.org/id/metropolitan-district-council/walsall,WC106-203,18/02/2020,Adult Social Care,ADVANCE HEALTH CARE (UK) LTD,03/07/2019,250.78,73025-PROFESSIONAL SERVICES-PRIV CONTRACTOR & OTHER AGENCIES,INTERMEDIATE CARE SERVICE,Third Party Payments,Revenue
Walsall Council,http://opendatacommunities.org/id/metropolitan-district-council/walsall,WC106-204,19/02/2020,Adult Social Care,ADVANCE HEALTH CARE (UK) LTD,09/07/2019,250.78,73025-PROFESSIONAL SERVICES-PRIV CONTRACTOR & OTHER AGENCIES,INTERMEDIATE CARE SERVICE,Third Party Payments,Revenue
Walsall Council,http://opendatacommunities.org/id/metropolitan-district-council/walsall,WC106-205,20/02/2020,Adult Social Care,ADVANCE HEALTH CARE (UK) LTD,09/07/2019,250.78,73025-PROFESSIONAL SERVICES-PRIV CONTRACTOR & OTHER AGENCIES,INTERMEDIATE CARE SERVICE,Third Party Payments,Revenue
Walsall Council,http://opendatacommunities.org/id/metropolitan-district-council/walsall,WC106-206,21/02/2020,Adult Social Care,ADVANCE HEALTH CARE (UK) LTD,17/07/2019,250.78,73025-PROFESSIONAL SERVICES-PRIV CONTRACTOR & OTHER AGENCIES,INTERMEDIATE CARE SERVICE,Third Party Payments,Revenue
Walsall Council,http://opendatacommunities.org/id/metropolitan-district-council/walsall,WC106-207,22/02/2020,Adult Social Care,ADVANCE HEALTH CARE (UK) LTD,22/07/2019,250.95,73507-DOMICILIARY CARE,PHYSICAL SUPPORT,Third Party Payments,Revenue
Walsall Council,http://opendatacommunities.org/id/metropolitan-district-council/walsall,WC106-208,23/02/2020,Adult Social Care,ADVANCE HEALTH CARE (UK) LTD,22/07/2019,267.48,73507-DOMICILIARY CARE,SOCIAL SUPPORT,Third Party Payments,Revenue
Walsall Council,http://opendatacommunities.org/id/metropolitan-district-council/walsall,WC106-209,24/02/2020,Adult Social Care,ADVANCE HEALTH CARE (UK) LTD,03/07/2019,279.44,73025-PROFESSIONAL SERVICES-PRIV CONTRACTOR & OTHER AGENCIES,INTERMEDIATE CARE SERVICE,Third Party Payments,Revenue
Walsall Council,http://opendatacommunities.org/id/metropolitan-district-council/walsall,WC106-210,25/02/2020,Adult Social Care,ADVANCE HEALTH CARE (UK) LTD,17/07/2019,300.93,73025-PROFESSIONAL SERVICES-PRIV CONTRACTOR & OTHER AGENCIES,INTERMEDIATE CARE SERVICE,Third Party Payments,Revenue
Walsall Council,http://opendatacommunities.org/id/metropolitan-district-council/walsall,WC106-211,26/02/2020,Adult Social Care,ADVANCE HEALTH CARE (UK) LTD,24/07/2019,322.43,73025-PROFESSIONAL SERVICES-PRIV CONTRACTOR & OTHER AGENCIES,INTERMEDIATE CARE SERVICE,Third Party Payments,Revenue
Walsall Council,http://opendatacommunities.org/id/metropolitan-district-council/walsall,WC106-212,27/02/2020,Adult Social Care,ADVANCE HEALTH CARE (UK) LTD,03/07/2019,327.20,73025-PROFESSIONAL SERVICES-PRIV CONTRACTOR & OTHER AGENCIES,INTERMEDIATE CARE SERVICE,Third Party Payments,Revenue
Walsall Council,http://opendatacommunities.org/id/metropolitan-district-council/walsall,WC106-213,28/02/2020,Adult Social Care,ADVANCE HEALTH CARE (UK) LTD,24/07/2019,351.09,73025-PROFESSIONAL SERVICES-PRIV CONTRACTOR & OTHER AGENCIES,INTERMEDIATE CARE SERVICE,Third Party Payments,Revenue
Walsall Council,http://opendatacommunities.org/id/metropolitan-district-council/walsall,WC106-214,29/02/2020,Adult Social Care,ADVANCE HEALTH CARE (UK) LTD,17/07/2019,358.25,73025-PROFESSIONAL SERVICES-PRIV CONTRACTOR & OTHER AGENCIES,INTERMEDIATE CARE SERVICE,Third Party Payments,Revenue
Walsall Council,http://opendatacommunities.org/id/metropolitan-district-council/walsall,WC106-215,01/03/2020,Adult Social Care,ADVANCE HEALTH CARE (UK) LTD,09/07/2019,372.58,73025-PROFESSIONAL SERVICES-PRIV CONTRACTOR & OTHER AGENCIES,INTERMEDIATE CARE SERVICE,Third Party Payments,Revenue
Walsall Council,http://opendatacommunities.org/id/metropolitan-district-council/walsall,WC106-216,02/03/2020,Adult Social Care,ADVANCE HEALTH CARE (UK) LTD,22/07/2019,375.23,73507-DOMICILIARY CARE,PHYSICAL SUPPORT,Third Party Payments,Revenue
Walsall Council,http://opendatacommunities.org/id/metropolitan-district-council/walsall,WC106-217,03/03/2020,Adult Social Care,ADVANCE HEALTH CARE (UK) LTD,22/07/2019,401.52,73507-DOMICILIARY CARE,SENSORY SUPPORT,Third Party Payments,Revenue
Walsall Council,http://opendatacommunities.org/id/metropolitan-district-council/walsall,WC106-218,04/03/2020,Adult Social Care,ADVANCE HEALTH CARE (UK) LTD,22/07/2019,426.63,73507-DOMICILIARY CARE,PHYSICAL SUPPORT,Third Party Payments,Revenue
Walsall Council,http://opendatacommunities.org/id/metropolitan-district-council/walsall,WC106-219,05/03/2020,Adult Social Care,ADVANCE HEALTH CARE (UK) LTD,03/07/2019,451.40,73025-PROFESSIONAL SERVICES-PRIV CONTRACTOR & OTHER AGENCIES,INTERMEDIATE CARE SERVICE,Third Party Payments,Revenue
Walsall Council,http://opendatacommunities.org/id/metropolitan-district-council/walsall,WC106-220,06/03/2020,Adult Social Care,ADVANCE HEALTH CARE (UK) LTD,03/07/2019,451.40,73025-PROFESSIONAL SERVICES-PRIV CONTRACTOR & OTHER AGENCIES,INTERMEDIATE CARE SERVICE,Third Party Payments,Revenue
Walsall Council,http://opendatacommunities.org/id/metropolitan-district-council/walsall,WC106-221,07/03/2020,Adult Social Care,ADVANCE HEALTH CARE (UK) LTD,03/07/2019,451.40,73025-PROFESSIONAL SERVICES-PRIV CONTRACTOR & OTHER AGENCIES,INTERMEDIATE CARE SERVICE,Third Party Payments,Revenue
Walsall Council,http://opendatacommunities.org/id/metropolitan-district-council/walsall,WC106-222,08/03/2020,Adult Social Care,ADVANCE HEALTH CARE (UK) LTD,03/07/2019,451.40,73025-PROFESSIONAL SERVICES-PRIV CONTRACTOR & OTHER AGENCIES,INTERMEDIATE CARE SERVICE,Third Party Payments,Revenue
Walsall Council,http://opendatacommunities.org/id/metropolitan-district-council/walsall,WC106-223,09/03/2020,Adult Social Care,ADVANCE HEALTH CARE (UK) LTD,03/07/2019,451.40,73025-PROFESSIONAL SERVICES-PRIV CONTRACTOR & OTHER AGENCIES,INTERMEDIATE CARE SERVICE,Third Party Payments,Revenue
Walsall Council,http://opendatacommunities.org/id/metropolitan-district-council/walsall,WC106-224,10/03/2020,Adult Social Care,ADVANCE HEALTH CARE (UK) LTD,03/07/2019,451.40,73025-PROFESSIONAL SERVICES-PRIV CONTRACTOR & OTHER AGENCIES,INTERMEDIATE CARE SERVICE,Third Party Payments,Revenue
Walsall Council,http://opendatacommunities.org/id/metropolitan-district-council/walsall,WC106-225,11/03/2020,Adult Social Care,ADVANCE HEALTH CARE (UK) LTD,09/07/2019,451.40,73025-PROFESSIONAL SERVICES-PRIV CONTRACTOR & OTHER AGENCIES,INTERMEDIATE CARE SERVICE,Third Party Payments,Revenue
Walsall Council,http://opendatacommunities.org/id/metropolitan-district-council/walsall,WC106-226,12/03/2020,Adult Social Care,ADVANCE HEALTH CARE (UK) LTD,09/07/2019,451.40,73025-PROFESSIONAL SERVICES-PRIV CONTRACTOR & OTHER AGENCIES,INTERMEDIATE CARE SERVICE,Third Party Payments,Revenue
Walsall Council,http://opendatacommunities.org/id/metropolitan-district-council/walsall,WC106-227,13/03/2020,Adult Social Care,ADVANCE HEALTH CARE (UK) LTD,09/07/2019,451.40,73025-PROFESSIONAL SERVICES-PRIV CONTRACTOR & OTHER AGENCIES,INTERMEDIATE CARE SERVICE,Third Party Payments,Revenue
Walsall Council,http://opendatacommunities.org/id/metropolitan-district-council/walsall,WC106-228,14/03/2020,Adult Social Care,ADVANCE HEALTH CARE (UK) LTD,17/07/2019,451.40,73025-PROFESSIONAL SERVICES-PRIV CONTRACTOR & OTHER AGENCIES,INTERMEDIATE CARE SERVICE,Third Party Payments,Revenue
Walsall Council,http://opendatacommunities.org/id/metropolitan-district-council/walsall,WC106-229,15/03/2020,Adult Social Care,ADVANCE HEALTH CARE (UK) LTD,17/07/2019,451.40,73025-PROFESSIONAL SERVICES-PRIV CONTRACTOR & OTHER AGENCIES,INTERMEDIATE CARE SERVICE,Third Party Payments,Revenue
Walsall Council,http://opendatacommunities.org/id/metropolitan-district-council/walsall,WC106-230,16/03/2020,Adult Social Care,ADVANCE HEALTH CARE (UK) LTD,17/07/2019,451.40,73025-PROFESSIONAL SERVICES-PRIV CONTRACTOR & OTHER AGENCIES,INTERMEDIATE CARE SERVICE,Third Party Payments,Revenue
Walsall Council,http://opendatacommunities.org/id/metropolitan-district-council/walsall,WC106-231,17/03/2020,Adult Social Care,ADVANCE HEALTH CARE (UK) LTD,17/07/2019,451.40,73025-PROFESSIONAL SERVICES-PRIV CONTRACTOR & OTHER AGENCIES,INTERMEDIATE CARE SERVICE,Third Party Payments,Revenue
Walsall Council,http://opendatacommunities.org/id/metropolitan-district-council/walsall,WC106-232,18/03/2020,Adult Social Care,ADVANCE HEALTH CARE (UK) LTD,17/07/2019,451.40,73025-PROFESSIONAL SERVICES-PRIV CONTRACTOR & OTHER AGENCIES,INTERMEDIATE CARE SERVICE,Third Party Payments,Revenue
Walsall Council,http://opendatacommunities.org/id/metropolitan-district-council/walsall,WC106-233,19/03/2020,Adult Social Care,ADVANCE HEALTH CARE (UK) LTD,17/07/2019,451.40,73025-PROFESSIONAL SERVICES-PRIV CONTRACTOR & OTHER AGENCIES,INTERMEDIATE CARE SERVICE,Third Party Payments,Revenue
Walsall Council,http://opendatacommunities.org/id/metropolitan-district-council/walsall,WC106-234,20/03/2020,Adult Social Care,ADVANCE HEALTH CARE (UK) LTD,17/07/2019,451.40,73025-PROFESSIONAL SERVICES-PRIV CONTRACTOR & OTHER AGENCIES,INTERMEDIATE CARE SERVICE,Third Party Payments,Revenue
Walsall Council,http://opendatacommunities.org/id/metropolitan-district-council/walsall,WC106-235,21/03/2020,Adult Social Care,ADVANCE HEALTH CARE (UK) LTD,17/07/2019,451.40,73025-PROFESSIONAL SERVICES-PRIV CONTRACTOR & OTHER AGENCIES,INTERMEDIATE CARE SERVICE,Third Party Payments,Revenue
Walsall Council,http://opendatacommunities.org/id/metropolitan-district-council/walsall,WC106-236,22/03/2020,Adult Social Care,ADVANCE HEALTH CARE (UK) LTD,18/07/2019,451.40,73025-PROFESSIONAL SERVICES-PRIV CONTRACTOR & OTHER AGENCIES,INTERMEDIATE CARE SERVICE,Third Party Payments,Revenue
Walsall Council,http://opendatacommunities.org/id/metropolitan-district-council/walsall,WC106-237,23/03/2020,Adult Social Care,ADVANCE HEALTH CARE (UK) LTD,24/07/2019,451.40,73025-PROFESSIONAL SERVICES-PRIV CONTRACTOR & OTHER AGENCIES,INTERMEDIATE CARE SERVICE,Third Party Payments,Revenue
Walsall Council,http://opendatacommunities.org/id/metropolitan-district-council/walsall,WC106-238,24/03/2020,Adult Social Care,ADVANCE HEALTH CARE (UK) LTD,24/07/2019,451.40,73025-PROFESSIONAL SERVICES-PRIV CONTRACTOR & OTHER AGENCIES,INTERMEDIATE CARE SERVICE,Third Party Payments,Revenue
Walsall Council,http://opendatacommunities.org/id/metropolitan-district-council/walsall,WC106-239,25/03/2020,Adult Social Care,ADVANCE HEALTH CARE (UK) LTD,24/07/2019,451.40,73025-PROFESSIONAL SERVICES-PRIV CONTRACTOR & OTHER AGENCIES,INTERMEDIATE CARE SERVICE,Third Party Payments,Revenue
Walsall Council,http://opendatacommunities.org/id/metropolitan-district-council/walsall,WC106-240,26/03/2020,Adult Social Care,ADVANCE HEALTH CARE (UK) LTD,24/07/2019,451.40,73025-PROFESSIONAL SERVICES-PRIV CONTRACTOR & OTHER AGENCIES,INTERMEDIATE CARE SERVICE,Third Party Payments,Revenue
Walsall Council,http://opendatacommunities.org/id/metropolitan-district-council/walsall,WC106-241,27/03/2020,Adult Social Care,ADVANCE HEALTH CARE (UK) LTD,24/07/2019,451.40,73025-PROFESSIONAL SERVICES-PRIV CONTRACTOR & OTHER AGENCIES,INTERMEDIATE CARE SERVICE,Third Party Payments,Revenue
Walsall Council,http://opendatacommunities.org/id/metropolitan-district-council/walsall,WC106-242,28/03/2020,Adult Social Care,ADVANCE HEALTH CARE (UK) LTD,24/07/2019,451.40,73025-PROFESSIONAL SERVICES-PRIV CONTRACTOR & OTHER AGENCIES,INTERMEDIATE CARE SERVICE,Third Party Payments,Revenue
Walsall Council,http://opendatacommunities.org/id/metropolitan-district-council/walsall,WC106-243,29/03/2020,Adult Social Care,ADVANCE HEALTH CARE (UK) LTD,22/07/2019,491.02,73507-DOMICILIARY CARE,PHYSICAL SUPPORT,Third Party Payments,Revenue
Walsall Council,http://opendatacommunities.org/id/metropolitan-district-council/walsall,WC106-244,30/03/2020,Adult Social Care,ADVANCE HEALTH CARE (UK) LTD,22/07/2019,505.41,73507-DOMICILIARY CARE,LEARNING DISABILITY SUPPORT,Third Party Payments,Revenue
Walsall Council,http://opendatacommunities.org/id/metropolitan-district-council/walsall,WC106-245,31/03/2020,Adult Social Care,ADVANCE HEALTH CARE (UK) LTD,22/07/2019,525.78,73507-DOMICILIARY CARE,PHYSICAL SUPPORT,Third Party Payments,Revenue
Walsall Council,http://opendatacommunities.org/id/metropolitan-district-council/walsall,WC106-246,01/04/2020,Adult Social Care,ADVANCE HEALTH CARE (UK) LTD,18/07/2019,551.71,73025-PROFESSIONAL SERVICES-PRIV CONTRACTOR & OTHER AGENCIES,INTERMEDIATE CARE SERVICE,Third Party Payments,Revenue
Walsall Council,http://opendatacommunities.org/id/metropolitan-district-council/walsall,WC106-247,02/04/2020,Adult Social Care,ADVANCE HEALTH CARE (UK) LTD,22/07/2019,597.36,73507-DOMICILIARY CARE,PHYSICAL SUPPORT,Third Party Payments,Revenue
Walsall Council,http://opendatacommunities.org/id/metropolitan-district-council/walsall,WC106-248,03/04/2020,Adult Social Care,ADVANCE HEALTH CARE (UK) LTD,22/07/2019,598.71,73507-DOMICILIARY CARE,PHYSICAL SUPPORT,Third Party Payments,Revenue
Walsall Council,http://opendatacommunities.org/id/metropolitan-district-council/walsall,WC106-249,04/04/2020,Adult Social Care,ADVANCE HEALTH CARE (UK) LTD,22/07/2019,605.77,73507-DOMICILIARY CARE,PHYSICAL SUPPORT,Third Party Payments,Revenue
Walsall Council,http://opendatacommunities.org/id/metropolitan-district-council/walsall,WC106-250,05/04/2020,Adult Social Care,ADVANCE HEALTH CARE (UK) LTD,22/07/2019,627.34,73507-DOMICILIARY CARE,PHYSICAL SUPPORT,Third Party Payments,Revenue
Walsall Council,http://opendatacommunities.org/id/metropolitan-district-council/walsall,WC106-251,06/04/2020,Adult Social Care,ADVANCE HEALTH CARE (UK) LTD,22/07/2019,674.03,73507-DOMICILIARY CARE,PHYSICAL SUPPORT,Third Party Payments,Revenue
Walsall Council,http://opendatacommunities.org/id/metropolitan-district-council/walsall,WC106-252,07/04/2020,Adult Social Care,ADVANCE HEALTH CARE (UK) LTD,22/07/2019,781.50,73507-DOMICILIARY CARE,PHYSICAL SUPPORT,Third Party Payments,Revenue
Walsall Council,http://opendatacommunities.org/id/metropolitan-district-council/walsall,WC106-253,08/04/2020,Adult Social Care,ADVANCE HEALTH CARE (UK) LTD,22/07/2019,793.52,73507-DOMICILIARY CARE,PHYSICAL SUPPORT,Third Party Payments,Revenue
Walsall Council,http://opendatacommunities.org/id/metropolitan-district-council/walsall,WC106-254,09/04/2020,Adult Social Care,ADVANCE HEALTH CARE (UK) LTD,22/07/2019,795.74,73507-DOMICILIARY CARE,PHYSICAL SUPPORT,Third Party Payments,Revenue
Walsall Council,http://opendatacommunities.org/id/metropolitan-district-council/walsall,WC106-255,10/04/2020,Adult Social Care,ADVANCE HEALTH CARE (UK) LTD,22/07/2019,796.03,73507-DOMICILIARY CARE,PHYSICAL SUPPORT,Third Party Payments,Revenue
Walsall Council,http://opendatacommunities.org/id/metropolitan-district-council/walsall,WC106-256,11/04/2020,Adult Social Care,ADVANCE HEALTH CARE (UK) LTD,22/07/2019,799.41,73507-DOMICILIARY CARE,PHYSICAL SUPPORT,Third Party Payments,Revenue
Walsall Council,http://opendatacommunities.org/id/metropolitan-district-council/walsall,WC106-257,12/04/2020,Adult Social Care,ADVANCE HEALTH CARE (UK) LTD,22/07/2019,810.32,73507-DOMICILIARY CARE,PHYSICAL SUPPORT,Third Party Payments,Revenue
Walsall Council,http://opendatacommunities.org/id/metropolitan-district-council/walsall,WC106-258,13/04/2020,Adult Social Care,ADVANCE HEALTH CARE (UK) LTD,22/07/2019,812.50,73507-DOMICILIARY CARE,PHYSICAL SUPPORT,Third Party Payments,Revenue
Walsall Council,http://opendatacommunities.org/id/metropolitan-district-council/walsall,WC106-259,14/04/2020,Adult Social Care,ADVANCE HEALTH CARE (UK) LTD,22/07/2019,836.43,73507-DOMICILIARY CARE,SUPPORT WITH MEMORY & COGNITION,Third Party Payments,Revenue
Walsall Council,http://opendatacommunities.org/id/metropolitan-district-council/walsall,WC106-260,15/04/2020,Adult Social Care,ADVANCE HEALTH CARE (UK) LTD,22/07/2019,877.10,73507-DOMICILIARY CARE,PHYSICAL SUPPORT,Third Party Payments,Revenue
Walsall Council,http://opendatacommunities.org/id/metropolitan-district-council/walsall,WC106-261,16/04/2020,Adult Social Care,ADVANCE HEALTH CARE (UK) LTD,22/07/2019,901.00,73507-DOMICILIARY CARE,PHYSICAL SUPPORT,Third Party Payments,Revenue
Walsall Council,http://opendatacommunities.org/id/metropolitan-district-council/walsall,WC106-262,17/04/2020,Adult Social Care,ADVANCE HEALTH CARE (UK) LTD,22/07/2019,914.04,73507-DOMICILIARY CARE,PHYSICAL SUPPORT,Third Party Payments,Revenue
Walsall Council,http://opendatacommunities.org/id/metropolitan-district-council/walsall,WC106-263,18/04/2020,Adult Social Care,ADVANCE HEALTH CARE (UK) LTD,22/07/2019,990.40,73507-DOMICILIARY CARE,PHYSICAL SUPPORT,Third Party Payments,Revenue
Walsall Council,http://opendatacommunities.org/id/metropolitan-district-council/walsall,WC106-264,19/04/2020,Adult Social Care,ADVANCE HEALTH CARE (UK) LTD,22/07/2019,"1,003.82",73507-DOMICILIARY CARE,PHYSICAL SUPPORT,Third Party Payments,Revenue
Walsall Council,http://opendatacommunities.org/id/metropolitan-district-council/walsall,WC106-265,20/04/2020,Adult Social Care,ADVANCE HEALTH CARE (UK) LTD,22/07/2019,"1,032.16",73507-DOMICILIARY CARE,PHYSICAL SUPPORT,Third Party Payments,Revenue
Walsall Council,http://opendatacommunities.org/id/metropolitan-district-council/walsall,WC106-266,21/04/2020,Adult Social Care,ADVANCE HEALTH CARE (UK) LTD,22/07/2019,"1,038.37",73507-DOMICILIARY CARE,PHYSICAL SUPPORT,Third Party Payments,Revenue
Walsall Council,http://opendatacommunities.org/id/metropolitan-district-council/walsall,WC106-267,22/04/2020,Adult Social Care,ADVANCE HEALTH CARE (UK) LTD,22/07/2019,"1,051.46",73507-DOMICILIARY CARE,PHYSICAL SUPPORT,Third Party Payments,Revenue
Walsall Council,http://opendatacommunities.org/id/metropolitan-district-council/walsall,WC106-268,23/04/2020,Adult Social Care,ADVANCE HEALTH CARE (UK) LTD,22/07/2019,"1,167.35",73507-DOMICILIARY CARE,PHYSICAL SUPPORT,Third Party Payments,Revenue
Walsall Council,http://opendatacommunities.org/id/metropolitan-district-council/walsall,WC106-269,24/04/2020,Adult Social Care,ADVANCE HEALTH CARE (UK) LTD,22/07/2019,"1,173.23",73507-DOMICILIARY CARE,PHYSICAL SUPPORT,Third Party Payments,Revenue
Walsall Council,http://opendatacommunities.org/id/metropolitan-district-council/walsall,WC106-270,25/04/2020,Adult Social Care,ADVANCE HEALTH CARE (UK) LTD,22/07/2019,"1,178.30",73507-DOMICILIARY CARE,PHYSICAL SUPPORT,Third Party Payments,Revenue
Walsall Council,http://opendatacommunities.org/id/metropolitan-district-council/walsall,WC106-271,26/04/2020,Adult Social Care,ADVANCE HEALTH CARE (UK) LTD,22/07/2019,"1,196.94",73507-DOMICILIARY CARE,PHYSICAL SUPPORT,Third Party Payments,Revenue
Walsall Council,http://opendatacommunities.org/id/metropolitan-district-council/walsall,WC106-272,27/04/2020,Adult Social Care,ADVANCE HEALTH CARE (UK) LTD,22/07/2019,"1,218.56",73507-DOMICILIARY CARE,PHYSICAL SUPPORT,Third Party Payments,Revenue
Walsall Council,http://opendatacommunities.org/id/metropolitan-district-council/walsall,WC106-273,28/04/2020,Adult Social Care,ADVANCE HEALTH CARE (UK) LTD,22/07/2019,"1,233.26",73507-DOMICILIARY CARE,SOCIAL SUPPORT,Third Party Payments,Revenue
Walsall Council,http://opendatacommunities.org/id/metropolitan-district-council/walsall,WC106-274,29/04/2020,Adult Social Care,ADVANCE HEALTH CARE (UK) LTD,22/07/2019,"1,494.69",73507-DOMICILIARY CARE,PHYSICAL SUPPORT,Third Party Payments,Revenue
Walsall Council,http://opendatacommunities.org/id/metropolitan-district-council/walsall,WC106-275,30/04/2020,Adult Social Care,ADVANCE HEALTH CARE (UK) LTD,22/07/2019,"1,582.26",73507-DOMICILIARY CARE,PHYSICAL SUPPORT,Third Party Payments,Revenue
Walsall Council,http://opendatacommunities.org/id/metropolitan-district-council/walsall,WC106-276,01/05/2020,Adult Social Care,ADVANCE HEALTH CARE (UK) LTD,22/07/2019,"1,597.69",73507-DOMICILIARY CARE,PHYSICAL SUPPORT,Third Party Payments,Revenue
Walsall Council,http://opendatacommunities.org/id/metropolitan-district-council/walsall,WC106-277,02/05/2020,Adult Social Care,ADVANCE HEALTH CARE (UK) LTD,22/07/2019,"1,603.43",73507-DOMICILIARY CARE,PHYSICAL SUPPORT,Third Party Payments,Revenue
Walsall Council,http://opendatacommunities.org/id/metropolitan-district-council/walsall,WC106-278,03/05/2020,Adult Social Care,ADVANCE HEALTH CARE (UK) LTD,22/07/2019,"1,606.08",73507-DOMICILIARY CARE,PHYSICAL SUPPORT,Third Party Payments,Revenue
Walsall Council,http://opendatacommunities.org/id/metropolitan-district-council/walsall,WC106-279,04/05/2020,Adult Social Care,ADVANCE HEALTH CARE (UK) LTD,22/07/2019,"1,615.48",73507-DOMICILIARY CARE,PHYSICAL SUPPORT,Third Party Payments,Revenue
Walsall Council,http://opendatacommunities.org/id/metropolitan-district-council/walsall,WC106-280,05/05/2020,Adult Social Care,ADVANCE HEALTH CARE (UK) LTD,22/07/2019,"1,647.47",73507-DOMICILIARY CARE,PHYSICAL SUPPORT,Third Party Payments,Revenue
Walsall Council,http://opendatacommunities.org/id/metropolitan-district-council/walsall,WC106-281,06/05/2020,Adult Social Care,ADVANCE HEALTH CARE (UK) LTD,22/07/2019,"1,671.75",73507-DOMICILIARY CARE,PHYSICAL SUPPORT,Third Party Payments,Revenue
Walsall Council,http://opendatacommunities.org/id/metropolitan-district-council/walsall,WC106-282,07/05/2020,Adult Social Care,ADVANCE HEALTH CARE (UK) LTD,22/07/2019,"1,682.52",73507-DOMICILIARY CARE,PHYSICAL SUPPORT,Third Party Payments,Revenue
Walsall Council,http://opendatacommunities.org/id/metropolitan-district-council/walsall,WC106-283,08/05/2020,Adult Social Care,ADVANCE HEALTH CARE (UK) LTD,22/07/2019,"1,699.10",73507-DOMICILIARY CARE,PHYSICAL SUPPORT,Third Party Payments,Revenue
Walsall Council,http://opendatacommunities.org/id/metropolitan-district-council/walsall,WC106-284,09/05/2020,Adult Social Care,ADVANCE HEALTH CARE (UK) LTD,22/07/2019,"1,792.19",73507-DOMICILIARY CARE,PHYSICAL SUPPORT,Third Party Payments,Revenue
Walsall Council,http://opendatacommunities.org/id/metropolitan-district-council/walsall,WC106-285,10/05/2020,Adult Social Care,ADVANCE HEALTH CARE (UK) LTD,22/07/2019,"1,792.32",73507-DOMICILIARY CARE,PHYSICAL SUPPORT,Third Party Payments,Revenue
Walsall Council,http://opendatacommunities.org/id/metropolitan-district-council/walsall,WC106-286,11/05/2020,Adult Social Care,ADVANCE HEALTH CARE (UK) LTD,22/07/2019,"1,793.56",73507-DOMICILIARY CARE,PHYSICAL SUPPORT,Third Party Payments,Revenue
Walsall Council,http://opendatacommunities.org/id/metropolitan-district-council/walsall,WC106-287,12/05/2020,Adult Social Care,ADVANCE HEALTH CARE (UK) LTD,22/07/2019,"1,802.79",73507-DOMICILIARY CARE,PHYSICAL SUPPORT,Third Party Payments,Revenue
Walsall Council,http://opendatacommunities.org/id/metropolitan-district-council/walsall,WC106-288,13/05/2020,Adult Social Care,ADVANCE HEALTH CARE (UK) LTD,22/07/2019,"1,806.56",73507-DOMICILIARY CARE,PHYSICAL SUPPORT,Third Party Payments,Revenue
Walsall Council,http://opendatacommunities.org/id/metropolitan-district-council/walsall,WC106-289,14/05/2020,Adult Social Care,ADVANCE HEALTH CARE (UK) LTD,22/07/2019,"1,806.58",73507-DOMICILIARY CARE,PHYSICAL SUPPORT,Third Party Payments,Revenue
Walsall Council,http://opendatacommunities.org/id/metropolitan-district-council/walsall,WC106-290,15/05/2020,Adult Social Care,ADVANCE HEALTH CARE (UK) LTD,22/07/2019,"1,807.93",73507-DOMICILIARY CARE,SOCIAL SUPPORT,Third Party Payments,Revenue
Walsall Council,http://opendatacommunities.org/id/metropolitan-district-council/walsall,WC106-291,16/05/2020,Adult Social Care,ADVANCE HEALTH CARE (UK) LTD,22/07/2019,"1,826.87",73507-DOMICILIARY CARE,PHYSICAL SUPPORT,Third Party Payments,Revenue
Walsall Council,http://opendatacommunities.org/id/metropolitan-district-council/walsall,WC106-292,17/05/2020,Adult Social Care,ADVANCE HEALTH CARE (UK) LTD,22/07/2019,"1,828.02",73507-DOMICILIARY CARE,PHYSICAL SUPPORT,Third Party Payments,Revenue
Walsall Council,http://opendatacommunities.org/id/metropolitan-district-council/walsall,WC106-293,18/05/2020,Adult Social Care,ADVANCE HEALTH CARE (UK) LTD,22/07/2019,"1,843.37",73507-DOMICILIARY CARE,PHYSICAL SUPPORT,Third Party Payments,Revenue
Walsall Council,http://opendatacommunities.org/id/metropolitan-district-council/walsall,WC106-294,19/05/2020,Adult Social Care,ADVANCE HEALTH CARE (UK) LTD,22/07/2019,"1,854.27",73507-DOMICILIARY CARE,PHYSICAL SUPPORT,Third Party Payments,Revenue
Walsall Council,http://opendatacommunities.org/id/metropolitan-district-council/walsall,WC106-295,20/05/2020,Adult Social Care,ADVANCE HEALTH CARE (UK) LTD,22/07/2019,"1,864.46",73507-DOMICILIARY CARE,PHYSICAL SUPPORT,Third Party Payments,Revenue
Walsall Council,http://opendatacommunities.org/id/metropolitan-district-council/walsall,WC106-296,21/05/2020,Adult Social Care,ADVANCE HEALTH CARE (UK) LTD,22/07/2019,"1,906.80",73507-DOMICILIARY CARE,PHYSICAL SUPPORT,Third Party Payments,Revenue
Walsall Council,http://opendatacommunities.org/id/metropolitan-district-council/walsall,WC106-297,22/05/2020,Adult Social Care,ADVANCE HEALTH CARE (UK) LTD,22/07/2019,"2,186.50",73507-DOMICILIARY CARE,PHYSICAL SUPPORT,Third Party Payments,Revenue
Walsall Council,http://opendatacommunities.org/id/metropolitan-district-council/walsall,WC106-298,23/05/2020,Adult Social Care,ADVANCE HEALTH CARE (UK) LTD,22/07/2019,"2,199.94",73507-DOMICILIARY CARE,PHYSICAL SUPPORT,Third Party Payments,Revenue
Walsall Council,http://opendatacommunities.org/id/metropolitan-district-council/walsall,WC106-299,24/05/2020,Adult Social Care,ADVANCE HEALTH CARE (UK) LTD,22/07/2019,"2,228.23",73507-DOMICILIARY CARE,PHYSICAL SUPPORT,Third Party Payments,Revenue
Walsall Council,http://opendatacommunities.org/id/metropolitan-district-council/walsall,WC106-300,25/05/2020,Adult Social Care,ADVANCE HEALTH CARE (UK) LTD,22/07/2019,"2,286.05",73507-DOMICILIARY CARE,PHYSICAL SUPPORT,Third Party Payments,Revenue
Walsall Council,http://opendatacommunities.org/id/metropolitan-district-council/walsall,WC106-301,26/05/2020,Adult Social Care,ADVANCE HEALTH CARE (UK) LTD,22/07/2019,"2,442.63",73507-DOMICILIARY CARE,PHYSICAL SUPPORT,Third Party Payments,Revenue
Walsall Council,http://opendatacommunities.org/id/metropolitan-district-council/walsall,WC106-302,27/05/2020,Adult Social Care,ADVANCE HEALTH CARE (UK) LTD,22/07/2019,"2,625.03",73507-DOMICILIARY CARE,PHYSICAL SUPPORT,Third Party Payments,Revenue
Walsall Council,http://opendatacommunities.org/id/metropolitan-district-council/walsall,WC106-303,28/05/2020,Adult Social Care,ADVANCE HEALTH CARE (UK) LTD,22/07/2019,"3,185.24",73507-DOMICILIARY CARE,SOCIAL SUPPORT,Third Party Payments,Revenue
Walsall Council,http://opendatacommunities.org/id/metropolitan-district-council/walsall,WC106-304,29/05/2020,Adult Social Care,ADVANCE HEALTH CARE (UK) LTD,22/07/2019,"4,818.46",73507-DOMICILIARY CARE,PHYSICAL SUPPORT,Third Party Payments,Revenue
Walsall Council,http://opendatacommunities.org/id/metropolitan-district-council/walsall,WC106-305,30/05/2020,Economy & Environment,ADVANCE PHARMA LTD T/A PLECK PHARMACY,08/07/2019,241.10,63253-PAYMENT TO CONTRACTOR,SMOKING CESSATION,Third Party Payments,Revenue
Walsall Council,http://opendatacommunities.org/id/metropolitan-district-council/walsall,WC106-306,31/05/2020,Economy & Environment,ADVANCE PHARMA LTD T/A PLECK PHARMACY,09/07/2019,429.65,63253-PAYMENT TO CONTRACTOR,SMOKING CESSATION,Third Party Payments,Revenue
Walsall Council,http://opendatacommunities.org/id/metropolitan-district-council/walsall,WC106-307,01/06/2020,Economy & Environment,ADVANCE PHARMA LTD T/A PLECK PHARMACY,10/07/2019,"1,080.30",63253-PAYMENT TO CONTRACTOR,SMOKING CESSATION,Third Party Payments,Revenue
Walsall Council,http://opendatacommunities.org/id/metropolitan-district-council/walsall,WC106-308,02/06/2020,Economy & Environment,ADVANCE PHARMA LTD T/A PLECK PHARMACY,10/07/2019,"1,561.80",63253-PAYMENT TO CONTRACTOR,SMOKING CESSATION,Third Party Payments,Revenue
Walsall Council,http://opendatacommunities.org/id/metropolitan-district-council/walsall,WC106-309,03/06/2020,Resources and Transformation,ADVANCED CONTRACTS (MIDLANDS) LTD,11/07/2019,545.00,40000-OPERATIONAL MAINTENANCE,CENTRALISED MAINTENANCE,Premises,Revenue
Walsall Council,http://opendatacommunities.org/id/metropolitan-district-council/walsall,WC106-310,04/06/2020,Childrens,ADVENTURELAND DAY NURSERY,23/07/2019,"3,840.40",66502-TOP UP FUNDING -GRANTS TO SCHOOLS,INDEPENDENT PROVIDERS - SPECIAL & AP,Third Party Payments,Revenue
Walsall Council,http://opendatacommunities.org/id/metropolitan-district-council/walsall,WC106-311,05/06/2020,Economy & Environment,AEBI SCHMIDT UK LIMITED,03/07/2019,753.29,60500-GENERAL MATERIALS,FLEET,Supplies & Services,Revenue
Walsall Council,http://opendatacommunities.org/id/metropolitan-district-council/walsall,WC106-312,06/06/2020,Economy & Environment,AECOM LIMITED,11/07/2019,"10,750.00",01002-PROJECT FEES,CFR 1072 M6 JUNCTION 10-LTB,Capital,Capital
Walsall Council,http://opendatacommunities.org/id/metropolitan-district-council/walsall,WC106-313,07/06/2020,Resources and Transformation,AFFITTO ESTATE AGENTS,18/07/2019,"1,150.00",43000-RENTS,HOMELESSNESS PREVENTION STRATEGY,Premises,Revenue
Walsall Council,http://opendatacommunities.org/id/metropolitan-district-council/walsall,WC106-314,08/06/2020,Adult Social Care,AGINCARE UK LTD,10/07/2019,"3,428.20",73507-DOMICILIARY CARE,PHYSICAL SUPPORT,Third Party Payments,Revenue
Walsall Council,http://opendatacommunities.org/id/metropolitan-district-council/walsall,WC106-315,09/06/2020,Adult Social Care,AGINCARE UK LTD,22/07/2019,"3,596.80",73507-DOMICILIARY CARE,PHYSICAL SUPPORT,Third Party Payments,Revenue
Walsall Council,http://opendatacommunities.org/id/metropolitan-district-council/walsall,WC106-316,10/06/2020,Adult Social Care,REDACTED,10/07/2019,"2,442.00",73506-DIRECT PAYMENT,LEARNING DISABILITY SUPPORT,Third Party Payments,Revenue
Walsall Council,http://opendatacommunities.org/id/metropolitan-district-council/walsall,WC106-317,11/06/2020,Economy & Environment,REDACTED,08/07/2019,500.00,62527-VISUAL ARTS,NAG - TEMPORARY EXHIBITIONS,Supplies & Services,Revenue
Walsall Council,http://opendatacommunities.org/id/metropolitan-district-council/walsall,WC106-318,12/06/2020,Childrens,ALBRIGHTON CARE LTD,12/07/2019,"-2,040.00",74036-EXTERNAL RESIDENTIAL CARE-OTH AGENCY PROVISION,INDEPENDENT RESIDENTIAL HOMES,Third Party Payments,Revenue
Walsall Council,http://opendatacommunities.org/id/metropolitan-district-council/walsall,WC106-319,13/06/2020,Childrens,ALBRIGHTON CARE LTD,12/07/2019,"9,980.00",74036-EXTERNAL RESIDENTIAL CARE-OTH AGENCY PROVISION,INDEPENDENT RESIDENTIAL HOMES,Third Party Payments,Revenue
Walsall Council,http://opendatacommunities.org/id/metropolitan-district-council/walsall,WC106-320,14/06/2020,Childrens,ALBRIGHTON CARE LTD,12/07/2019,"27,404.00",74036-EXTERNAL RESIDENTIAL CARE-OTH AGENCY PROVISION,INDEPENDENT RESIDENTIAL HOMES,Third Party Payments,Revenue
Walsall Council,http://opendatacommunities.org/id/metropolitan-district-council/walsall,WC106-321,15/06/2020,Economy & Environment,ALDERBROOK HEALTHCARE LTD,16/07/2019,"2,124.70",63000-PROFESSIONAL FEES AND SERVICES,CORONERS SERVICE,Supplies & Services,Revenue
Walsall Council,http://opendatacommunities.org/id/metropolitan-district-council/walsall,WC106-322,16/06/2020,Adult Social Care,ALDERGROVE MANOR LTD,22/07/2019,"1,972.24",73501-RESIDENTIAL EMI,MENTAL HEALTH SUPPORT,Third Party Payments,Revenue
Walsall Council,http://opendatacommunities.org/id/metropolitan-district-council/walsall,WC106-323,17/06/2020,Adult Social Care,ALDERGROVE MANOR LTD,22/07/2019,"2,107.92",73501-RESIDENTIAL EMI,PHYSICAL SUPPORT,Third Party Payments,Revenue
Walsall Council,http://opendatacommunities.org/id/metropolitan-district-council/walsall,WC106-324,18/06/2020,Adult Social Care,ALDERGROVE MANOR LTD,22/07/2019,"2,132.24",73501-RESIDENTIAL EMI,PHYSICAL SUPPORT,Third Party Payments,Revenue
Walsall Council,http://opendatacommunities.org/id/metropolitan-district-council/walsall,WC106-325,19/06/2020,Adult Social Care,ALDERGROVE MANOR LTD,22/07/2019,"2,143.72",73502-NURSING,PHYSICAL SUPPORT,Third Party Payments,Revenue
Walsall Council,http://opendatacommunities.org/id/metropolitan-district-council/walsall,WC106-326,20/06/2020,Childrens,ALDRIDGE & BARONS LIMITED,15/07/2019,"3,109.44",52000-WITH DRIVER-HIRE OF VEHICLES,HOME TO SCHOOL TRANSPORT,Transport,Revenue
Walsall Council,http://opendatacommunities.org/id/metropolitan-district-council/walsall,WC106-327,21/06/2020,Childrens,ALDRIDGE & BARONS LIMITED,15/07/2019,"8,011.10",52000-WITH DRIVER-HIRE OF VEHICLES,HOME TO SCHOOL TRANSPORT,Transport,Revenue
Walsall Council,http://opendatacommunities.org/id/metropolitan-district-council/walsall,WC106-328,22/06/2020,Childrens,ALDRIDGE & BARONS LIMITED,15/07/2019,"11,716.00",52000-WITH DRIVER-HIRE OF VEHICLES,HOME TO SCHOOL TRANSPORT,Transport,Revenue
Walsall Council,http://opendatacommunities.org/id/metropolitan-district-council/walsall,WC106-329,23/06/2020,Childrens,ALDRIDGE & BARONS LIMITED,15/07/2019,"17,170.40",52000-WITH DRIVER-HIRE OF VEHICLES,HOME TO SCHOOL TRANSPORT,Transport,Revenue
Walsall Council,http://opendatacommunities.org/id/metropolitan-district-council/walsall,WC106-330,24/06/2020,Economy & Environment,ALDRIDGE SHED,08/07/2019,625.00,63253-PAYMENT TO CONTRACTOR,MENTAL HEALTH,Third Party Payments,Revenue
Walsall Council,http://opendatacommunities.org/id/metropolitan-district-council/walsall,WC106-331,25/06/2020,Adult Social Care,REDACTED,10/07/2019,"1,348.80",73506-DIRECT PAYMENT,PHYSICAL SUPPORT,Third Party Payments,Revenue
Walsall Council,http://opendatacommunities.org/id/metropolitan-district-council/walsall,WC106-332,26/06/2020,Adult Social Care,ALEXANDRA HOUSE CARE SERVICES LTD T/A STONEBRIDGE NURSING HOME,22/07/2019,"7,188.60",73500-RESIDENTIAL,LEARNING DISABILITY SUPPORT,Third Party Payments,Revenue
Walsall Council,http://opendatacommunities.org/id/metropolitan-district-council/walsall,WC106-333,27/06/2020,Adult Social Care,REDACTED,10/07/2019,"1,806.56",73506-DIRECT PAYMENT,PHYSICAL SUPPORT,Third Party Payments,Revenue
Walsall Council,http://opendatacommunities.org/id/metropolitan-district-council/walsall,WC106-334,28/06/2020,Adult Social Care,REDACTED,10/07/2019,897.60,73506-DIRECT PAYMENT,PHYSICAL SUPPORT,Third Party Payments,Revenue
Walsall Council,http://opendatacommunities.org/id/metropolitan-district-council/walsall,WC106-335,29/06/2020,Adult Social Care,REDACTED,10/07/2019,"4,740.24",73506-DIRECT PAYMENT,LEARNING DISABILITY SUPPORT,Third Party Payments,Revenue
Walsall Council,http://opendatacommunities.org/id/metropolitan-district-council/walsall,WC106-336,30/06/2020,Adult Social Care,REDACTED,08/07/2019,"1,301.64",73510-SHARED LIVES,LEARNING DISABILITY SUPPORT,Third Party Payments,Revenue
Walsall Council,http://opendatacommunities.org/id/metropolitan-district-council/walsall,WC106-337,01/07/2020,Resources and Transformation,ALL SAINTS CHURCH,23/07/2019,"4,995.24",66500-GRANTS TO OTHER ORGS,LET'S TALK ABOUT IT PROJECT,Third Party Payments,Revenue
Walsall Council,http://opendatacommunities.org/id/metropolitan-district-council/walsall,WC106-338,02/07/2020,Adult Social Care,REDACTED,10/07/2019,"1,606.08",73506-DIRECT PAYMENT,SOCIAL SUPPORT,Third Party Payments,Revenue
Walsall Council,http://opendatacommunities.org/id/metropolitan-district-council/walsall,WC106-339,03/07/2020,Adult Social Care,ALLIED PUBLICITY SERVICES (MANCHESTER) LIMITED T/A APS GROUP,10/07/2019,933.11,63000-PROFESSIONAL FEES AND SERVICES,BLUE BADGES,Supplies & Services,Revenue
Walsall Council,http://opendatacommunities.org/id/metropolitan-district-council/walsall,WC106-340,04/07/2020,Resources and Transformation,ALLSORTS OFFICE SUPPLIES LTD,19/07/2019,730.00,60000-FURNITURE & EQUIPMENT,AREA PARTNERSHIPS,Supplies & Services,Revenue
Walsall Council,http://opendatacommunities.org/id/metropolitan-district-council/walsall,WC106-341,05/07/2020,Resources and Transformation,ALLSORTS OFFICE SUPPLIES LTD,09/07/2019,"2,730.00",63800-COMPUTER EQUIPMENT AND SUPPLIES,RECHARGEABLE EQUIPMENT,Supplies & Services,Revenue
Walsall Council,http://opendatacommunities.org/id/metropolitan-district-council/walsall,WC106-342,06/07/2020,Adult Social Care,ALMA COURT,22/07/2019,"2,880.00",73502-NURSING,MENTAL HEALTH SUPPORT,Third Party Payments,Revenue
Walsall Council,http://opendatacommunities.org/id/metropolitan-district-council/walsall,WC106-343,07/07/2020,Adult Social Care,ALPHA HEALTH CARE LTD,22/07/2019,"-19,439.89",73502-NURSING,PHYSICAL SUPPORT,Third Party Payments,Revenue
Walsall Council,http://opendatacommunities.org/id/metropolitan-district-council/walsall,WC106-344,08/07/2020,Adult Social Care,ALPHA HEALTH CARE LTD,22/07/2019,"-7,937.51",73501-RESIDENTIAL EMI,SUPPORT WITH MEMORY & COGNITION,Third Party Payments,Revenue
Walsall Council,http://opendatacommunities.org/id/metropolitan-district-council/walsall,WC106-345,09/07/2020,Adult Social Care,ALPHA HEALTH CARE LTD,22/07/2019,"1,418.88",73503-NURSING EMI,PHYSICAL SUPPORT,Third Party Payments,Revenue
Walsall Council,http://opendatacommunities.org/id/metropolitan-district-council/walsall,WC106-346,10/07/2020,Adult Social Care,ALPHA HEALTH CARE LTD,22/07/2019,"1,774.96",73500-RESIDENTIAL,MENTAL HEALTH SUPPORT,Third Party Payments,Revenue
Walsall Council,http://opendatacommunities.org/id/metropolitan-district-council/walsall,WC106-347,11/07/2020,Adult Social Care,ALPHA HEALTH CARE LTD,22/07/2019,"1,972.24",73501-RESIDENTIAL EMI,PHYSICAL SUPPORT,Third Party Payments,Revenue
Walsall Council,http://opendatacommunities.org/id/metropolitan-district-council/walsall,WC106-348,12/07/2020,Adult Social Care,ALPHA HEALTH CARE LTD,22/07/2019,"2,143.72",73502-NURSING,PHYSICAL SUPPORT,Third Party Payments,Revenue
Walsall Council,http://opendatacommunities.org/id/metropolitan-district-council/walsall,WC106-349,13/07/2020,Adult Social Care,ALPHA HEALTH CARE LTD,22/07/2019,"2,255.72",73501-RESIDENTIAL EMI,SUPPORT WITH MEMORY & COGNITION,Third Party Payments,Revenue
Walsall Council,http://opendatacommunities.org/id/metropolitan-district-council/walsall,WC106-350,14/07/2020,Adult Social Care,ALPHA HEALTH CARE LTD,22/07/2019,"2,358.08",73503-NURSING EMI,MENTAL HEALTH SUPPORT,Third Party Payments,Revenue
Walsall Council,http://opendatacommunities.org/id/metropolitan-district-council/walsall,WC106-351,15/07/2020,Adult Social Care,ALPHA HEALTH CARE LTD,22/07/2019,"2,358.08",73503-NURSING EMI,MENTAL HEALTH SUPPORT,Third Party Payments,Revenue
Walsall Council,http://opendatacommunities.org/id/metropolitan-district-council/walsall,WC106-352,16/07/2020,Adult Social Care,ALPHA HEALTH CARE LTD,22/07/2019,"2,358.08",73503-NURSING EMI,PHYSICAL SUPPORT,Third Party Payments,Revenue
Walsall Council,http://opendatacommunities.org/id/metropolitan-district-council/walsall,WC106-353,17/07/2020,Adult Social Care,ALPHA HEALTH CARE LTD,22/07/2019,"2,375.36",73503-NURSING EMI,PHYSICAL SUPPORT,Third Party Payments,Revenue
Walsall Council,http://opendatacommunities.org/id/metropolitan-district-council/walsall,WC106-354,18/07/2020,Adult Social Care,ALPHA HEALTH CARE LTD,22/07/2019,"2,495.72",73501-RESIDENTIAL EMI,MENTAL HEALTH SUPPORT,Third Party Payments,Revenue
Walsall Council,http://opendatacommunities.org/id/metropolitan-district-council/walsall,WC106-355,19/07/2020,Adult Social Care,ALPHA HEALTH CARE LTD,22/07/2019,"2,881.80",73503-NURSING EMI,PHYSICAL SUPPORT,Third Party Payments,Revenue
Walsall Council,http://opendatacommunities.org/id/metropolitan-district-council/walsall,WC106-356,20/07/2020,Adult Social Care,ALPHA HEALTH CARE LTD,22/07/2019,"2,881.80",73503-NURSING EMI,MENTAL HEALTH SUPPORT,Third Party Payments,Revenue
Walsall Council,http://opendatacommunities.org/id/metropolitan-district-council/walsall,WC106-357,21/07/2020,Adult Social Care,ALPHA HEALTH CARE LTD,22/07/2019,"2,881.80",73503-NURSING EMI,MENTAL HEALTH SUPPORT,Third Party Payments,Revenue
Walsall Council,http://opendatacommunities.org/id/metropolitan-district-council/walsall,WC106-358,22/07/2020,Adult Social Care,ALPHA HEALTH CARE LTD,22/07/2019,"2,881.80",73503-NURSING EMI,PHYSICAL SUPPORT,Third Party Payments,Revenue
Walsall Council,http://opendatacommunities.org/id/metropolitan-district-council/walsall,WC106-359,23/07/2020,Adult Social Care,ALPHA HEALTH CARE LTD,22/07/2019,"2,881.84",73503-NURSING EMI,PHYSICAL SUPPORT,Third Party Payments,Revenue
Walsall Council,http://opendatacommunities.org/id/metropolitan-district-council/walsall,WC106-360,24/07/2020,Adult Social Care,ALPHA HEALTH CARE LTD,22/07/2019,"2,937.88",73503-NURSING EMI,PHYSICAL SUPPORT,Third Party Payments,Revenue
Walsall Council,http://opendatacommunities.org/id/metropolitan-district-council/walsall,WC106-361,25/07/2020,Adult Social Care,ALPHA HEALTH CARE LTD,22/07/2019,"3,035.72",73501-RESIDENTIAL EMI,PHYSICAL SUPPORT,Third Party Payments,Revenue
Walsall Council,http://opendatacommunities.org/id/metropolitan-district-council/walsall,WC106-362,26/07/2020,Adult Social Care,ALPHA HEALTH CARE LTD,22/07/2019,"3,035.72",73501-RESIDENTIAL EMI,PHYSICAL SUPPORT,Third Party Payments,Revenue
Walsall Council,http://opendatacommunities.org/id/metropolitan-district-council/walsall,WC106-363,27/07/2020,Adult Social Care,ALPHA HEALTH CARE LTD,22/07/2019,"3,290.36",73503-NURSING EMI,PHYSICAL SUPPORT,Third Party Payments,Revenue
Walsall Council,http://opendatacommunities.org/id/metropolitan-district-council/walsall,WC106-364,28/07/2020,Adult Social Care,ALPHA HEALTH CARE LTD,22/07/2019,"3,514.44",73503-NURSING EMI,MENTAL HEALTH SUPPORT,Third Party Payments,Revenue
Walsall Council,http://opendatacommunities.org/id/metropolitan-district-council/walsall,WC106-365,29/07/2020,Childrens,ALUMWELLIES NURSERY,24/07/2019,"2,544.75",66505-OTHER-GRANTS TO OTHER ORGS,EARLY YEARS - 3 YR OLDS,Third Party Payments,Revenue
Walsall Council,http://opendatacommunities.org/id/metropolitan-district-council/walsall,WC106-366,30/07/2020,Childrens,REDACTED,01/07/2019,318.08,74510-RESIDENTS ORDERS,ADOPTION ALLOWANCES,Third Party Payments,Revenue
Walsall Council,http://opendatacommunities.org/id/metropolitan-district-council/walsall,WC106-367,31/07/2020,Childrens,REDACTED,01/07/2019,318.08,74510-RESIDENTS ORDERS,ADOPTION ALLOWANCES,Third Party Payments,Revenue
Walsall Council,http://opendatacommunities.org/id/metropolitan-district-council/walsall,WC106-368,01/08/2020,Childrens,REDACTED,29/07/2019,318.08,74510-RESIDENTS ORDERS,ADOPTION ALLOWANCES,Third Party Payments,Revenue
Walsall Council,http://opendatacommunities.org/id/metropolitan-district-council/walsall,WC106-369,02/08/2020,Childrens,REDACTED,29/07/2019,318.08,74510-RESIDENTS ORDERS,ADOPTION ALLOWANCES,Third Party Payments,Revenue
Walsall Council,http://opendatacommunities.org/id/metropolitan-district-council/walsall,WC106-370,03/08/2020,Adult Social Care,REDACTED,10/07/2019,"1,128.76",73506-DIRECT PAYMENT,LEARNING DISABILITY SUPPORT,Third Party Payments,Revenue
Walsall Council,http://opendatacommunities.org/id/metropolitan-district-council/walsall,WC106-371,04/08/2020,Childrens,REDACTED,01/07/2019,808.04,74009-ADOPTION ALLOWANCE,ADOPTION ALLOWANCES,Transfer Payments,Revenue
Walsall Council,http://opendatacommunities.org/id/metropolitan-district-council/walsall,WC106-372,05/08/2020,Childrens,REDACTED,29/07/2019,808.04,74009-ADOPTION ALLOWANCE,ADOPTION ALLOWANCES,Transfer Payments,Revenue
Walsall Council,http://opendatacommunities.org/id/metropolitan-district-council/walsall,WC106-373,06/08/2020,Childrens,REDACTED,12/07/2019,578.57,74501-MAINTENANCE ALLOWANCE-FOSTER CARERS,INTERNAL FOSTER CARE PROVISION,Transfer Payments,Revenue
Walsall Council,http://opendatacommunities.org/id/metropolitan-district-council/walsall,WC106-374,07/08/2020,Childrens,REDACTED,12/07/2019,"1,000.00",74508-INTERNAL FOSTER CARERS-CARER FEES,INTERNAL FOSTER CARE PROVISION,Transfer Payments,Revenue
Walsall Council,http://opendatacommunities.org/id/metropolitan-district-council/walsall,WC106-375,08/08/2020,Childrens,AMANS TRAVEL LTD,25/07/2019,"1,190.00",52000-WITH DRIVER-HIRE OF VEHICLES,HOME TO SCHOOL TRANSPORT,Transport,Revenue
Walsall Council,http://opendatacommunities.org/id/metropolitan-district-council/walsall,WC106-376,09/08/2020,Adult Social Care,REDACTED,10/07/2019,"1,043.70",73506-DIRECT PAYMENT,LEARNING DISABILITY SUPPORT,Third Party Payments,Revenue
Walsall Council,http://opendatacommunities.org/id/metropolitan-district-council/walsall,WC106-377,10/08/2020,Economy & Environment,AMEY LG LIMITED,22/07/2019,712.41,73025-PROFESSIONAL SERVICES-PRIV CONTRACTOR & OTHER AGENCIES,SECTION 38 OF HIGHWAYS ACT - SUPERVISION,Third Party Payments,Revenue
Walsall Council,http://opendatacommunities.org/id/metropolitan-district-council/walsall,WC106-378,11/08/2020,Economy & Environment,AMEY LG LIMITED,24/07/2019,"14,742.09",73025-PROFESSIONAL SERVICES-PRIV CONTRACTOR & OTHER AGENCIES,TRAFFIC MANAGEMENT,Third Party Payments,Revenue
Walsall Council,http://opendatacommunities.org/id/metropolitan-district-council/walsall,WC106-379,12/08/2020,Economy & Environment,AMEY LG LIMITED,18/07/2019,"16,980.00",73025-PROFESSIONAL SERVICES-PRIV CONTRACTOR & OTHER AGENCIES,SECTION 38 OF HIGHWAYS ACT - SUPERVISION,Third Party Payments,Revenue
Walsall Council,http://opendatacommunities.org/id/metropolitan-district-council/walsall,WC106-380,13/08/2020,Childrens,AMG NURSING CARE SERVICES,25/07/2019,"2,267.36",63000-PROFESSIONAL FEES AND SERVICES,DIRECTLY COMMISSIONED NURSING SERVICES,Supplies & Services,Revenue
Walsall Council,http://opendatacommunities.org/id/metropolitan-district-council/walsall,WC106-381,14/08/2020,Childrens,AMG NURSING CARE SERVICES,03/07/2019,"2,274.48",63000-PROFESSIONAL FEES AND SERVICES,DIRECTLY COMMISSIONED NURSING SERVICES,Supplies & Services,Revenue
Walsall Council,http://opendatacommunities.org/id/metropolitan-district-council/walsall,WC106-382,15/08/2020,Childrens,AMG NURSING CARE SERVICES,25/07/2019,"2,310.90",63000-PROFESSIONAL FEES AND SERVICES,DIRECTLY COMMISSIONED NURSING SERVICES,Supplies & Services,Revenue
Walsall Council,http://opendatacommunities.org/id/metropolitan-district-council/walsall,WC106-383,16/08/2020,Childrens,AMG NURSING CARE SERVICES,25/07/2019,"2,528.12",63000-PROFESSIONAL FEES AND SERVICES,DIRECTLY COMMISSIONED NURSING SERVICES,Supplies & Services,Revenue
Walsall Council,http://opendatacommunities.org/id/metropolitan-district-council/walsall,WC106-384,17/08/2020,Adult Social Care,AMG NURSING CARE SERVICES,22/07/2019,"3,497.00",73508-COMMUNITY SUPPORTED LIVING/SUPPORTED ACCOMMODATION,PHYSICAL SUPPORT,Third Party Payments,Revenue
Walsall Council,http://opendatacommunities.org/id/metropolitan-district-council/walsall,WC106-385,18/08/2020,Adult Social Care,AMG NURSING CARE SERVICES,22/07/2019,"10,716.99",73508-COMMUNITY SUPPORTED LIVING/SUPPORTED ACCOMMODATION,PHYSICAL SUPPORT,Third Party Payments,Revenue
Walsall Council,http://opendatacommunities.org/id/metropolitan-district-council/walsall,WC106-386,19/08/2020,Adult Social Care,REDACTED,10/07/2019,"1,156.12",73506-DIRECT PAYMENT,PHYSICAL SUPPORT,Third Party Payments,Revenue
Walsall Council,http://opendatacommunities.org/id/metropolitan-district-council/walsall,WC106-387,20/08/2020,Economy & Environment,AMX SOLUTIONS LIMITED,19/07/2019,999.80,64500-PUBLICATIONS/ORGANISATIONS-SUBSCRIPTIONS,STRUCTURES & GEOTECHNICS,Supplies & Services,Revenue
Walsall Council,http://opendatacommunities.org/id/metropolitan-district-council/walsall,WC106-388,21/08/2020,Childrens,REDACTED,01/07/2019,340.00,74508-INTERNAL FOSTER CARERS-CARER FEES,FAMILY & FRIENDS FOSTER CARE PROVISION,Transfer Payments,Revenue
Walsall Council,http://opendatacommunities.org/id/metropolitan-district-council/walsall,WC106-389,22/08/2020,Childrens,REDACTED,29/07/2019,340.00,74508-INTERNAL FOSTER CARERS-CARER FEES,FAMILY & FRIENDS FOSTER CARE PROVISION,Transfer Payments,Revenue
Walsall Council,http://opendatacommunities.org/id/metropolitan-district-council/walsall,WC106-390,23/08/2020,Childrens,REDACTED,01/07/2019,600.00,74501-MAINTENANCE ALLOWANCE-FOSTER CARERS,FAMILY & FRIENDS FOSTER CARE PROVISION,Transfer Payments,Revenue
Walsall Council,http://opendatacommunities.org/id/metropolitan-district-council/walsall,WC106-391,24/08/2020,Childrens,REDACTED,29/07/2019,600.00,74501-MAINTENANCE ALLOWANCE-FOSTER CARERS,FAMILY & FRIENDS FOSTER CARE PROVISION,Transfer Payments,Revenue
Walsall Council,http://opendatacommunities.org/id/metropolitan-district-council/walsall,WC106-392,25/08/2020,Childrens,REDACTED,01/07/2019,425.08,74510-RESIDENTS ORDERS,ADOPTION ALLOWANCES,Third Party Payments,Revenue
Walsall Council,http://opendatacommunities.org/id/metropolitan-district-council/walsall,WC106-393,26/08/2020,Childrens,REDACTED,29/07/2019,425.08,74510-RESIDENTS ORDERS,ADOPTION ALLOWANCES,Third Party Payments,Revenue
Walsall Council,http://opendatacommunities.org/id/metropolitan-district-council/walsall,WC106-394,27/08/2020,Adult Social Care,ANCHOR,22/07/2019,"-1,197.43",73501-RESIDENTIAL EMI,PHYSICAL SUPPORT,Third Party Payments,Revenue
Walsall Council,http://opendatacommunities.org/id/metropolitan-district-council/walsall,WC106-395,28/08/2020,Adult Social Care,ANCHOR,22/07/2019,340.00,73501-RESIDENTIAL EMI,SUPPORT WITH MEMORY & COGNITION,Third Party Payments,Revenue
Walsall Council,http://opendatacommunities.org/id/metropolitan-district-council/walsall,WC106-396,29/08/2020,Adult Social Care,ANCHOR,22/07/2019,"1,416.00",73501-RESIDENTIAL EMI,PHYSICAL SUPPORT,Third Party Payments,Revenue
Walsall Council,http://opendatacommunities.org/id/metropolitan-district-council/walsall,WC106-397,30/08/2020,Adult Social Care,ANCHOR,22/07/2019,"1,774.96",73500-RESIDENTIAL,PHYSICAL SUPPORT,Third Party Payments,Revenue
Walsall Council,http://opendatacommunities.org/id/metropolitan-district-council/walsall,WC106-398,31/08/2020,Adult Social Care,ANCHOR,22/07/2019,"1,774.96",73500-RESIDENTIAL,PHYSICAL SUPPORT,Third Party Payments,Revenue
Walsall Council,http://opendatacommunities.org/id/metropolitan-district-council/walsall,WC106-399,01/09/2020,Adult Social Care,ANCHOR,22/07/2019,"1,774.96",73500-RESIDENTIAL,PHYSICAL SUPPORT,Third Party Payments,Revenue
Walsall Council,http://opendatacommunities.org/id/metropolitan-district-council/walsall,WC106-400,02/09/2020,Adult Social Care,ANCHOR,22/07/2019,"1,774.96",73500-RESIDENTIAL,SUPPORT WITH MEMORY & COGNITION,Third Party Payments,Revenue
Walsall Council,http://opendatacommunities.org/id/metropolitan-district-council/walsall,WC106-401,03/09/2020,Adult Social Care,ANCHOR,22/07/2019,"1,774.96",73500-RESIDENTIAL,SUPPORT WITH MEMORY & COGNITION,Third Party Payments,Revenue
Walsall Council,http://opendatacommunities.org/id/metropolitan-district-council/walsall,WC106-402,04/09/2020,Adult Social Care,ANCHOR,22/07/2019,"1,831.37",73501-RESIDENTIAL EMI,PHYSICAL SUPPORT,Third Party Payments,Revenue
Walsall Council,http://opendatacommunities.org/id/metropolitan-district-council/walsall,WC106-403,05/09/2020,Adult Social Care,ANCHOR,22/07/2019,"1,834.96",73500-RESIDENTIAL,PHYSICAL SUPPORT,Third Party Payments,Revenue
Walsall Council,http://opendatacommunities.org/id/metropolitan-district-council/walsall,WC106-404,06/09/2020,Adult Social Care,ANCHOR,22/07/2019,"1,926.12",73500-RESIDENTIAL,PHYSICAL SUPPORT,Third Party Payments,Revenue
Walsall Council,http://opendatacommunities.org/id/metropolitan-district-council/walsall,WC106-405,07/09/2020,Adult Social Care,ANCHOR,22/07/2019,"1,934.96",73500-RESIDENTIAL,PHYSICAL SUPPORT,Third Party Payments,Revenue
Walsall Council,http://opendatacommunities.org/id/metropolitan-district-council/walsall,WC106-406,08/09/2020,Adult Social Care,ANCHOR,22/07/2019,"1,935.72",73501-RESIDENTIAL EMI,PHYSICAL SUPPORT,Third Party Payments,Revenue
Walsall Council,http://opendatacommunities.org/id/metropolitan-district-council/walsall,WC106-407,09/09/2020,Adult Social Care,ANCHOR,22/07/2019,"1,972.24",73501-RESIDENTIAL EMI,MENTAL HEALTH SUPPORT,Third Party Payments,Revenue
Walsall Council,http://opendatacommunities.org/id/metropolitan-district-council/walsall,WC106-408,10/09/2020,Adult Social Care,ANCHOR,22/07/2019,"1,972.24",73501-RESIDENTIAL EMI,SUPPORT WITH MEMORY & COGNITION,Third Party Payments,Revenue
Walsall Council,http://opendatacommunities.org/id/metropolitan-district-council/walsall,WC106-409,11/09/2020,Adult Social Care,ANCHOR,22/07/2019,"1,972.24",73501-RESIDENTIAL EMI,MENTAL HEALTH SUPPORT,Third Party Payments,Revenue
Walsall Council,http://opendatacommunities.org/id/metropolitan-district-council/walsall,WC106-410,12/09/2020,Adult Social Care,ANCHOR,22/07/2019,"1,972.24",73501-RESIDENTIAL EMI,MENTAL HEALTH SUPPORT,Third Party Payments,Revenue
Walsall Council,http://opendatacommunities.org/id/metropolitan-district-council/walsall,WC106-411,13/09/2020,Adult Social Care,ANCHOR,22/07/2019,"1,972.24",73501-RESIDENTIAL EMI,MENTAL HEALTH SUPPORT,Third Party Payments,Revenue
Walsall Council,http://opendatacommunities.org/id/metropolitan-district-council/walsall,WC106-412,14/09/2020,Adult Social Care,ANCHOR,22/07/2019,"1,972.24",73501-RESIDENTIAL EMI,PHYSICAL SUPPORT,Third Party Payments,Revenue
Walsall Council,http://opendatacommunities.org/id/metropolitan-district-council/walsall,WC106-413,15/09/2020,Adult Social Care,ANCHOR,22/07/2019,"1,972.24",73501-RESIDENTIAL EMI,PHYSICAL SUPPORT,Third Party Payments,Revenue
Walsall Council,http://opendatacommunities.org/id/metropolitan-district-council/walsall,WC106-414,16/09/2020,Adult Social Care,ANCHOR,22/07/2019,"1,972.24",73501-RESIDENTIAL EMI,SUPPORT WITH MEMORY & COGNITION,Third Party Payments,Revenue
Walsall Council,http://opendatacommunities.org/id/metropolitan-district-council/walsall,WC106-415,17/09/2020,Adult Social Care,ANCHOR,22/07/2019,"1,972.24",73501-RESIDENTIAL EMI,PHYSICAL SUPPORT,Third Party Payments,Revenue
Walsall Council,http://opendatacommunities.org/id/metropolitan-district-council/walsall,WC106-416,18/09/2020,Adult Social Care,ANCHOR,22/07/2019,"1,972.24",73501-RESIDENTIAL EMI,PHYSICAL SUPPORT,Third Party Payments,Revenue
Walsall Council,http://opendatacommunities.org/id/metropolitan-district-council/walsall,WC106-417,19/09/2020,Adult Social Care,ANCHOR,22/07/2019,"1,972.24",73501-RESIDENTIAL EMI,SUPPORT WITH MEMORY & COGNITION,Third Party Payments,Revenue
Walsall Council,http://opendatacommunities.org/id/metropolitan-district-council/walsall,WC106-418,20/09/2020,Adult Social Care,ANCHOR,22/07/2019,"2,054.96",73500-RESIDENTIAL,SENSORY SUPPORT,Third Party Payments,Revenue
Walsall Council,http://opendatacommunities.org/id/metropolitan-district-council/walsall,WC106-419,21/09/2020,Adult Social Care,ANCHOR,22/07/2019,"2,094.96",73500-RESIDENTIAL,PHYSICAL SUPPORT,Third Party Payments,Revenue
Walsall Council,http://opendatacommunities.org/id/metropolitan-district-council/walsall,WC106-420,22/09/2020,Adult Social Care,ANCHOR,22/07/2019,"2,094.96",73500-RESIDENTIAL,SOCIAL SUPPORT,Third Party Payments,Revenue
Walsall Council,http://opendatacommunities.org/id/metropolitan-district-council/walsall,WC106-421,23/09/2020,Adult Social Care,ANCHOR,22/07/2019,"2,114.96",73500-RESIDENTIAL,PHYSICAL SUPPORT,Third Party Payments,Revenue
Walsall Council,http://opendatacommunities.org/id/metropolitan-district-council/walsall,WC106-422,24/09/2020,Adult Social Care,ANCHOR,22/07/2019,"2,144.56",73501-RESIDENTIAL EMI,SENSORY SUPPORT,Third Party Payments,Revenue
Walsall Council,http://opendatacommunities.org/id/metropolitan-district-council/walsall,WC106-423,25/09/2020,Adult Social Care,ANCHOR,22/07/2019,"2,175.72",73501-RESIDENTIAL EMI,MENTAL HEALTH SUPPORT,Third Party Payments,Revenue
Walsall Council,http://opendatacommunities.org/id/metropolitan-district-council/walsall,WC106-424,26/09/2020,Adult Social Care,ANCHOR,22/07/2019,"2,266.12",73500-RESIDENTIAL,PHYSICAL SUPPORT,Third Party Payments,Revenue
Walsall Council,http://opendatacommunities.org/id/metropolitan-district-council/walsall,WC106-425,27/09/2020,Adult Social Care,ANCHOR,22/07/2019,"2,292.24",73501-RESIDENTIAL EMI,SUPPORT WITH MEMORY & COGNITION,Third Party Payments,Revenue
Walsall Council,http://opendatacommunities.org/id/metropolitan-district-council/walsall,WC106-426,28/09/2020,Adult Social Care,ANCHOR,22/07/2019,"2,292.24",73501-RESIDENTIAL EMI,SUPPORT WITH MEMORY & COGNITION,Third Party Payments,Revenue
Walsall Council,http://opendatacommunities.org/id/metropolitan-district-council/walsall,WC106-427,29/09/2020,Adult Social Care,ANCHOR,22/07/2019,"2,312.24",73501-RESIDENTIAL EMI,SUPPORT WITH MEMORY & COGNITION,Third Party Payments,Revenue
Walsall Council,http://opendatacommunities.org/id/metropolitan-district-council/walsall,WC106-428,30/09/2020,Adult Social Care,ANCHOR,22/07/2019,"2,312.24",73501-RESIDENTIAL EMI,PHYSICAL SUPPORT,Third Party Payments,Revenue
Walsall Council,http://opendatacommunities.org/id/metropolitan-district-council/walsall,WC106-429,01/10/2020,Adult Social Care,ANCHOR,22/07/2019,"2,312.24",73501-RESIDENTIAL EMI,PHYSICAL SUPPORT,Third Party Payments,Revenue
Walsall Council,http://opendatacommunities.org/id/metropolitan-district-council/walsall,WC106-430,02/10/2020,Adult Social Care,ANCHOR,22/07/2019,"2,312.24",73501-RESIDENTIAL EMI,PHYSICAL SUPPORT,Third Party Payments,Revenue
Walsall Council,http://opendatacommunities.org/id/metropolitan-district-council/walsall,WC106-431,03/10/2020,Adult Social Care,ANCHOR,22/07/2019,"2,332.24",73501-RESIDENTIAL EMI,PHYSICAL SUPPORT,Third Party Payments,Revenue
Walsall Council,http://opendatacommunities.org/id/metropolitan-district-council/walsall,WC106-432,04/10/2020,Adult Social Care,ANCHOR,22/07/2019,"2,332.24",73501-RESIDENTIAL EMI,PHYSICAL SUPPORT,Third Party Payments,Revenue
Walsall Council,http://opendatacommunities.org/id/metropolitan-district-council/walsall,WC106-433,05/10/2020,Adult Social Care,ANCHOR,22/07/2019,"2,332.24",73501-RESIDENTIAL EMI,PHYSICAL SUPPORT,Third Party Payments,Revenue
Walsall Council,http://opendatacommunities.org/id/metropolitan-district-council/walsall,WC106-434,06/10/2020,Adult Social Care,ANCHOR,22/07/2019,"7,769.31",73501-RESIDENTIAL EMI,PHYSICAL SUPPORT,Third Party Payments,Revenue
Walsall Council,http://opendatacommunities.org/id/metropolitan-district-council/walsall,WC106-435,07/10/2020,Childrens,REDACTED,01/07/2019,312.24,74509-SPECIAL GUARDIANSHIP ORDERS,ADOPTION ALLOWANCES,Transfer Payments,Revenue
Walsall Council,http://opendatacommunities.org/id/metropolitan-district-council/walsall,WC106-436,08/10/2020,Childrens,REDACTED,29/07/2019,312.24,74509-SPECIAL GUARDIANSHIP ORDERS,ADOPTION ALLOWANCES,Transfer Payments,Revenue
Walsall Council,http://opendatacommunities.org/id/metropolitan-district-council/walsall,WC106-437,09/10/2020,Childrens,REDACTED,12/07/2019,720.00,74501-MAINTENANCE ALLOWANCE-FOSTER CARERS,INTERNAL FOSTER CARE PROVISION,Transfer Payments,Revenue
Walsall Council,http://opendatacommunities.org/id/metropolitan-district-council/walsall,WC106-438,10/10/2020,Childrens,REDACTED,12/07/2019,"1,000.00",74508-INTERNAL FOSTER CARERS-CARER FEES,INTERNAL FOSTER CARE PROVISION,Transfer Payments,Revenue
Walsall Council,http://opendatacommunities.org/id/metropolitan-district-council/walsall,WC106-439,11/10/2020,Economy & Environment,ANDREW PAGE 1917 LTD,15/07/2019,255.64,60514-MATERIALS TO STORES,FLEET PARTS STOCK ACCOUNT,Supplies & Services,Revenue
Walsall Council,http://opendatacommunities.org/id/metropolitan-district-council/walsall,WC106-440,12/10/2020,Adult Social Care,REDACTED,10/07/2019,619.24,73506-DIRECT PAYMENT,LEARNING DISABILITY SUPPORT,Third Party Payments,Revenue
Walsall Council,http://opendatacommunities.org/id/metropolitan-district-council/walsall,WC106-441,13/10/2020,Adult Social Care,REDACTED,10/07/2019,"1,806.56",73506-DIRECT PAYMENT,PHYSICAL SUPPORT,Third Party Payments,Revenue
Walsall Council,http://opendatacommunities.org/id/metropolitan-district-council/walsall,WC106-442,14/10/2020,Childrens,ANDREWS ELECTRICAL LTD,18/07/2019,988.00,01006-SITE WORKS MAIN CONTRACTORS,CFR 1297 CASTLE BUSINESS & ENTERPRISE COLLEGE EXPANSION,Capital,Capital
Walsall Council,http://opendatacommunities.org/id/metropolitan-district-council/walsall,WC106-443,15/10/2020,Childrens,REDACTED,01/07/2019,368.76,74509-SPECIAL GUARDIANSHIP ORDERS,ADOPTION ALLOWANCES,Transfer Payments,Revenue
Walsall Council,http://opendatacommunities.org/id/metropolitan-district-council/walsall,WC106-444,16/10/2020,Childrens,REDACTED,01/07/2019,368.76,74509-SPECIAL GUARDIANSHIP ORDERS,ADOPTION ALLOWANCES,Transfer Payments,Revenue
Walsall Council,http://opendatacommunities.org/id/metropolitan-district-council/walsall,WC106-445,17/10/2020,Childrens,REDACTED,29/07/2019,368.76,74509-SPECIAL GUARDIANSHIP ORDERS,ADOPTION ALLOWANCES,Transfer Payments,Revenue
Walsall Council,http://opendatacommunities.org/id/metropolitan-district-council/walsall,WC106-446,18/10/2020,Childrens,REDACTED,29/07/2019,368.76,74509-SPECIAL GUARDIANSHIP ORDERS,ADOPTION ALLOWANCES,Transfer Payments,Revenue
Walsall Council,http://opendatacommunities.org/id/metropolitan-district-council/walsall,WC106-447,19/10/2020,Childrens,REDACTED,01/07/2019,500.16,74509-SPECIAL GUARDIANSHIP ORDERS,ADOPTION ALLOWANCES,Transfer Payments,Revenue
Walsall Council,http://opendatacommunities.org/id/metropolitan-district-council/walsall,WC106-448,20/10/2020,Childrens,REDACTED,29/07/2019,500.16,74509-SPECIAL GUARDIANSHIP ORDERS,ADOPTION ALLOWANCES,Transfer Payments,Revenue
Walsall Council,http://opendatacommunities.org/id/metropolitan-district-council/walsall,WC106-449,21/10/2020,Childrens,REDACTED,01/07/2019,312.04,74509-SPECIAL GUARDIANSHIP ORDERS,ADOPTION ALLOWANCES,Transfer Payments,Revenue
Walsall Council,http://opendatacommunities.org/id/metropolitan-district-council/walsall,WC106-450,22/10/2020,Childrens,REDACTED,29/07/2019,312.04,74509-SPECIAL GUARDIANSHIP ORDERS,ADOPTION ALLOWANCES,Transfer Payments,Revenue
Walsall Council,http://opendatacommunities.org/id/metropolitan-district-council/walsall,WC106-451,23/10/2020,Childrens,ANGELS WITHOUT WINGS,05/07/2019,"4,923.75",63000-PROFESSIONAL FEES AND SERVICES,ADOPTION TEAM,Supplies & Services,Revenue
Walsall Council,http://opendatacommunities.org/id/metropolitan-district-council/walsall,WC106-452,24/10/2020,Childrens,ANGELS WITHOUT WINGS,05/07/2019,"4,942.50",63000-PROFESSIONAL FEES AND SERVICES,ADOPTION TEAM,Supplies & Services,Revenue
Walsall Council,http://opendatacommunities.org/id/metropolitan-district-council/walsall,WC106-453,25/10/2020,Childrens,ANGELS WITHOUT WINGS,05/07/2019,"4,951.55",63000-PROFESSIONAL FEES AND SERVICES,ADOPTION TEAM,Supplies & Services,Revenue
Walsall Council,http://opendatacommunities.org/id/metropolitan-district-council/walsall,WC106-454,26/10/2020,Adult Social Care,REDACTED,10/07/2019,"1,175.20",73506-DIRECT PAYMENT,PHYSICAL SUPPORT,Third Party Payments,Revenue
Walsall Council,http://opendatacommunities.org/id/metropolitan-district-council/walsall,WC106-455,27/10/2020,Adult Social Care,ANSON COURT RESIDENTIAL HOME,22/07/2019,"-7,941.66",73501-RESIDENTIAL EMI,PHYSICAL SUPPORT,Third Party Payments,Revenue
Walsall Council,http://opendatacommunities.org/id/metropolitan-district-council/walsall,WC106-456,28/10/2020,Adult Social Care,ANSON COURT RESIDENTIAL HOME,22/07/2019,808.50,73501-RESIDENTIAL EMI,PHYSICAL SUPPORT,Third Party Payments,Revenue
Walsall Council,http://opendatacommunities.org/id/metropolitan-district-council/walsall,WC106-457,29/10/2020,Adult Social Care,ANSON COURT RESIDENTIAL HOME,22/07/2019,"1,549.62",73501-RESIDENTIAL EMI,PHYSICAL SUPPORT,Third Party Payments,Revenue
Walsall Council,http://opendatacommunities.org/id/metropolitan-district-council/walsall,WC106-458,30/10/2020,Adult Social Care,ANSON COURT RESIDENTIAL HOME,22/07/2019,"1,972.24",73501-RESIDENTIAL EMI,PHYSICAL SUPPORT,Third Party Payments,Revenue
Walsall Council,http://opendatacommunities.org/id/metropolitan-district-council/walsall,WC106-459,31/10/2020,Adult Social Care,ANSON COURT RESIDENTIAL HOME,22/07/2019,"1,972.24",73501-RESIDENTIAL EMI,SUPPORT WITH MEMORY & COGNITION,Third Party Payments,Revenue
Walsall Council,http://opendatacommunities.org/id/metropolitan-district-council/walsall,WC106-460,01/11/2020,Adult Social Care,ANSON COURT RESIDENTIAL HOME,22/07/2019,"1,972.24",73501-RESIDENTIAL EMI,SOCIAL SUPPORT,Third Party Payments,Revenue
Walsall Council,http://opendatacommunities.org/id/metropolitan-district-council/walsall,WC106-461,02/11/2020,Adult Social Care,ANSON COURT RESIDENTIAL HOME,22/07/2019,"1,972.24",73501-RESIDENTIAL EMI,PHYSICAL SUPPORT,Third Party Payments,Revenue
Walsall Council,http://opendatacommunities.org/id/metropolitan-district-council/walsall,WC106-462,03/11/2020,Adult Social Care,ANSON COURT RESIDENTIAL HOME,22/07/2019,"1,972.24",73501-RESIDENTIAL EMI,PHYSICAL SUPPORT,Third Party Payments,Revenue
Walsall Council,http://opendatacommunities.org/id/metropolitan-district-council/walsall,WC106-463,04/11/2020,Adult Social Care,ANSON COURT RESIDENTIAL HOME,22/07/2019,"1,972.24",73501-RESIDENTIAL EMI,MENTAL HEALTH SUPPORT,Third Party Payments,Revenue
Walsall Council,http://opendatacommunities.org/id/metropolitan-district-council/walsall,WC106-464,05/11/2020,Adult Social Care,ANSON COURT RESIDENTIAL HOME,22/07/2019,"1,972.24",73501-RESIDENTIAL EMI,SUPPORT WITH MEMORY & COGNITION,Third Party Payments,Revenue
Walsall Council,http://opendatacommunities.org/id/metropolitan-district-council/walsall,WC106-465,06/11/2020,Adult Social Care,ANSON COURT RESIDENTIAL HOME,22/07/2019,"1,972.24",73501-RESIDENTIAL EMI,MENTAL HEALTH SUPPORT,Third Party Payments,Revenue
Walsall Council,http://opendatacommunities.org/id/metropolitan-district-council/walsall,WC106-466,07/11/2020,Adult Social Care,ANSON COURT RESIDENTIAL HOME,22/07/2019,"1,972.24",73501-RESIDENTIAL EMI,PHYSICAL SUPPORT,Third Party Payments,Revenue
Walsall Council,http://opendatacommunities.org/id/metropolitan-district-council/walsall,WC106-467,08/11/2020,Adult Social Care,ANSON COURT RESIDENTIAL HOME,22/07/2019,"1,972.24",73501-RESIDENTIAL EMI,SUPPORT WITH MEMORY & COGNITION,Third Party Payments,Revenue
Walsall Council,http://opendatacommunities.org/id/metropolitan-district-council/walsall,WC106-468,09/11/2020,Adult Social Care,ANSON COURT RESIDENTIAL HOME,22/07/2019,"1,972.24",73501-RESIDENTIAL EMI,SUPPORT WITH MEMORY & COGNITION,Third Party Payments,Revenue
Walsall Council,http://opendatacommunities.org/id/metropolitan-district-council/walsall,WC106-469,10/11/2020,Adult Social Care,ANSON COURT RESIDENTIAL HOME,22/07/2019,"1,972.24",73501-RESIDENTIAL EMI,SOCIAL SUPPORT,Third Party Payments,Revenue
Walsall Council,http://opendatacommunities.org/id/metropolitan-district-council/walsall,WC106-470,11/11/2020,Adult Social Care,ANSON COURT RESIDENTIAL HOME,22/07/2019,"2,052.24",73501-RESIDENTIAL EMI,PHYSICAL SUPPORT,Third Party Payments,Revenue
Walsall Council,http://opendatacommunities.org/id/metropolitan-district-council/walsall,WC106-471,12/11/2020,Adult Social Care,ANSON COURT RESIDENTIAL HOME,22/07/2019,"2,052.24",73501-RESIDENTIAL EMI,MENTAL HEALTH SUPPORT,Third Party Payments,Revenue
Walsall Council,http://opendatacommunities.org/id/metropolitan-district-council/walsall,WC106-472,13/11/2020,Adult Social Care,ANSON COURT RESIDENTIAL HOME,22/07/2019,"2,052.24",73501-RESIDENTIAL EMI,PHYSICAL SUPPORT,Third Party Payments,Revenue
Walsall Council,http://opendatacommunities.org/id/metropolitan-district-council/walsall,WC106-473,14/11/2020,Adult Social Care,ANSON COURT RESIDENTIAL HOME,22/07/2019,"2,092.24",73501-RESIDENTIAL EMI,PHYSICAL SUPPORT,Third Party Payments,Revenue
Walsall Council,http://opendatacommunities.org/id/metropolitan-district-council/walsall,WC106-474,15/11/2020,Adult Social Care,ANSON COURT RESIDENTIAL HOME,22/07/2019,"2,092.24",73501-RESIDENTIAL EMI,MENTAL HEALTH SUPPORT,Third Party Payments,Revenue
Walsall Council,http://opendatacommunities.org/id/metropolitan-district-council/walsall,WC106-475,16/11/2020,Adult Social Care,ANSON COURT RESIDENTIAL HOME,22/07/2019,"2,092.24",73501-RESIDENTIAL EMI,PHYSICAL SUPPORT,Third Party Payments,Revenue
Walsall Council,http://opendatacommunities.org/id/metropolitan-district-council/walsall,WC106-476,17/11/2020,Adult Social Care,ANSON COURT RESIDENTIAL HOME,22/07/2019,"2,092.24",73501-RESIDENTIAL EMI,MENTAL HEALTH SUPPORT,Third Party Payments,Revenue
Walsall Council,http://opendatacommunities.org/id/metropolitan-district-council/walsall,WC106-477,18/11/2020,Adult Social Care,ANSON COURT RESIDENTIAL HOME,22/07/2019,"2,172.24",73501-RESIDENTIAL EMI,PHYSICAL SUPPORT,Third Party Payments,Revenue
Walsall Council,http://opendatacommunities.org/id/metropolitan-district-council/walsall,WC106-478,19/11/2020,Resources and Transformation,ANTALIS LIMITED,24/07/2019,311.48,60500-GENERAL MATERIALS,PRINTING SERVICES,Supplies & Services,Revenue
Walsall Council,http://opendatacommunities.org/id/metropolitan-district-council/walsall,WC106-479,20/11/2020,Resources and Transformation,ANTALIS LIMITED,24/07/2019,311.48,60500-GENERAL MATERIALS,PRINTING SERVICES,Supplies & Services,Revenue
Walsall Council,http://opendatacommunities.org/id/metropolitan-district-council/walsall,WC106-480,21/11/2020,Childrens,REDACTED,01/07/2019,604.00,74510-RESIDENTS ORDERS,ADOPTION ALLOWANCES,Third Party Payments,Revenue
Walsall Council,http://opendatacommunities.org/id/metropolitan-district-council/walsall,WC106-481,22/11/2020,Childrens,REDACTED,29/07/2019,604.00,74510-RESIDENTS ORDERS,ADOPTION ALLOWANCES,Third Party Payments,Revenue
Walsall Council,http://opendatacommunities.org/id/metropolitan-district-council/walsall,WC106-482,23/11/2020,Childrens,REDACTED,29/07/2019,333.12,74509-SPECIAL GUARDIANSHIP ORDERS,ADOPTION ALLOWANCES,Transfer Payments,Revenue
Walsall Council,http://opendatacommunities.org/id/metropolitan-district-council/walsall,WC106-483,24/11/2020,Childrens,REDACTED,01/07/2019,495.85,74509-SPECIAL GUARDIANSHIP ORDERS,ADOPTION ALLOWANCES,Transfer Payments,Revenue
Walsall Council,http://opendatacommunities.org/id/metropolitan-district-council/walsall,WC106-484,25/11/2020,Adult Social Care,ANVILLE COURT CARE LTD,22/07/2019,"2,661.80",73503-NURSING EMI,MENTAL HEALTH SUPPORT,Third Party Payments,Revenue
Walsall Council,http://opendatacommunities.org/id/metropolitan-district-council/walsall,WC106-485,26/11/2020,Adult Social Care,APA CARE HOME GROUP - ABBEY LODGE CARE LIMITED,26/07/2019,469.13,73501-RESIDENTIAL EMI,SOCIAL SUPPORT,Third Party Payments,Revenue
Walsall Council,http://opendatacommunities.org/id/metropolitan-district-council/walsall,WC106-486,27/11/2020,Economy & Environment,APCOA PARKING SERVICES (UK) LTD,17/07/2019,"49,888.59",73025-PROFESSIONAL SERVICES-PRIV CONTRACTOR & OTHER AGENCIES,PARKING SERVICES OFF-STREET,Third Party Payments,Revenue
Walsall Council,http://opendatacommunities.org/id/metropolitan-district-council/walsall,WC106-487,28/11/2020,Childrens,APP CARZ,01/07/2019,"6,560.00",52000-WITH DRIVER-HIRE OF VEHICLES,HOME TO SCHOOL TRANSPORT,Transport,Revenue
Walsall Council,http://opendatacommunities.org/id/metropolitan-district-council/walsall,WC106-488,29/11/2020,Childrens,APP CARZ,16/07/2019,"8,131.00",52000-WITH DRIVER-HIRE OF VEHICLES,HOME TO SCHOOL TRANSPORT,Transport,Revenue
Walsall Council,http://opendatacommunities.org/id/metropolitan-district-council/walsall,WC106-489,30/11/2020,Childrens,APPLE TRANSCRIPTION LIMITED,25/07/2019,231.00,73014-LEGAL FEES-PRIV CONTRACTOR FEES,GENERAL MANAGEMENT SUPPORT (INC LEGAL),Third Party Payments,Revenue
Walsall Council,http://opendatacommunities.org/id/metropolitan-district-council/walsall,WC106-490,01/12/2020,Childrens,APPLE TRANSCRIPTION LIMITED,01/07/2019,365.30,73014-LEGAL FEES-PRIV CONTRACTOR FEES,GENERAL MANAGEMENT SUPPORT (INC LEGAL),Third Party Payments,Revenue
Walsall Council,http://opendatacommunities.org/id/metropolitan-district-council/walsall,WC106-491,02/12/2020,Childrens,AQUAID (BIRMINGHAM CENTRAL),10/07/2019,245.00,61009-BEVERAGES-PROVISIONS,PELSALL EDC,Supplies & Services,Revenue
Walsall Council,http://opendatacommunities.org/id/metropolitan-district-council/walsall,WC106-492,03/12/2020,Childrens,AQUAID (BIRMINGHAM CENTRAL),15/07/2019,388.00,61009-BEVERAGES-PROVISIONS,PELSALL EDC,Supplies & Services,Revenue
Walsall Council,http://opendatacommunities.org/id/metropolitan-district-council/walsall,WC106-493,04/12/2020,Childrens,AQUAID (BIRMINGHAM CENTRAL),15/07/2019,555.00,61009-BEVERAGES-PROVISIONS,PELSALL EDC,Supplies & Services,Revenue
Walsall Council,http://opendatacommunities.org/id/metropolitan-district-council/walsall,WC106-494,05/12/2020,Adult Social Care,ARBORETUM NURSING HOME.,22/07/2019,535.93,73502-NURSING,PHYSICAL SUPPORT,Third Party Payments,Revenue
Walsall Council,http://opendatacommunities.org/id/metropolitan-district-council/walsall,WC106-495,06/12/2020,Adult Social Care,ARBORETUM NURSING HOME.,22/07/2019,808.47,73502-NURSING,PHYSICAL SUPPORT,Third Party Payments,Revenue
Walsall Council,http://opendatacommunities.org/id/metropolitan-district-council/walsall,WC106-496,07/12/2020,Adult Social Care,ARBORETUM NURSING HOME.,22/07/2019,889.32,73502-NURSING,PHYSICAL SUPPORT,Third Party Payments,Revenue
Walsall Council,http://opendatacommunities.org/id/metropolitan-district-council/walsall,WC106-497,08/12/2020,Adult Social Care,ARBORETUM NURSING HOME.,22/07/2019,"1,521.39",73504-SHORT STAY RESIDENTIAL,PHYSICAL SUPPORT,Third Party Payments,Revenue
Walsall Council,http://opendatacommunities.org/id/metropolitan-district-council/walsall,WC106-498,09/12/2020,Adult Social Care,ARBORETUM NURSING HOME.,22/07/2019,"2,143.72",73502-NURSING,PHYSICAL SUPPORT,Third Party Payments,Revenue
Walsall Council,http://opendatacommunities.org/id/metropolitan-district-council/walsall,WC106-499,10/12/2020,Adult Social Care,ARBORETUM NURSING HOME.,22/07/2019,"2,143.72",73502-NURSING,PHYSICAL SUPPORT,Third Party Payments,Revenue
Walsall Council,http://opendatacommunities.org/id/metropolitan-district-council/walsall,WC106-500,11/12/2020,Adult Social Care,ARBORETUM NURSING HOME.,22/07/2019,"2,143.72",73502-NURSING,PHYSICAL SUPPORT,Third Party Payments,Revenue
Walsall Council,http://opendatacommunities.org/id/metropolitan-district-council/walsall,WC106-501,12/12/2020,Adult Social Care,ARBORETUM NURSING HOME.,22/07/2019,"2,223.72",73502-NURSING,PHYSICAL SUPPORT,Third Party Payments,Revenue
Walsall Council,http://opendatacommunities.org/id/metropolitan-district-council/walsall,WC106-502,13/12/2020,Adult Social Care,ARBORETUM NURSING HOME.,22/07/2019,"2,243.72",73502-NURSING,PHYSICAL SUPPORT,Third Party Payments,Revenue
Walsall Council,http://opendatacommunities.org/id/metropolitan-district-council/walsall,WC106-503,14/12/2020,Adult Social Care,ARBORETUM NURSING HOME.,22/07/2019,"2,263.72",73502-NURSING,PHYSICAL SUPPORT,Third Party Payments,Revenue
Walsall Council,http://opendatacommunities.org/id/metropolitan-district-council/walsall,WC106-504,15/12/2020,Adult Social Care,ARBORETUM NURSING HOME.,22/07/2019,"2,263.72",73502-NURSING,PHYSICAL SUPPORT,Third Party Payments,Revenue
Walsall Council,http://opendatacommunities.org/id/metropolitan-district-council/walsall,WC106-505,16/12/2020,Adult Social Care,ARBORETUM NURSING HOME.,22/07/2019,"2,263.72",73502-NURSING,PHYSICAL SUPPORT,Third Party Payments,Revenue
Walsall Council,http://opendatacommunities.org/id/metropolitan-district-council/walsall,WC106-506,17/12/2020,Adult Social Care,ARBORETUM NURSING HOME.,22/07/2019,"2,263.72",73502-NURSING,PHYSICAL SUPPORT,Third Party Payments,Revenue
Walsall Council,http://opendatacommunities.org/id/metropolitan-district-council/walsall,WC106-507,18/12/2020,Adult Social Care,ARBORETUM NURSING HOME.,22/07/2019,"2,263.72",73502-NURSING,PHYSICAL SUPPORT,Third Party Payments,Revenue
Walsall Council,http://opendatacommunities.org/id/metropolitan-district-council/walsall,WC106-508,19/12/2020,Adult Social Care,ARBORETUM NURSING HOME.,22/07/2019,"2,303.72",73502-NURSING,SOCIAL SUPPORT,Third Party Payments,Revenue
Walsall Council,http://opendatacommunities.org/id/metropolitan-district-council/walsall,WC106-509,20/12/2020,Adult Social Care,ARBORETUM NURSING HOME.,22/07/2019,"2,478.08",73503-NURSING EMI,PHYSICAL SUPPORT,Third Party Payments,Revenue
Walsall Council,http://opendatacommunities.org/id/metropolitan-district-council/walsall,WC106-510,21/12/2020,Adult Social Care,ARBORETUM NURSING HOME.,22/07/2019,"4,713.37",73502-NURSING,PHYSICAL SUPPORT,Third Party Payments,Revenue
Walsall Council,http://opendatacommunities.org/id/metropolitan-district-council/walsall,WC106-511,22/12/2020,Adult Social Care,ARBORETUM NURSING HOME.,17/07/2019,"23,840.00",73025-PROFESSIONAL SERVICES-PRIV CONTRACTOR & OTHER AGENCIES,TRANSITIONAL CARE SUPPORT TEAM,Third Party Payments,Revenue
Walsall Council,http://opendatacommunities.org/id/metropolitan-district-council/walsall,WC106-512,23/12/2020,Childrens,ARCHWAY ACADEMY,01/07/2019,"-17,688.00",66502-TOP UP FUNDING -GRANTS TO SCHOOLS,INDEPENDENT PROVIDERS - SPECIAL & AP,Third Party Payments,Revenue
Walsall Council,http://opendatacommunities.org/id/metropolitan-district-council/walsall,WC106-513,24/12/2020,Childrens,ARCHWAY ACADEMY,01/07/2019,"-14,740.00",66502-TOP UP FUNDING -GRANTS TO SCHOOLS,INDEPENDENT PROVIDERS - SPECIAL & AP,Third Party Payments,Revenue
Walsall Council,http://opendatacommunities.org/id/metropolitan-district-council/walsall,WC106-514,25/12/2020,Childrens,ARCHWAY ACADEMY,16/07/2019,"5,011.60",66502-TOP UP FUNDING -GRANTS TO SCHOOLS,INDEPENDENT PROVIDERS - SPECIAL & AP,Third Party Payments,Revenue
Walsall Council,http://opendatacommunities.org/id/metropolitan-district-council/walsall,WC106-515,26/12/2020,Childrens,ARCHWAY ACADEMY,16/07/2019,"5,896.00",66502-TOP UP FUNDING -GRANTS TO SCHOOLS,INDEPENDENT PROVIDERS - SPECIAL & AP,Third Party Payments,Revenue
Walsall Council,http://opendatacommunities.org/id/metropolitan-district-council/walsall,WC106-516,27/12/2020,Childrens,ARCHWAY ACADEMY,22/07/2019,"20,046.40",66502-TOP UP FUNDING -GRANTS TO SCHOOLS,INDEPENDENT PROVIDERS - SPECIAL & AP,Third Party Payments,Revenue
Walsall Council,http://opendatacommunities.org/id/metropolitan-district-council/walsall,WC106-517,28/12/2020,Childrens,ARCHWAY ACADEMY,03/07/2019,"23,584.00",66502-TOP UP FUNDING -GRANTS TO SCHOOLS,INDEPENDENT PROVIDERS - SPECIAL & AP,Third Party Payments,Revenue
Walsall Council,http://opendatacommunities.org/id/metropolitan-district-council/walsall,WC106-518,29/12/2020,Economy & Environment,ARCO GROUP,25/07/2019,646.91,60006-NEW-FURNITURE & EQUIPMENT,HWRC,Supplies & Services,Revenue
Walsall Council,http://opendatacommunities.org/id/metropolitan-district-council/walsall,WC106-519,30/12/2020,Childrens,ARMSTRONG YORK ASBESTOS ENVIRONMENTAL LIMITED,24/07/2019,300.00,01006-SITE WORKS MAIN CONTRACTORS,CFR 1297 OLD CHURCH PRIMARY SCHOOL EXPANSION,Capital,Capital
Walsall Council,http://opendatacommunities.org/id/metropolitan-district-council/walsall,WC106-520,31/12/2020,Childrens,ARMSTRONG YORK ASBESTOS ENVIRONMENTAL LIMITED,24/07/2019,320.00,01006-SITE WORKS MAIN CONTRACTORS,CFR 1297 MANOR PRIMARY SCHOOL EXPANSION,Capital,Capital
Walsall Council,http://opendatacommunities.org/id/metropolitan-district-council/walsall,WC106-521,01/01/2021,Childrens,ARMSTRONG YORK ASBESTOS ENVIRONMENTAL LIMITED,15/07/2019,360.00,01006-SITE WORKS MAIN CONTRACTORS,CFR 1299 VARIOUS KITCHEN VENTILATION UPGRADES,Capital,Capital
Walsall Council,http://opendatacommunities.org/id/metropolitan-district-council/walsall,WC106-522,02/01/2021,Childrens,ARMSTRONG YORK ASBESTOS ENVIRONMENTAL LIMITED,15/07/2019,360.00,01006-SITE WORKS MAIN CONTRACTORS,CFR 1348 ELMORE GREEN SUB FLOORS,Capital,Capital
Walsall Council,http://opendatacommunities.org/id/metropolitan-district-council/walsall,WC106-523,03/01/2021,Childrens,ARMSTRONG YORK ASBESTOS ENVIRONMENTAL LIMITED,15/07/2019,600.00,01006-SITE WORKS MAIN CONTRACTORS,CFR 1348 SALISBURY PRIMARY HUB REFURBISHMENT,Capital,Capital
Walsall Council,http://opendatacommunities.org/id/metropolitan-district-council/walsall,WC106-524,04/01/2021,Childrens,ARNOLD CLARK CAR & VAN RENTAL,24/07/2019,284.88,52001-HIRE OF VEHICLES,SAFEGUARDING & FAMILY SUPPORT,Transport,Revenue
Walsall Council,http://opendatacommunities.org/id/metropolitan-district-council/walsall,WC106-525,05/01/2021,Childrens,ARNOLD CLARK CAR & VAN RENTAL,15/07/2019,329.14,52001-HIRE OF VEHICLES,SAFEGUARDING & FAMILY SUPPORT,Transport,Revenue
Walsall Council,http://opendatacommunities.org/id/metropolitan-district-council/walsall,WC106-526,06/01/2021,Childrens,ARNOLD CLARK CAR & VAN RENTAL,08/07/2019,332.36,52001-HIRE OF VEHICLES,SAFEGUARDING & FAMILY SUPPORT,Transport,Revenue
Walsall Council,http://opendatacommunities.org/id/metropolitan-district-council/walsall,WC106-527,07/01/2021,Childrens,ART PRACTITIONER & PSYCHOTHERAPY SERVICES JACQUELINE MARLOW,02/07/2019,"2,250.00",63000-PROFESSIONAL FEES AND SERVICES,FAMILY PLACEMENTS,Supplies & Services,Revenue
Walsall Council,http://opendatacommunities.org/id/metropolitan-district-council/walsall,WC106-528,08/01/2021,Economy & Environment,ART UK,01/07/2019,250.00,64500-PUBLICATIONS/ORGANISATIONS-SUBSCRIPTIONS,NEW ART GALLERY - ADMIN,Supplies & Services,Revenue
Walsall Council,http://opendatacommunities.org/id/metropolitan-district-council/walsall,WC106-529,09/01/2021,Holding Accounts,ARTHUR J GALLAGHER T/A HEATH LAMBERT LIMITED,24/07/2019,"6,500.00",67001-MISC INSURANCES - PAYMENT OF CLAIMS,PUBLIC LIABILITY,Supplies & Services,Revenue
Walsall Council,http://opendatacommunities.org/id/metropolitan-district-council/walsall,WC106-530,10/01/2021,Adult Social Care,ASH GRANGE CARE HOME,22/07/2019,"-1,224.98",73502-NURSING,PHYSICAL SUPPORT,Third Party Payments,Revenue
Walsall Council,http://opendatacommunities.org/id/metropolitan-district-council/walsall,WC106-531,11/01/2021,Adult Social Care,ASH GRANGE CARE HOME,22/07/2019,"1,774.96",73500-RESIDENTIAL,MENTAL HEALTH SUPPORT,Third Party Payments,Revenue
Walsall Council,http://opendatacommunities.org/id/metropolitan-district-council/walsall,WC106-532,12/01/2021,Adult Social Care,ASH GRANGE CARE HOME,22/07/2019,"1,774.96",73500-RESIDENTIAL,SUPPORT WITH MEMORY & COGNITION,Third Party Payments,Revenue
Walsall Council,http://opendatacommunities.org/id/metropolitan-district-council/walsall,WC106-533,13/01/2021,Adult Social Care,ASH GRANGE CARE HOME,22/07/2019,"2,143.72",73502-NURSING,PHYSICAL SUPPORT,Third Party Payments,Revenue
Walsall Council,http://opendatacommunities.org/id/metropolitan-district-council/walsall,WC106-534,14/01/2021,Adult Social Care,ASH GRANGE CARE HOME,22/07/2019,"2,143.72",73502-NURSING,PHYSICAL SUPPORT,Third Party Payments,Revenue
Walsall Council,http://opendatacommunities.org/id/metropolitan-district-council/walsall,WC106-535,15/01/2021,Adult Social Care,ASH GRANGE CARE HOME,22/07/2019,"2,143.72",73502-NURSING,PHYSICAL SUPPORT,Third Party Payments,Revenue
Walsall Council,http://opendatacommunities.org/id/metropolitan-district-council/walsall,WC106-536,16/01/2021,Adult Social Care,ASH GRANGE CARE HOME,22/07/2019,"2,143.72",73502-NURSING,MENTAL HEALTH SUPPORT,Third Party Payments,Revenue
Walsall Council,http://opendatacommunities.org/id/metropolitan-district-council/walsall,WC106-537,17/01/2021,Adult Social Care,ASH GRANGE CARE HOME,22/07/2019,"2,143.72",73502-NURSING,PHYSICAL SUPPORT,Third Party Payments,Revenue
Walsall Council,http://opendatacommunities.org/id/metropolitan-district-council/walsall,WC106-538,18/01/2021,Adult Social Care,ASH GRANGE CARE HOME,22/07/2019,"2,143.72",73502-NURSING,PHYSICAL SUPPORT,Third Party Payments,Revenue
Walsall Council,http://opendatacommunities.org/id/metropolitan-district-council/walsall,WC106-539,19/01/2021,Adult Social Care,ASH GRANGE CARE HOME,22/07/2019,"2,143.72",73502-NURSING,PHYSICAL SUPPORT,Third Party Payments,Revenue
Walsall Council,http://opendatacommunities.org/id/metropolitan-district-council/walsall,WC106-540,20/01/2021,Adult Social Care,ASH GRANGE CARE HOME,22/07/2019,"2,143.72",73502-NURSING,PHYSICAL SUPPORT,Third Party Payments,Revenue
Walsall Council,http://opendatacommunities.org/id/metropolitan-district-council/walsall,WC106-541,21/01/2021,Adult Social Care,ASH GRANGE CARE HOME,22/07/2019,"2,143.72",73502-NURSING,MENTAL HEALTH SUPPORT,Third Party Payments,Revenue
Walsall Council,http://opendatacommunities.org/id/metropolitan-district-council/walsall,WC106-542,22/01/2021,Adult Social Care,ASH GRANGE CARE HOME,22/07/2019,"2,143.72",73502-NURSING,PHYSICAL SUPPORT,Third Party Payments,Revenue
Walsall Council,http://opendatacommunities.org/id/metropolitan-district-council/walsall,WC106-543,23/01/2021,Adult Social Care,ASH GRANGE CARE HOME,22/07/2019,"2,143.72",73502-NURSING,PHYSICAL SUPPORT,Third Party Payments,Revenue
Walsall Council,http://opendatacommunities.org/id/metropolitan-district-council/walsall,WC106-544,24/01/2021,Adult Social Care,ASH GRANGE CARE HOME,22/07/2019,"2,143.72",73502-NURSING,PHYSICAL SUPPORT,Third Party Payments,Revenue
Walsall Council,http://opendatacommunities.org/id/metropolitan-district-council/walsall,WC106-545,25/01/2021,Adult Social Care,ASH GRANGE CARE HOME,22/07/2019,"2,143.72",73502-NURSING,SUPPORT WITH MEMORY & COGNITION,Third Party Payments,Revenue
Walsall Council,http://opendatacommunities.org/id/metropolitan-district-council/walsall,WC106-546,26/01/2021,Adult Social Care,ASH GRANGE CARE HOME,22/07/2019,"2,143.72",73502-NURSING,PHYSICAL SUPPORT,Third Party Payments,Revenue
Walsall Council,http://opendatacommunities.org/id/metropolitan-district-council/walsall,WC106-547,27/01/2021,Adult Social Care,ASH GRANGE CARE HOME,22/07/2019,"2,143.72",73502-NURSING,PHYSICAL SUPPORT,Third Party Payments,Revenue
Walsall Council,http://opendatacommunities.org/id/metropolitan-district-council/walsall,WC106-548,28/01/2021,Adult Social Care,ASH GRANGE CARE HOME,22/07/2019,"2,182.87",73502-NURSING,PHYSICAL SUPPORT,Third Party Payments,Revenue
Walsall Council,http://opendatacommunities.org/id/metropolitan-district-council/walsall,WC106-549,29/01/2021,Adult Social Care,ASH GRANGE CARE HOME,22/07/2019,"2,343.72",73502-NURSING,PHYSICAL SUPPORT,Third Party Payments,Revenue
Walsall Council,http://opendatacommunities.org/id/metropolitan-district-council/walsall,WC106-550,30/01/2021,Adult Social Care,ASH GRANGE CARE HOME,22/07/2019,"2,343.72",73502-NURSING,PHYSICAL SUPPORT,Third Party Payments,Revenue
Walsall Council,http://opendatacommunities.org/id/metropolitan-district-council/walsall,WC106-551,31/01/2021,Adult Social Care,ASH GRANGE CARE HOME,22/07/2019,"2,358.08",73503-NURSING EMI,PHYSICAL SUPPORT,Third Party Payments,Revenue
Walsall Council,http://opendatacommunities.org/id/metropolitan-district-council/walsall,WC106-552,01/02/2021,Adult Social Care,ASH GRANGE CARE HOME,22/07/2019,"2,358.08",73503-NURSING EMI,PHYSICAL SUPPORT,Third Party Payments,Revenue
Walsall Council,http://opendatacommunities.org/id/metropolitan-district-council/walsall,WC106-553,02/02/2021,Adult Social Care,ASH GRANGE CARE HOME,22/07/2019,"2,423.72",73502-NURSING,PHYSICAL SUPPORT,Third Party Payments,Revenue
Walsall Council,http://opendatacommunities.org/id/metropolitan-district-council/walsall,WC106-554,03/02/2021,Adult Social Care,ASH GRANGE CARE HOME,22/07/2019,"2,463.72",73502-NURSING,PHYSICAL SUPPORT,Third Party Payments,Revenue
Walsall Council,http://opendatacommunities.org/id/metropolitan-district-council/walsall,WC106-555,04/02/2021,Adult Social Care,ASH GRANGE CARE HOME,22/07/2019,"2,520.68",73500-RESIDENTIAL,LEARNING DISABILITY SUPPORT,Third Party Payments,Revenue
Walsall Council,http://opendatacommunities.org/id/metropolitan-district-council/walsall,WC106-556,05/02/2021,Adult Social Care,ASH GRANGE CARE HOME,22/07/2019,"2,594.44",73503-NURSING EMI,PHYSICAL SUPPORT,Third Party Payments,Revenue
Walsall Council,http://opendatacommunities.org/id/metropolitan-district-council/walsall,WC106-557,06/02/2021,Adult Social Care,ASH GRANGE CARE HOME,22/07/2019,"2,752.04",73502-NURSING,SOCIAL SUPPORT,Third Party Payments,Revenue
Walsall Council,http://opendatacommunities.org/id/metropolitan-district-council/walsall,WC106-558,07/02/2021,Adult Social Care,ASH GRANGE CARE HOME,03/07/2019,"3,000.00",73025-PROFESSIONAL SERVICES-PRIV CONTRACTOR & OTHER AGENCIES,TRANSITIONAL CARE SUPPORT TEAM,Third Party Payments,Revenue
Walsall Council,http://opendatacommunities.org/id/metropolitan-district-council/walsall,WC106-559,08/02/2021,Adult Social Care,ASH GRANGE CARE HOME,03/07/2019,"3,000.00",73025-PROFESSIONAL SERVICES-PRIV CONTRACTOR & OTHER AGENCIES,TRANSITIONAL CARE SUPPORT TEAM,Third Party Payments,Revenue
Walsall Council,http://opendatacommunities.org/id/metropolitan-district-council/walsall,WC106-560,09/02/2021,Adult Social Care,ASH GRANGE CARE HOME,22/07/2019,"9,564.83",73502-NURSING,SOCIAL SUPPORT,Third Party Payments,Revenue
Walsall Council,http://opendatacommunities.org/id/metropolitan-district-council/walsall,WC106-561,10/02/2021,Economy & Environment,ASHDOWN SUPPLIES,18/07/2019,293.76,60500-GENERAL MATERIALS,STREETLY CREMATORIUM,Supplies & Services,Revenue
Walsall Council,http://opendatacommunities.org/id/metropolitan-district-council/walsall,WC106-562,11/02/2021,Economy & Environment,ASHDOWN SUPPLIES,29/07/2019,293.76,60500-GENERAL MATERIALS,STREETLY CREMATORIUM,Supplies & Services,Revenue
Walsall Council,http://opendatacommunities.org/id/metropolitan-district-council/walsall,WC106-563,12/02/2021,Adult Social Care,REDACTED,10/07/2019,"1,221.60",73506-DIRECT PAYMENT,LEARNING DISABILITY SUPPORT,Third Party Payments,Revenue
Walsall Council,http://opendatacommunities.org/id/metropolitan-district-council/walsall,WC106-564,13/02/2021,Economy & Environment,ASKEWS AND HOLTS LIBRARY SERVICES LTD,11/07/2019,"1,284.12",60501-LIBRARY BOOKS,LIBRARY MANAGEMENT,Supplies & Services,Revenue
Walsall Council,http://opendatacommunities.org/id/metropolitan-district-council/walsall,WC106-565,14/02/2021,Economy & Environment,ASKEWS AND HOLTS LIBRARY SERVICES LTD,24/07/2019,"1,889.57",60501-LIBRARY BOOKS,LIBRARY MANAGEMENT,Supplies & Services,Revenue
Walsall Council,http://opendatacommunities.org/id/metropolitan-district-council/walsall,WC106-566,15/02/2021,Economy & Environment,ASKEWS AND HOLTS LIBRARY SERVICES LTD,01/07/2019,"1,904.71",60501-LIBRARY BOOKS,LIBRARY MANAGEMENT,Supplies & Services,Revenue
Walsall Council,http://opendatacommunities.org/id/metropolitan-district-council/walsall,WC106-567,16/02/2021,Economy & Environment,ASKEWS AND HOLTS LIBRARY SERVICES LTD,09/07/2019,"2,163.99",60501-LIBRARY BOOKS,LIBRARY MANAGEMENT,Supplies & Services,Revenue
Walsall Council,http://opendatacommunities.org/id/metropolitan-district-council/walsall,WC106-568,17/02/2021,Economy & Environment,ASKEWS AND HOLTS LIBRARY SERVICES LTD,18/07/2019,"3,100.00",60501-LIBRARY BOOKS,LIBRARY MANAGEMENT,Supplies & Services,Revenue
Walsall Council,http://opendatacommunities.org/id/metropolitan-district-council/walsall,WC106-569,18/02/2021,Adult Social Care,REDACTED,10/07/2019,775.20,73506-DIRECT PAYMENT,PHYSICAL SUPPORT,Third Party Payments,Revenue
Walsall Council,http://opendatacommunities.org/id/metropolitan-district-council/walsall,WC106-570,19/02/2021,Childrens,ASPIRE PEOPLE LTD.,01/07/2019,440.00,63000-PROFESSIONAL FEES AND SERVICES,BEHAVIOUR SUPPORT SERVICE (INCOME),Supplies & Services,Revenue
Walsall Council,http://opendatacommunities.org/id/metropolitan-district-council/walsall,WC106-571,20/02/2021,Resources and Transformation,ASSOCIATION OF ELECTORAL ADMINISTRATORS,04/07/2019,"1,585.00",30030-EXTERNAL TRAINING,ELECTORAL SERVICES,Employees,Revenue
Walsall Council,http://opendatacommunities.org/id/metropolitan-district-council/walsall,WC106-572,21/02/2021,Resources and Transformation,ASSOCIATION OF ELECTORAL ADMINISTRATORS,04/07/2019,"1,585.00",30030-EXTERNAL TRAINING,ELECTORAL SERVICES,Employees,Revenue
Walsall Council,http://opendatacommunities.org/id/metropolitan-district-council/walsall,WC106-573,22/02/2021,Adult Social Care,ASSURED HEALTHCARE SOLUTIONS (PARK FARM LODGE),22/07/2019,"2,034.44",73500-RESIDENTIAL,PHYSICAL SUPPORT,Third Party Payments,Revenue
Walsall Council,http://opendatacommunities.org/id/metropolitan-district-council/walsall,WC106-574,23/02/2021,Economy & Environment,ATKINS LIMITED,01/07/2019,"5,377.28",73025-PROFESSIONAL SERVICES-PRIV CONTRACTOR & OTHER AGENCIES,SECTION 38 OF HIGHWAYS ACT - SUPERVISION,Third Party Payments,Revenue
Walsall Council,http://opendatacommunities.org/id/metropolitan-district-council/walsall,WC106-575,24/02/2021,Childrens,ATTACHMENT WORKS LTD,01/07/2019,"4,435.00",74009-ADOPTION ALLOWANCE,ADOPTION TEAM,Transfer Payments,Revenue
Walsall Council,http://opendatacommunities.org/id/metropolitan-district-council/walsall,WC106-576,25/02/2021,Childrens,ATTACHMENT WORKS LTD,01/07/2019,"4,541.25",74009-ADOPTION ALLOWANCE,ADOPTION TEAM,Transfer Payments,Revenue
Walsall Council,http://opendatacommunities.org/id/metropolitan-district-council/walsall,WC106-577,26/02/2021,Childrens,ATTACHMENT WORKS LTD,01/07/2019,"4,605.00",74009-ADOPTION ALLOWANCE,ADOPTION TEAM,Transfer Payments,Revenue
Walsall Council,http://opendatacommunities.org/id/metropolitan-district-council/walsall,WC106-578,27/02/2021,Economy & Environment,AUDIENCE SYSTEMS LTD,08/07/2019,"2,366.79",40000-OPERATIONAL MAINTENANCE,WALSALL ARENA AND ARTS CENTRE,Premises,Revenue
Walsall Council,http://opendatacommunities.org/id/metropolitan-district-council/walsall,WC106-579,28/02/2021,Resources and Transformation,AURORA GRAPHICS & DISPLAYS LTD,18/07/2019,"1,370.50",62008-OUTWORK PRINT & DESIGN,PRINTING SERVICES,Supplies & Services,Revenue
Walsall Council,http://opendatacommunities.org/id/metropolitan-district-council/walsall,WC106-580,01/03/2021,Adult Social Care,AUTISM WEST MIDLANDS,22/07/2019,"7,172.48",73500-RESIDENTIAL,LEARNING DISABILITY SUPPORT,Third Party Payments,Revenue
Walsall Council,http://opendatacommunities.org/id/metropolitan-district-council/walsall,WC106-581,02/03/2021,Adult Social Care,AUTISM WEST MIDLANDS 001,22/07/2019,"4,794.44",73500-RESIDENTIAL,LEARNING DISABILITY SUPPORT,Third Party Payments,Revenue
Walsall Council,http://opendatacommunities.org/id/metropolitan-district-council/walsall,WC106-582,03/03/2021,Economy & Environment,AUTORITE INDUSTRIES (WILLENHALL)LTD,01/07/2019,260.00,62515-MISCELLANEOUS SUPPLIES,REMOVAL OF UNAUTHORISED ENCAMPMENTS,Supplies & Services,Revenue
Walsall Council,http://opendatacommunities.org/id/metropolitan-district-council/walsall,WC106-583,04/03/2021,Economy & Environment,AUTORITE INDUSTRIES (WILLENHALL)LTD,29/07/2019,352.50,73025-PROFESSIONAL SERVICES-PRIV CONTRACTOR & OTHER AGENCIES,FLEET,Third Party Payments,Revenue
Walsall Council,http://opendatacommunities.org/id/metropolitan-district-council/walsall,WC106-584,05/03/2021,Adult Social Care,REDACTED,10/07/2019,426.68,73506-DIRECT PAYMENT,SUPPORT WITH MEMORY & COGNITION,Third Party Payments,Revenue
Walsall Council,http://opendatacommunities.org/id/metropolitan-district-council/walsall,WC106-585,06/03/2021,Adult Social Care,REDACTED,10/07/2019,"3,182.40",73506-DIRECT PAYMENT,LEARNING DISABILITY SUPPORT,Third Party Payments,Revenue
Walsall Council,http://opendatacommunities.org/id/metropolitan-district-council/walsall,WC106-586,07/03/2021,Childrens,REDACTED,12/07/2019,"1,150.00",60500-GENERAL MATERIALS,PRIMARY CONSULTATIVE GROUP,Supplies & Services,Revenue
Walsall Council,http://opendatacommunities.org/id/metropolitan-district-council/walsall,WC106-587,08/03/2021,Childrens,REDACTED,15/07/2019,"1,333.00",60500-GENERAL MATERIALS,PRIMARY CONSULTATIVE GROUP,Supplies & Services,Revenue
Walsall Council,http://opendatacommunities.org/id/metropolitan-district-council/walsall,WC106-588,09/03/2021,Childrens,REDACTED,18/07/2019,"1,334.00",60500-GENERAL MATERIALS,PRIMARY CONSULTATIVE GROUP,Supplies & Services,Revenue
Walsall Council,http://opendatacommunities.org/id/metropolitan-district-council/walsall,WC106-589,10/03/2021,Childrens,REDACTED,03/07/2019,464.00,76000-TRANSFER PAYMENTS - SOCIAL SERVICES CLIENTS,TRANSITION AND LEAVING CARE PLACEMENTS,Transfer Payments,Revenue
Walsall Council,http://opendatacommunities.org/id/metropolitan-district-council/walsall,WC106-590,11/03/2021,Childrens,REDACTED,17/07/2019,464.00,76000-TRANSFER PAYMENTS - SOCIAL SERVICES CLIENTS,TRANSITION AND LEAVING CARE PLACEMENTS,Transfer Payments,Revenue
Walsall Council,http://opendatacommunities.org/id/metropolitan-district-council/walsall,WC106-591,12/03/2021,Childrens,REDACTED,31/07/2019,464.00,76000-TRANSFER PAYMENTS - SOCIAL SERVICES CLIENTS,TRANSITION AND LEAVING CARE PLACEMENTS,Transfer Payments,Revenue
Walsall Council,http://opendatacommunities.org/id/metropolitan-district-council/walsall,WC106-592,13/03/2021,Economy & Environment,BAART HARRIES NEWALL,10/07/2019,990.00,63000-PROFESSIONAL FEES AND SERVICES,SHOPS AND COMMERCIAL PREMISES,Supplies & Services,Revenue
Walsall Council,http://opendatacommunities.org/id/metropolitan-district-council/walsall,WC106-593,14/03/2021,Adult Social Care,BACK CARE SOLUTIONS LTD,09/07/2019,946.99,60000-FURNITURE & EQUIPMENT,INTERMEDIATE CARE SERVICE,Supplies & Services,Revenue
Walsall Council,http://opendatacommunities.org/id/metropolitan-district-council/walsall,WC106-594,15/03/2021,Economy & Environment,BAKER HALL PARTNERSHIP,24/07/2019,"1,098.75",63000-PROFESSIONAL FEES AND SERVICES,BUILDING CONTROL REVENUE FUNDED,Supplies & Services,Revenue
Walsall Council,http://opendatacommunities.org/id/metropolitan-district-council/walsall,WC106-595,16/03/2021,Adult Social Care,REDACTED,10/07/2019,"3,585.24",73506-DIRECT PAYMENT,LEARNING DISABILITY SUPPORT,Third Party Payments,Revenue
Walsall Council,http://opendatacommunities.org/id/metropolitan-district-council/walsall,WC106-596,17/03/2021,Childrens,BALTIMORE CONSULTING LTD,10/07/2019,"2,281.50",34305-AGENCY STAFF-EMPLOYEES,GENERAL MANAGEMENT SUPPORT (INC LEGAL),Employees,Revenue
Walsall Council,http://opendatacommunities.org/id/metropolitan-district-council/walsall,WC106-597,18/03/2021,Childrens,BALTIMORE CONSULTING LTD,10/07/2019,"2,281.50",34305-AGENCY STAFF-EMPLOYEES,GENERAL MANAGEMENT SUPPORT (INC LEGAL),Employees,Revenue
Walsall Council,http://opendatacommunities.org/id/metropolitan-district-council/walsall,WC106-598,19/03/2021,Childrens,BALTIMORE CONSULTING LTD,11/07/2019,"2,281.50",34305-AGENCY STAFF-EMPLOYEES,GENERAL MANAGEMENT SUPPORT (INC LEGAL),Employees,Revenue
Walsall Council,http://opendatacommunities.org/id/metropolitan-district-council/walsall,WC106-599,20/03/2021,Adult Social Care,BALTIMORE CONSULTING LTD,01/07/2019,"3,286.00",63102-CONSULTANTS FEES - CORPORATE,SENIOR MANAGEMENT TEAM,Supplies & Services,Revenue
Walsall Council,http://opendatacommunities.org/id/metropolitan-district-council/walsall,WC106-600,21/03/2021,Childrens,BALTIMORE CONSULTING LTD,29/07/2019,"3,802.50",34305-AGENCY STAFF-EMPLOYEES,GENERAL MANAGEMENT SUPPORT (INC LEGAL),Employees,Revenue
Walsall Council,http://opendatacommunities.org/id/metropolitan-district-council/walsall,WC106-601,22/03/2021,Adult Social Care,BALTIMORE CONSULTING LTD,03/07/2019,"4,107.50",63102-CONSULTANTS FEES - CORPORATE,SENIOR MANAGEMENT TEAM,Supplies & Services,Revenue
Walsall Council,http://opendatacommunities.org/id/metropolitan-district-council/walsall,WC106-602,23/03/2021,Adult Social Care,BALTIMORE CONSULTING LTD,24/07/2019,"4,107.50",63102-CONSULTANTS FEES - CORPORATE,SENIOR MANAGEMENT TEAM,Supplies & Services,Revenue
Walsall Council,http://opendatacommunities.org/id/metropolitan-district-council/walsall,WC106-603,24/03/2021,Adult Social Care,BALTIMORE CONSULTING LTD,11/07/2019,"4,929.00",63102-CONSULTANTS FEES - CORPORATE,SENIOR MANAGEMENT TEAM,Supplies & Services,Revenue
Walsall Council,http://opendatacommunities.org/id/metropolitan-district-council/walsall,WC106-604,25/03/2021,Adult Social Care,REDACTED,10/07/2019,"1,582.88",73506-DIRECT PAYMENT,PHYSICAL SUPPORT,Third Party Payments,Revenue
Walsall Council,http://opendatacommunities.org/id/metropolitan-district-council/walsall,WC106-605,26/03/2021,Childrens,REDACTED,01/07/2019,340.00,74508-INTERNAL FOSTER CARERS-CARER FEES,FAMILY & FRIENDS FOSTER CARE PROVISION,Transfer Payments,Revenue
Walsall Council,http://opendatacommunities.org/id/metropolitan-district-council/walsall,WC106-606,27/03/2021,Childrens,REDACTED,29/07/2019,340.00,74508-INTERNAL FOSTER CARERS-CARER FEES,FAMILY & FRIENDS FOSTER CARE PROVISION,Transfer Payments,Revenue
Walsall Council,http://opendatacommunities.org/id/metropolitan-district-council/walsall,WC106-607,28/03/2021,Childrens,REDACTED,01/07/2019,540.00,74501-MAINTENANCE ALLOWANCE-FOSTER CARERS,FAMILY & FRIENDS FOSTER CARE PROVISION,Transfer Payments,Revenue
Walsall Council,http://opendatacommunities.org/id/metropolitan-district-council/walsall,WC106-608,29/03/2021,Childrens,REDACTED,29/07/2019,540.00,74501-MAINTENANCE ALLOWANCE-FOSTER CARERS,FAMILY & FRIENDS FOSTER CARE PROVISION,Transfer Payments,Revenue
Walsall Council,http://opendatacommunities.org/id/metropolitan-district-council/walsall,WC106-609,30/03/2021,Economy & Environment,BARCHAM TREES PLC,15/07/2019,249.00,60500-GENERAL MATERIALS,SECTION 106,Supplies & Services,Revenue
Walsall Council,http://opendatacommunities.org/id/metropolitan-district-council/walsall,WC106-610,31/03/2021,Economy & Environment,BARCHAM TREES PLC,02/07/2019,265.00,60500-GENERAL MATERIALS,SECTION 106,Supplies & Services,Revenue
Walsall Council,http://opendatacommunities.org/id/metropolitan-district-council/walsall,WC106-611,01/04/2021,Childrens,BARNARDOS SERVICES LTD,12/07/2019,"3,116.40",74037-INDEPENDENT FOSTER CARE-OTH AGENCY PROVISION,EXTERNAL FOSTER CARE PROVISION,Third Party Payments,Revenue
Walsall Council,http://opendatacommunities.org/id/metropolitan-district-council/walsall,WC106-612,02/04/2021,Adult Social Care,BARTHOLAMEW LODGE CARE HOME,22/07/2019,"2,937.88",73503-NURSING EMI,PHYSICAL SUPPORT,Third Party Payments,Revenue
Walsall Council,http://opendatacommunities.org/id/metropolitan-district-council/walsall,WC106-613,03/04/2021,Childrens,BASE 25,10/07/2019,312.00,63000-PROFESSIONAL FEES AND SERVICES,VIRTUAL SCHOOL CENTRAL PUPIL PREMIUM,Supplies & Services,Revenue
Walsall Council,http://opendatacommunities.org/id/metropolitan-district-council/walsall,WC106-614,04/04/2021,Economy & Environment,BAT FABRICATIONS LTD,11/07/2019,360.00,60500-GENERAL MATERIALS,INFRASTRUCTURE MAINTENANCE,Supplies & Services,Revenue
Walsall Council,http://opendatacommunities.org/id/metropolitan-district-council/walsall,WC106-615,05/04/2021,Childrens,BAT FABRICATIONS LTD,17/07/2019,400.00,01006-SITE WORKS MAIN CONTRACTORS,CFR 1297 OLD HALL SPECIAL SCHOOL EXPANSION,Capital,Capital
Walsall Council,http://opendatacommunities.org/id/metropolitan-district-council/walsall,WC106-616,06/04/2021,Economy & Environment,BAT FABRICATIONS LTD,11/07/2019,920.00,60500-GENERAL MATERIALS,INFRASTRUCTURE MAINTENANCE,Supplies & Services,Revenue
Walsall Council,http://opendatacommunities.org/id/metropolitan-district-council/walsall,WC106-617,07/04/2021,Economy & Environment,BAT FABRICATIONS LTD,01/07/2019,"1,000.00",40000-OPERATIONAL MAINTENANCE,SHOPS AND COMMERCIAL PREMISES,Premises,Revenue
Walsall Council,http://opendatacommunities.org/id/metropolitan-district-council/walsall,WC106-618,08/04/2021,Economy & Environment,BAT FABRICATIONS LTD,11/07/2019,"1,850.00",60500-GENERAL MATERIALS,INFRASTRUCTURE MAINTENANCE,Supplies & Services,Revenue
Walsall Council,http://opendatacommunities.org/id/metropolitan-district-council/walsall,WC106-619,09/04/2021,Childrens,BAT FABRICATIONS LTD,05/07/2019,"28,777.00",01006-SITE WORKS MAIN CONTRACTORS,CFR 1348 HOLY TRINITY SAFEGUARDING,Capital,Capital
Walsall Council,http://opendatacommunities.org/id/metropolitan-district-council/walsall,WC106-620,10/04/2021,Economy & Environment,BATLEYS,18/07/2019,273.82,61009-BEVERAGES-PROVISIONS,WALSALL ARENA AND ARTS CENTRE,Supplies & Services,Revenue
Walsall Council,http://opendatacommunities.org/id/metropolitan-district-council/walsall,WC106-621,11/04/2021,Resources and Transformation,BATLEYS,01/07/2019,903.57,61016-FOOD AND BEVERAGES-PROVISIONS,WALSALL TOWN HALL,Supplies & Services,Revenue
Walsall Council,http://opendatacommunities.org/id/metropolitan-district-council/walsall,WC106-622,12/04/2021,Economy & Environment,BEE TEE ALARMS LTD,09/07/2019,721.83,60000-FURNITURE & EQUIPMENT,INFRASTRUCTURE MAINTENANCE,Supplies & Services,Revenue
Walsall Council,http://opendatacommunities.org/id/metropolitan-district-council/walsall,WC106-623,13/04/2021,Adult Social Care,BELVIDERE COURT,22/07/2019,"2,104.04",73502-NURSING,MENTAL HEALTH SUPPORT,Third Party Payments,Revenue
Walsall Council,http://opendatacommunities.org/id/metropolitan-district-council/walsall,WC106-624,14/04/2021,Adult Social Care,BELVIDERE COURT,22/07/2019,"2,143.72",73502-NURSING,MENTAL HEALTH SUPPORT,Third Party Payments,Revenue
Walsall Council,http://opendatacommunities.org/id/metropolitan-district-council/walsall,WC106-625,15/04/2021,Adult Social Care,BELVIDERE COURT,22/07/2019,"2,314.44",73503-NURSING EMI,PHYSICAL SUPPORT,Third Party Payments,Revenue
Walsall Council,http://opendatacommunities.org/id/metropolitan-district-council/walsall,WC106-626,16/04/2021,Adult Social Care,BELVIDERE COURT,22/07/2019,"2,314.44",73503-NURSING EMI,PHYSICAL SUPPORT,Third Party Payments,Revenue
Walsall Council,http://opendatacommunities.org/id/metropolitan-district-council/walsall,WC106-627,17/04/2021,Adult Social Care,REDACTED,10/07/2019,"2,569.64",73506-DIRECT PAYMENT,LEARNING DISABILITY SUPPORT,Third Party Payments,Revenue
Walsall Council,http://opendatacommunities.org/id/metropolitan-district-council/walsall,WC106-628,18/04/2021,Adult Social Care,BENTLEY COURT PRIORY,22/07/2019,"1,684.34",73503-NURSING EMI,PHYSICAL SUPPORT,Third Party Payments,Revenue
Walsall Council,http://opendatacommunities.org/id/metropolitan-district-council/walsall,WC106-629,19/04/2021,Adult Social Care,BENTLEY COURT PRIORY,22/07/2019,"2,143.72",73502-NURSING,PHYSICAL SUPPORT,Third Party Payments,Revenue
Walsall Council,http://opendatacommunities.org/id/metropolitan-district-council/walsall,WC106-630,20/04/2021,Adult Social Care,BENTLEY COURT PRIORY,22/07/2019,"2,358.08",73503-NURSING EMI,SUPPORT WITH MEMORY & COGNITION,Third Party Payments,Revenue
Walsall Council,http://opendatacommunities.org/id/metropolitan-district-council/walsall,WC106-631,21/04/2021,Adult Social Care,BENTLEY COURT PRIORY,22/07/2019,"2,358.08",73503-NURSING EMI,PHYSICAL SUPPORT,Third Party Payments,Revenue
Walsall Council,http://opendatacommunities.org/id/metropolitan-district-council/walsall,WC106-632,22/04/2021,Adult Social Care,BENTLEY COURT PRIORY,22/07/2019,"2,358.08",73503-NURSING EMI,SOCIAL SUPPORT,Third Party Payments,Revenue
Walsall Council,http://opendatacommunities.org/id/metropolitan-district-council/walsall,WC106-633,23/04/2021,Adult Social Care,BENTLEY COURT PRIORY,22/07/2019,"2,358.08",73503-NURSING EMI,SUPPORT WITH MEMORY & COGNITION,Third Party Payments,Revenue
Walsall Council,http://opendatacommunities.org/id/metropolitan-district-council/walsall,WC106-634,24/04/2021,Adult Social Care,BENTLEY COURT PRIORY,22/07/2019,"2,358.08",73503-NURSING EMI,PHYSICAL SUPPORT,Third Party Payments,Revenue
Walsall Council,http://opendatacommunities.org/id/metropolitan-district-council/walsall,WC106-635,25/04/2021,Adult Social Care,BENTLEY COURT PRIORY,22/07/2019,"2,358.08",73503-NURSING EMI,SOCIAL SUPPORT,Third Party Payments,Revenue
Walsall Council,http://opendatacommunities.org/id/metropolitan-district-council/walsall,WC106-636,26/04/2021,Adult Social Care,BENTLEY COURT PRIORY,22/07/2019,"2,358.08",73503-NURSING EMI,MENTAL HEALTH SUPPORT,Third Party Payments,Revenue
Walsall Council,http://opendatacommunities.org/id/metropolitan-district-council/walsall,WC106-637,27/04/2021,Adult Social Care,BENTLEY COURT PRIORY,22/07/2019,"2,358.08",73503-NURSING EMI,PHYSICAL SUPPORT,Third Party Payments,Revenue
Walsall Council,http://opendatacommunities.org/id/metropolitan-district-council/walsall,WC106-638,28/04/2021,Adult Social Care,BENTLEY COURT PRIORY,22/07/2019,"2,358.08",73503-NURSING EMI,PHYSICAL SUPPORT,Third Party Payments,Revenue
Walsall Council,http://opendatacommunities.org/id/metropolitan-district-council/walsall,WC106-639,29/04/2021,Childrens,REDACTED,29/07/2019,471.60,66505-OTHER-GRANTS TO OTHER ORGS,EARLY YEARS - 2 YR OLDS,Third Party Payments,Revenue
Walsall Council,http://opendatacommunities.org/id/metropolitan-district-council/walsall,WC106-640,30/04/2021,Adult Social Care,REDACTED,10/07/2019,"1,777.92",73506-DIRECT PAYMENT,PHYSICAL SUPPORT,Third Party Payments,Revenue
Walsall Council,http://opendatacommunities.org/id/metropolitan-district-council/walsall,WC106-641,01/05/2021,Adult Social Care,REDACTED,10/07/2019,"1,974.00",73506-DIRECT PAYMENT,PHYSICAL SUPPORT,Third Party Payments,Revenue
Walsall Council,http://opendatacommunities.org/id/metropolitan-district-council/walsall,WC106-642,02/05/2021,Economy & Environment,BESCOT STADIUM SUNDAY MARKET LTD,01/07/2019,"2,600.00",73025-PROFESSIONAL SERVICES-PRIV CONTRACTOR & OTHER AGENCIES,WILLENHALL MARKET,Third Party Payments,Revenue
Walsall Council,http://opendatacommunities.org/id/metropolitan-district-council/walsall,WC106-643,03/05/2021,Economy & Environment,BESCOT STADIUM SUNDAY MARKET LTD,29/07/2019,"2,600.00",73025-PROFESSIONAL SERVICES-PRIV CONTRACTOR & OTHER AGENCIES,WILLENHALL MARKET,Third Party Payments,Revenue
Walsall Council,http://opendatacommunities.org/id/metropolitan-district-council/walsall,WC106-644,04/05/2021,Economy & Environment,BETHEL UNITED CHURCH,01/07/2019,"1,641.28",63253-PAYMENT TO CONTRACTOR,MENTAL HEALTH,Third Party Payments,Revenue
Walsall Council,http://opendatacommunities.org/id/metropolitan-district-council/walsall,WC106-645,05/05/2021,Adult Social Care,BETHPHAGE.,22/07/2019,37.36,73508-COMMUNITY SUPPORTED LIVING/SUPPORTED ACCOMMODATION,LEARNING DISABILITY SUPPORT,Third Party Payments,Revenue
Walsall Council,http://opendatacommunities.org/id/metropolitan-district-council/walsall,WC106-646,06/05/2021,Adult Social Care,BETHPHAGE.,22/07/2019,462.15,73507-DOMICILIARY CARE,LEARNING DISABILITY SUPPORT,Third Party Payments,Revenue
Walsall Council,http://opendatacommunities.org/id/metropolitan-district-council/walsall,WC106-647,07/05/2021,Adult Social Care,BETHPHAGE.,22/07/2019,536.24,73507-DOMICILIARY CARE,LEARNING DISABILITY SUPPORT,Third Party Payments,Revenue
Walsall Council,http://opendatacommunities.org/id/metropolitan-district-council/walsall,WC106-648,08/05/2021,Adult Social Care,BETHPHAGE.,22/07/2019,616.20,73507-DOMICILIARY CARE,LEARNING DISABILITY SUPPORT,Third Party Payments,Revenue
Walsall Council,http://opendatacommunities.org/id/metropolitan-district-council/walsall,WC106-649,09/05/2021,Adult Social Care,BETHPHAGE.,22/07/2019,883.52,73508-COMMUNITY SUPPORTED LIVING/SUPPORTED ACCOMMODATION,LEARNING DISABILITY SUPPORT,Third Party Payments,Revenue
Walsall Council,http://opendatacommunities.org/id/metropolitan-district-council/walsall,WC106-650,10/05/2021,Adult Social Care,BETHPHAGE.,22/07/2019,888.48,73508-COMMUNITY SUPPORTED LIVING/SUPPORTED ACCOMMODATION,LEARNING DISABILITY SUPPORT,Third Party Payments,Revenue
Walsall Council,http://opendatacommunities.org/id/metropolitan-district-council/walsall,WC106-651,11/05/2021,Adult Social Care,BETHPHAGE.,22/07/2019,"1,026.00",73508-COMMUNITY SUPPORTED LIVING/SUPPORTED ACCOMMODATION,LEARNING DISABILITY SUPPORT,Third Party Payments,Revenue
Walsall Council,http://opendatacommunities.org/id/metropolitan-district-council/walsall,WC106-652,12/05/2021,Adult Social Care,BETHPHAGE.,22/07/2019,"1,296.76",73508-COMMUNITY SUPPORTED LIVING/SUPPORTED ACCOMMODATION,LEARNING DISABILITY SUPPORT,Third Party Payments,Revenue
Walsall Council,http://opendatacommunities.org/id/metropolitan-district-council/walsall,WC106-653,13/05/2021,Adult Social Care,BETHPHAGE.,22/07/2019,"1,311.00",73508-COMMUNITY SUPPORTED LIVING/SUPPORTED ACCOMMODATION,LEARNING DISABILITY SUPPORT,Third Party Payments,Revenue
Walsall Council,http://opendatacommunities.org/id/metropolitan-district-council/walsall,WC106-654,14/05/2021,Adult Social Care,BETHPHAGE.,22/07/2019,"1,322.24",73507-DOMICILIARY CARE,LEARNING DISABILITY SUPPORT,Third Party Payments,Revenue
Walsall Council,http://opendatacommunities.org/id/metropolitan-district-council/walsall,WC106-655,15/05/2021,Adult Social Care,BETHPHAGE.,22/07/2019,"1,336.76",73507-DOMICILIARY CARE,LEARNING DISABILITY SUPPORT,Third Party Payments,Revenue
Walsall Council,http://opendatacommunities.org/id/metropolitan-district-council/walsall,WC106-656,16/05/2021,Adult Social Care,BETHPHAGE.,22/07/2019,"2,693.24",73508-COMMUNITY SUPPORTED LIVING/SUPPORTED ACCOMMODATION,LEARNING DISABILITY SUPPORT,Third Party Payments,Revenue
Walsall Council,http://opendatacommunities.org/id/metropolitan-district-council/walsall,WC106-657,17/05/2021,Adult Social Care,BETHPHAGE.,22/07/2019,"2,693.24",73508-COMMUNITY SUPPORTED LIVING/SUPPORTED ACCOMMODATION,LEARNING DISABILITY SUPPORT,Third Party Payments,Revenue
Walsall Council,http://opendatacommunities.org/id/metropolitan-district-council/walsall,WC106-658,18/05/2021,Adult Social Care,BETHPHAGE.,22/07/2019,"3,109.44",73507-DOMICILIARY CARE,LEARNING DISABILITY SUPPORT,Third Party Payments,Revenue
Walsall Council,http://opendatacommunities.org/id/metropolitan-district-council/walsall,WC106-659,19/05/2021,Adult Social Care,BETHPHAGE.,22/07/2019,"5,744.04",73508-COMMUNITY SUPPORTED LIVING/SUPPORTED ACCOMMODATION,MENTAL HEALTH SUPPORT,Third Party Payments,Revenue
Walsall Council,http://opendatacommunities.org/id/metropolitan-district-council/walsall,WC106-660,20/05/2021,Adult Social Care,BETHPHAGE.,22/07/2019,"5,763.84",73508-COMMUNITY SUPPORTED LIVING/SUPPORTED ACCOMMODATION,MENTAL HEALTH SUPPORT,Third Party Payments,Revenue
Walsall Council,http://opendatacommunities.org/id/metropolitan-district-council/walsall,WC106-661,21/05/2021,Adult Social Care,REDACTED,10/07/2019,949.52,73506-DIRECT PAYMENT,PHYSICAL SUPPORT,Third Party Payments,Revenue
Walsall Council,http://opendatacommunities.org/id/metropolitan-district-council/walsall,WC106-662,22/05/2021,Resources and Transformation,BFA SAFETY TRAINING,11/07/2019,315.00,30030-EXTERNAL TRAINING,HEALTH & SAFETY,Employees,Revenue
Walsall Council,http://opendatacommunities.org/id/metropolitan-district-council/walsall,WC106-663,23/05/2021,Resources and Transformation,BFA SAFETY TRAINING,11/07/2019,700.00,30030-EXTERNAL TRAINING,HEALTH & SAFETY,Employees,Revenue
Walsall Council,http://opendatacommunities.org/id/metropolitan-district-council/walsall,WC106-664,24/05/2021,Resources and Transformation,BFA SAFETY TRAINING,11/07/2019,850.00,30030-EXTERNAL TRAINING,HEALTH & SAFETY,Employees,Revenue
Walsall Council,http://opendatacommunities.org/id/metropolitan-district-council/walsall,WC106-665,25/05/2021,Childrens,BIG YELLOW SELF STORAGE COMPANY LTD,18/07/2019,230.00,63000-PROFESSIONAL FEES AND SERVICES,SAFEGUARDING & FAMILY SUPPORT,Supplies & Services,Revenue
Walsall Council,http://opendatacommunities.org/id/metropolitan-district-council/walsall,WC106-666,26/05/2021,Childrens,REDACTED,08/07/2019,517.92,73506-DIRECT PAYMENT,FAMILY SUPPORT - DIRECT PAYMENTS,Third Party Payments,Revenue
Walsall Council,http://opendatacommunities.org/id/metropolitan-district-council/walsall,WC106-667,27/05/2021,Childrens,REDACTED,30/07/2019,517.92,73506-DIRECT PAYMENT,FAMILY SUPPORT - DIRECT PAYMENTS,Third Party Payments,Revenue
Walsall Council,http://opendatacommunities.org/id/metropolitan-district-council/walsall,WC106-668,28/05/2021,Childrens,REDACTED,08/07/2019,489.60,73506-DIRECT PAYMENT,FAMILY SUPPORT - DIRECT PAYMENTS,Third Party Payments,Revenue
Walsall Council,http://opendatacommunities.org/id/metropolitan-district-council/walsall,WC106-669,29/05/2021,Childrens,REDACTED,30/07/2019,489.60,73506-DIRECT PAYMENT,FAMILY SUPPORT - DIRECT PAYMENTS,Third Party Payments,Revenue
Walsall Council,http://opendatacommunities.org/id/metropolitan-district-council/walsall,WC106-670,30/05/2021,Economy & Environment,BILLY ROSS WHOLESALE,18/07/2019,248.28,60500-GENERAL MATERIALS,LEATHER MUSEUM SHOP STOCK,Supplies & Services,Revenue
Walsall Council,http://opendatacommunities.org/id/metropolitan-district-council/walsall,WC106-671,31/05/2021,Childrens,BIRCHILLS C OF E COMMUNITY ACADEMY,04/07/2019,286.00,77300-ISB-FORMULA ALLOCATION,BIRCHILLS CE COMMUNITY ACADEMY,Transfer Payments,Revenue
Walsall Council,http://opendatacommunities.org/id/metropolitan-district-council/walsall,WC106-672,01/06/2021,Childrens,BIRCHILLS C OF E COMMUNITY ACADEMY,04/07/2019,286.00,77300-ISB-FORMULA ALLOCATION,BIRCHILLS CE COMMUNITY ACADEMY,Transfer Payments,Revenue
Walsall Council,http://opendatacommunities.org/id/metropolitan-district-council/walsall,WC106-673,02/06/2021,Childrens,BIRMINGHAM CITY COUNCIL,16/07/2019,"1,515.86",52000-WITH DRIVER-HIRE OF VEHICLES,HOME TO SCHOOL TRANSPORT,Transport,Revenue
Walsall Council,http://opendatacommunities.org/id/metropolitan-district-council/walsall,WC106-674,03/06/2021,Childrens,BIRMINGHAM CITY COUNCIL,12/07/2019,"1,956.16",74037-INDEPENDENT FOSTER CARE-OTH AGENCY PROVISION,EXTERNAL FOSTER CARE PROVISION,Third Party Payments,Revenue
Walsall Council,http://opendatacommunities.org/id/metropolitan-district-council/walsall,WC106-675,04/06/2021,Childrens,BIRMINGHAM CITY COUNCIL,01/07/2019,"7,690.06",66502-TOP UP FUNDING -GRANTS TO SCHOOLS,MAINTAINED PROVIDERS,Third Party Payments,Revenue
Walsall Council,http://opendatacommunities.org/id/metropolitan-district-council/walsall,WC106-676,05/06/2021,Economy & Environment,BLACK COUNTRY CONSORTIUM LIMITED,16/07/2019,"55,371.82",63102-CONSULTANTS FEES - CORPORATE,GROWTH DEAL REVENUE,Supplies & Services,Revenue
Walsall Council,http://opendatacommunities.org/id/metropolitan-district-council/walsall,WC106-677,06/06/2021,Resources and Transformation,BLACK COUNTRY INNOVATE CIC,01/07/2019,"2,500.00",63000-PROFESSIONAL FEES AND SERVICES,INTEGRATED COMMUNITIES PROGRAMME,Supplies & Services,Revenue
Walsall Council,http://opendatacommunities.org/id/metropolitan-district-council/walsall,WC106-678,07/06/2021,Economy & Environment,BLACK COUNTRY TRAINING LTD T/A BRITISH HGV TRAINING GROUP,04/07/2019,346.00,30030-EXTERNAL TRAINING,FLEET,Employees,Revenue
Walsall Council,http://opendatacommunities.org/id/metropolitan-district-council/walsall,WC106-679,08/06/2021,Childrens,BLACK COUNTRY WOMENS AID,10/07/2019,"18,466.27",63000-PROFESSIONAL FEES AND SERVICES,TOXIC TRIO,Supplies & Services,Revenue
Walsall Council,http://opendatacommunities.org/id/metropolitan-district-council/walsall,WC106-680,09/06/2021,Childrens,BLACK COUNTRY WOMENS AID,10/07/2019,"18,466.27",63000-PROFESSIONAL FEES AND SERVICES,TOXIC TRIO,Supplies & Services,Revenue
Walsall Council,http://opendatacommunities.org/id/metropolitan-district-council/walsall,WC106-681,10/06/2021,Childrens,BLACK COUNTRY WOMENS AID,22/07/2019,"22,789.02",77000-TRANSFER PAYMENTS-MANDATORY AWARDS,TOXIC TRIO,Transfer Payments,Revenue
Walsall Council,http://opendatacommunities.org/id/metropolitan-district-council/walsall,WC106-682,11/06/2021,Childrens,BLAKENALL HEATH JMI SCHOOL,16/07/2019,"56,675.00",77302-ISB-SCHOOL STANDARDS GRANT,BLAKENALL HEATH JUNIOR SCHOOL,Transfer Payments,Revenue
Walsall Council,http://opendatacommunities.org/id/metropolitan-district-council/walsall,WC106-683,12/06/2021,Childrens,BLOSSOMS CHILDCARE NURSERY LTD,04/07/2019,"1,089.00",77300-ISB-FORMULA ALLOCATION,OUT OF BOROUGH SCHOOLS,Transfer Payments,Revenue
Walsall Council,http://opendatacommunities.org/id/metropolitan-district-council/walsall,WC106-684,13/06/2021,Economy & Environment,BLOXWICH COMMUNITY PARTNERSHIP.,24/07/2019,"1,275.00",63253-PAYMENT TO CONTRACTOR,CHILDREN 5-19 HEALTH,Third Party Payments,Revenue
Walsall Council,http://opendatacommunities.org/id/metropolitan-district-council/walsall,WC106-685,14/06/2021,Resources and Transformation,BLOXWICH COMMUNITY PARTNERSHIP.,15/07/2019,"5,250.00",66500-GRANTS TO OTHER ORGS,BLOXWICH COMMUNITY PARTNERSHIP,Third Party Payments,Revenue
Walsall Council,http://opendatacommunities.org/id/metropolitan-district-council/walsall,WC106-686,15/06/2021,Childrens,BLUE COAT CHURCH OF ENGLAND ACADEMY,04/07/2019,500.00,77300-ISB-FORMULA ALLOCATION,BLUE COAT CofE ACADEMY,Transfer Payments,Revenue
Walsall Council,http://opendatacommunities.org/id/metropolitan-district-council/walsall,WC106-687,16/06/2021,Childrens,BLUEBELLS #1,26/07/2019,13.20,63000-PROFESSIONAL FEES AND SERVICES,BLUEBELLS,Supplies & Services,Revenue
Walsall Council,http://opendatacommunities.org/id/metropolitan-district-council/walsall,WC106-688,17/06/2021,Childrens,BLUEBELLS #1,26/07/2019,74.19,60000-FURNITURE & EQUIPMENT,BLUEBELLS,Supplies & Services,Revenue
Walsall Council,http://opendatacommunities.org/id/metropolitan-district-council/walsall,WC106-689,18/06/2021,Childrens,BLUEBELLS #1,26/07/2019,93.33,40000-OPERATIONAL MAINTENANCE,BLUEBELLS,Premises,Revenue
Walsall Council,http://opendatacommunities.org/id/metropolitan-district-council/walsall,WC106-690,19/06/2021,Childrens,BLUEBELLS #1,26/07/2019,160.53,76400-RESIDENTS PERSONAL EXPENSES-ALLOWANCES TO S/S CLIENTS,BLUEBELLS,Transfer Payments,Revenue
Walsall Council,http://opendatacommunities.org/id/metropolitan-district-council/walsall,WC106-691,20/06/2021,Childrens,BLUEBELLS #1,26/07/2019,179.83,61000-FOOD & DRINK SUPPLIES,BLUEBELLS,Supplies & Services,Revenue
Walsall Council,http://opendatacommunities.org/id/metropolitan-district-council/walsall,WC106-692,21/06/2021,Economy & Environment,BME UNITED LTD,05/07/2019,852.60,63253-PAYMENT TO CONTRACTOR,SMOKING CESSATION,Third Party Payments,Revenue
Walsall Council,http://opendatacommunities.org/id/metropolitan-district-council/walsall,WC106-693,22/06/2021,Economy & Environment,BME UNITED LTD,05/07/2019,"11,495.40",63253-PAYMENT TO CONTRACTOR,SMOKING CESSATION,Third Party Payments,Revenue
Walsall Council,http://opendatacommunities.org/id/metropolitan-district-council/walsall,WC106-694,23/06/2021,Economy & Environment,BME UNITED LTD,02/07/2019,"12,500.00",63253-PAYMENT TO CONTRACTOR,SMOKING CESSATION,Third Party Payments,Revenue
Walsall Council,http://opendatacommunities.org/id/metropolitan-district-council/walsall,WC106-695,24/06/2021,Economy & Environment,BME UNITED LTD,09/07/2019,"15,895.60",63253-PAYMENT TO CONTRACTOR,SMOKING CESSATION,Third Party Payments,Revenue
Walsall Council,http://opendatacommunities.org/id/metropolitan-district-council/walsall,WC106-696,25/06/2021,Childrens,REDACTED,08/07/2019,"1,468.80",73506-DIRECT PAYMENT,FAMILY SUPPORT - DIRECT PAYMENTS,Third Party Payments,Revenue
Walsall Council,http://opendatacommunities.org/id/metropolitan-district-council/walsall,WC106-697,26/06/2021,Childrens,REDACTED,30/07/2019,"1,468.80",73506-DIRECT PAYMENT,FAMILY SUPPORT - DIRECT PAYMENTS,Third Party Payments,Revenue
Walsall Council,http://opendatacommunities.org/id/metropolitan-district-council/walsall,WC106-698,27/06/2021,Economy & Environment,BOLINDA UK LTD,01/07/2019,"4,999.02",60501-LIBRARY BOOKS,LIBRARY MANAGEMENT,Supplies & Services,Revenue
Walsall Council,http://opendatacommunities.org/id/metropolitan-district-council/walsall,WC106-699,28/06/2021,Resources and Transformation,BORSHCH LTD,03/07/2019,237.49,60000-FURNITURE & EQUIPMENT,WALSALL CRISIS SUPPORT SCHEME,Supplies & Services,Revenue
Walsall Council,http://opendatacommunities.org/id/metropolitan-district-council/walsall,WC106-700,29/06/2021,Resources and Transformation,BORSHCH LTD,09/07/2019,237.49,60000-FURNITURE & EQUIPMENT,WALSALL CRISIS SUPPORT SCHEME,Supplies & Services,Revenue
Walsall Council,http://opendatacommunities.org/id/metropolitan-district-council/walsall,WC106-701,30/06/2021,Resources and Transformation,BORSHCH LTD,18/07/2019,237.49,60000-FURNITURE & EQUIPMENT,WALSALL CRISIS SUPPORT SCHEME,Supplies & Services,Revenue
Walsall Council,http://opendatacommunities.org/id/metropolitan-district-council/walsall,WC106-702,01/07/2021,Resources and Transformation,BORSHCH LTD,24/07/2019,237.49,60000-FURNITURE & EQUIPMENT,WALSALL CRISIS SUPPORT SCHEME,Supplies & Services,Revenue
Walsall Council,http://opendatacommunities.org/id/metropolitan-district-council/walsall,WC106-703,02/07/2021,Resources and Transformation,BORSHCH LTD,03/07/2019,287.50,60000-FURNITURE & EQUIPMENT,WALSALL CRISIS SUPPORT SCHEME,Supplies & Services,Revenue
Walsall Council,http://opendatacommunities.org/id/metropolitan-district-council/walsall,WC106-704,03/07/2021,Resources and Transformation,BORSHCH LTD,03/07/2019,287.50,60000-FURNITURE & EQUIPMENT,WALSALL CRISIS SUPPORT SCHEME,Supplies & Services,Revenue
Walsall Council,http://opendatacommunities.org/id/metropolitan-district-council/walsall,WC106-705,04/07/2021,Resources and Transformation,BORSHCH LTD,01/07/2019,291.66,60000-FURNITURE & EQUIPMENT,WALSALL CRISIS SUPPORT SCHEME,Supplies & Services,Revenue
Walsall Council,http://opendatacommunities.org/id/metropolitan-district-council/walsall,WC106-706,05/07/2021,Resources and Transformation,BORSHCH LTD,01/07/2019,291.66,60000-FURNITURE & EQUIPMENT,WALSALL CRISIS SUPPORT SCHEME,Supplies & Services,Revenue
Walsall Council,http://opendatacommunities.org/id/metropolitan-district-council/walsall,WC106-707,06/07/2021,Resources and Transformation,BORSHCH LTD,01/07/2019,291.66,60000-FURNITURE & EQUIPMENT,WALSALL CRISIS SUPPORT SCHEME,Supplies & Services,Revenue
Walsall Council,http://opendatacommunities.org/id/metropolitan-district-council/walsall,WC106-708,07/07/2021,Resources and Transformation,BORSHCH LTD,03/07/2019,291.66,60000-FURNITURE & EQUIPMENT,WALSALL CRISIS SUPPORT SCHEME,Supplies & Services,Revenue
Walsall Council,http://opendatacommunities.org/id/metropolitan-district-council/walsall,WC106-709,08/07/2021,Resources and Transformation,BORSHCH LTD,03/07/2019,291.66,60000-FURNITURE & EQUIPMENT,WALSALL CRISIS SUPPORT SCHEME,Supplies & Services,Revenue
Walsall Council,http://opendatacommunities.org/id/metropolitan-district-council/walsall,WC106-710,09/07/2021,Resources and Transformation,BORSHCH LTD,09/07/2019,291.66,60000-FURNITURE & EQUIPMENT,WALSALL CRISIS SUPPORT SCHEME,Supplies & Services,Revenue
Walsall Council,http://opendatacommunities.org/id/metropolitan-district-council/walsall,WC106-711,10/07/2021,Resources and Transformation,BORSHCH LTD,17/07/2019,291.66,60000-FURNITURE & EQUIPMENT,WALSALL CRISIS SUPPORT SCHEME,Supplies & Services,Revenue
Walsall Council,http://opendatacommunities.org/id/metropolitan-district-council/walsall,WC106-712,11/07/2021,Resources and Transformation,BORSHCH LTD,29/07/2019,291.66,60000-FURNITURE & EQUIPMENT,WALSALL CRISIS SUPPORT SCHEME,Supplies & Services,Revenue
Walsall Council,http://opendatacommunities.org/id/metropolitan-district-council/walsall,WC106-713,12/07/2021,Resources and Transformation,BORSHCH LTD,09/07/2019,295.83,60000-FURNITURE & EQUIPMENT,WALSALL CRISIS SUPPORT SCHEME,Supplies & Services,Revenue
Walsall Council,http://opendatacommunities.org/id/metropolitan-district-council/walsall,WC106-714,13/07/2021,Resources and Transformation,BORSHCH LTD,24/07/2019,300.00,60000-FURNITURE & EQUIPMENT,WALSALL CRISIS SUPPORT SCHEME,Supplies & Services,Revenue
Walsall Council,http://opendatacommunities.org/id/metropolitan-district-council/walsall,WC106-715,14/07/2021,Resources and Transformation,BORSHCH LTD,09/07/2019,354.16,60000-FURNITURE & EQUIPMENT,WALSALL CRISIS SUPPORT SCHEME,Supplies & Services,Revenue
Walsall Council,http://opendatacommunities.org/id/metropolitan-district-council/walsall,WC106-716,15/07/2021,Resources and Transformation,BORSHCH LTD,09/07/2019,370.83,60000-FURNITURE & EQUIPMENT,WALSALL CRISIS SUPPORT SCHEME,Supplies & Services,Revenue
Walsall Council,http://opendatacommunities.org/id/metropolitan-district-council/walsall,WC106-717,16/07/2021,Resources and Transformation,BORSHCH LTD,03/07/2019,425.00,60000-FURNITURE & EQUIPMENT,WALSALL CRISIS SUPPORT SCHEME,Supplies & Services,Revenue
Walsall Council,http://opendatacommunities.org/id/metropolitan-district-council/walsall,WC106-718,17/07/2021,Resources and Transformation,BORSHCH LTD,09/07/2019,425.00,60000-FURNITURE & EQUIPMENT,WALSALL CRISIS SUPPORT SCHEME,Supplies & Services,Revenue
Walsall Council,http://opendatacommunities.org/id/metropolitan-district-council/walsall,WC106-719,18/07/2021,Resources and Transformation,BORSHCH LTD,09/07/2019,425.00,60000-FURNITURE & EQUIPMENT,WALSALL CRISIS SUPPORT SCHEME,Supplies & Services,Revenue
Walsall Council,http://opendatacommunities.org/id/metropolitan-district-council/walsall,WC106-720,19/07/2021,Resources and Transformation,BORSHCH LTD,18/07/2019,425.00,60000-FURNITURE & EQUIPMENT,WALSALL CRISIS SUPPORT SCHEME,Supplies & Services,Revenue
Walsall Council,http://opendatacommunities.org/id/metropolitan-district-council/walsall,WC106-721,20/07/2021,Resources and Transformation,BORSHCH LTD,18/07/2019,425.00,60000-FURNITURE & EQUIPMENT,WALSALL CRISIS SUPPORT SCHEME,Supplies & Services,Revenue
Walsall Council,http://opendatacommunities.org/id/metropolitan-district-council/walsall,WC106-722,21/07/2021,Resources and Transformation,BORSHCH LTD,24/07/2019,425.00,60000-FURNITURE & EQUIPMENT,WALSALL CRISIS SUPPORT SCHEME,Supplies & Services,Revenue
Walsall Council,http://opendatacommunities.org/id/metropolitan-district-council/walsall,WC106-723,22/07/2021,Resources and Transformation,BORSHCH LTD,24/07/2019,425.00,60000-FURNITURE & EQUIPMENT,WALSALL CRISIS SUPPORT SCHEME,Supplies & Services,Revenue
Walsall Council,http://opendatacommunities.org/id/metropolitan-district-council/walsall,WC106-724,23/07/2021,Resources and Transformation,BORSHCH LTD,09/07/2019,429.17,60000-FURNITURE & EQUIPMENT,WALSALL CRISIS SUPPORT SCHEME,Supplies & Services,Revenue
Walsall Council,http://opendatacommunities.org/id/metropolitan-district-council/walsall,WC106-725,24/07/2021,Resources and Transformation,BORSHCH LTD,09/07/2019,429.17,60000-FURNITURE & EQUIPMENT,WALSALL CRISIS SUPPORT SCHEME,Supplies & Services,Revenue
Walsall Council,http://opendatacommunities.org/id/metropolitan-district-council/walsall,WC106-726,25/07/2021,Resources and Transformation,BORSHCH LTD,01/07/2019,433.33,60000-FURNITURE & EQUIPMENT,WALSALL CRISIS SUPPORT SCHEME,Supplies & Services,Revenue
Walsall Council,http://opendatacommunities.org/id/metropolitan-district-council/walsall,WC106-727,26/07/2021,Resources and Transformation,BORSHCH LTD,01/07/2019,433.33,60000-FURNITURE & EQUIPMENT,WALSALL CRISIS SUPPORT SCHEME,Supplies & Services,Revenue
Walsall Council,http://opendatacommunities.org/id/metropolitan-district-council/walsall,WC106-728,27/07/2021,Resources and Transformation,BORSHCH LTD,01/07/2019,433.33,60000-FURNITURE & EQUIPMENT,WALSALL CRISIS SUPPORT SCHEME,Supplies & Services,Revenue
Walsall Council,http://opendatacommunities.org/id/metropolitan-district-council/walsall,WC106-729,28/07/2021,Resources and Transformation,BORSHCH LTD,11/07/2019,433.33,60000-FURNITURE & EQUIPMENT,WALSALL CRISIS SUPPORT SCHEME,Supplies & Services,Revenue
Walsall Council,http://opendatacommunities.org/id/metropolitan-district-council/walsall,WC106-730,29/07/2021,Resources and Transformation,BORSHCH LTD,22/07/2019,433.33,60000-FURNITURE & EQUIPMENT,WALSALL CRISIS SUPPORT SCHEME,Supplies & Services,Revenue
Walsall Council,http://opendatacommunities.org/id/metropolitan-district-council/walsall,WC106-731,30/07/2021,Resources and Transformation,BORSHCH LTD,24/07/2019,433.33,60000-FURNITURE & EQUIPMENT,WALSALL CRISIS SUPPORT SCHEME,Supplies & Services,Revenue
Walsall Council,http://opendatacommunities.org/id/metropolitan-district-council/walsall,WC106-732,31/07/2021,Resources and Transformation,BORSHCH LTD,26/07/2019,433.33,60000-FURNITURE & EQUIPMENT,WALSALL CRISIS SUPPORT SCHEME,Supplies & Services,Revenue
Walsall Council,http://opendatacommunities.org/id/metropolitan-district-council/walsall,WC106-733,01/08/2021,Resources and Transformation,BORSHCH LTD,11/07/2019,437.50,60000-FURNITURE & EQUIPMENT,WALSALL CRISIS SUPPORT SCHEME,Supplies & Services,Revenue
Walsall Council,http://opendatacommunities.org/id/metropolitan-district-council/walsall,WC106-734,02/08/2021,Resources and Transformation,BORSHCH LTD,11/07/2019,437.50,60000-FURNITURE & EQUIPMENT,WALSALL CRISIS SUPPORT SCHEME,Supplies & Services,Revenue
Walsall Council,http://opendatacommunities.org/id/metropolitan-district-council/walsall,WC106-735,03/08/2021,Resources and Transformation,BORSHCH LTD,11/07/2019,437.50,60000-FURNITURE & EQUIPMENT,WALSALL CRISIS SUPPORT SCHEME,Supplies & Services,Revenue
Walsall Council,http://opendatacommunities.org/id/metropolitan-district-council/walsall,WC106-736,04/08/2021,Resources and Transformation,BORSHCH LTD,18/07/2019,437.50,60000-FURNITURE & EQUIPMENT,WALSALL CRISIS SUPPORT SCHEME,Supplies & Services,Revenue
Walsall Council,http://opendatacommunities.org/id/metropolitan-district-council/walsall,WC106-737,05/08/2021,Resources and Transformation,BORSHCH LTD,24/07/2019,437.50,60000-FURNITURE & EQUIPMENT,WALSALL CRISIS SUPPORT SCHEME,Supplies & Services,Revenue
Walsall Council,http://opendatacommunities.org/id/metropolitan-district-council/walsall,WC106-738,06/08/2021,Resources and Transformation,BORSHCH LTD,24/07/2019,437.50,60000-FURNITURE & EQUIPMENT,WALSALL CRISIS SUPPORT SCHEME,Supplies & Services,Revenue
Walsall Council,http://opendatacommunities.org/id/metropolitan-district-council/walsall,WC106-739,07/08/2021,Resources and Transformation,BORSHCH LTD,24/07/2019,441.65,60000-FURNITURE & EQUIPMENT,WALSALL CRISIS SUPPORT SCHEME,Supplies & Services,Revenue
Walsall Council,http://opendatacommunities.org/id/metropolitan-district-council/walsall,WC106-740,08/08/2021,Resources and Transformation,BORSHCH LTD,09/07/2019,491.66,60000-FURNITURE & EQUIPMENT,WALSALL CRISIS SUPPORT SCHEME,Supplies & Services,Revenue
Walsall Council,http://opendatacommunities.org/id/metropolitan-district-council/walsall,WC106-741,09/08/2021,Adult Social Care,BOWDEN DERRA PARK,22/07/2019,"11,151.52",73500-RESIDENTIAL,LEARNING DISABILITY SUPPORT,Third Party Payments,Revenue
Walsall Council,http://opendatacommunities.org/id/metropolitan-district-council/walsall,WC106-742,10/08/2021,Economy & Environment,BPH DATA LTD,18/07/2019,700.00,64500-PUBLICATIONS/ORGANISATIONS-SUBSCRIPTIONS,LIBRARY MANAGEMENT,Supplies & Services,Revenue
Walsall Council,http://opendatacommunities.org/id/metropolitan-district-council/walsall,WC106-743,11/08/2021,Economy & Environment,BRADVALE LTD T/A INSPIRE HEALTHCARE SERVICES,11/07/2019,376.08,60500-GENERAL MATERIALS,ARBORETUM VISITOR CENTRE,Supplies & Services,Revenue
Walsall Council,http://opendatacommunities.org/id/metropolitan-district-council/walsall,WC106-744,12/08/2021,Economy & Environment,BRADVALE LTD T/A INSPIRE HEALTHCARE SERVICES,11/07/2019,471.04,60500-GENERAL MATERIALS,ARBORETUM VISITOR CENTRE,Supplies & Services,Revenue
Walsall Council,http://opendatacommunities.org/id/metropolitan-district-council/walsall,WC106-745,13/08/2021,Economy & Environment,BRADVALE LTD T/A INSPIRE HEALTHCARE SERVICES,11/07/2019,622.31,60500-GENERAL MATERIALS,ARBORETUM VISITOR CENTRE,Supplies & Services,Revenue
Walsall Council,http://opendatacommunities.org/id/metropolitan-district-council/walsall,WC106-746,14/08/2021,Economy & Environment,BRADVALE LTD T/A INSPIRE HEALTHCARE SERVICES,11/07/2019,622.31,60500-GENERAL MATERIALS,ARBORETUM VISITOR CENTRE,Supplies & Services,Revenue
Walsall Council,http://opendatacommunities.org/id/metropolitan-district-council/walsall,WC106-747,15/08/2021,Economy & Environment,BRADVALE LTD T/A INSPIRE HEALTHCARE SERVICES,11/07/2019,642.79,60500-GENERAL MATERIALS,ARBORETUM VISITOR CENTRE,Supplies & Services,Revenue
Walsall Council,http://opendatacommunities.org/id/metropolitan-district-council/walsall,WC106-748,16/08/2021,Economy & Environment,BRADVALE LTD T/A INSPIRE HEALTHCARE SERVICES,11/07/2019,642.79,60500-GENERAL MATERIALS,ARBORETUM VISITOR CENTRE,Supplies & Services,Revenue
Walsall Council,http://opendatacommunities.org/id/metropolitan-district-council/walsall,WC106-749,17/08/2021,Economy & Environment,BRADVALE LTD T/A INSPIRE HEALTHCARE SERVICES,04/07/2019,657.86,63000-PROFESSIONAL FEES AND SERVICES,LIBRARY OPERATIONS CENTRAL,Supplies & Services,Revenue
Walsall Council,http://opendatacommunities.org/id/metropolitan-district-council/walsall,WC106-750,18/08/2021,Economy & Environment,BRADVALE LTD T/A INSPIRE HEALTHCARE SERVICES,24/07/2019,926.53,60008-REPAIR & MAINTENANCE OF FURNITURE & EQUIPMENT,BLOXWICH LEISURE CENTRE,Supplies & Services,Revenue
Walsall Council,http://opendatacommunities.org/id/metropolitan-district-council/walsall,WC106-751,19/08/2021,Resources and Transformation,BRAMBLE HUB LIMITED,24/07/2019,"57,382.04",63800-COMPUTER EQUIPMENT AND SUPPLIES,FINANCIAL SYSTEMS,Supplies & Services,Revenue
Walsall Council,http://opendatacommunities.org/id/metropolitan-district-council/walsall,WC106-752,20/08/2021,Resources and Transformation,BRELMAYNE LTD,01/07/2019,359.20,01060-UNALLOCATED / UNCOMMITTED CAPITAL EXPENDITURE,CFR 1190 SCHOOLS PROJECT,Capital,Capital
Walsall Council,http://opendatacommunities.org/id/metropolitan-district-council/walsall,WC106-753,21/08/2021,Childrens,BRELMAYNE LTD,01/07/2019,"2,260.00",01006-SITE WORKS MAIN CONTRACTORS,CFR 1348 HOLY TRINITY SAFEGUARDING,Capital,Capital
Walsall Council,http://opendatacommunities.org/id/metropolitan-district-council/walsall,WC106-754,22/08/2021,Adult Social Care,REDACTED,10/07/2019,440.00,73506-DIRECT PAYMENT,LEARNING DISABILITY SUPPORT,Third Party Payments,Revenue
Walsall Council,http://opendatacommunities.org/id/metropolitan-district-council/walsall,WC106-755,23/08/2021,Childrens,REDACTED,12/07/2019,720.00,74501-MAINTENANCE ALLOWANCE-FOSTER CARERS,INTERNAL FOSTER CARE PROVISION,Transfer Payments,Revenue
Walsall Council,http://opendatacommunities.org/id/metropolitan-district-council/walsall,WC106-756,24/08/2021,Childrens,REDACTED,12/07/2019,720.00,74501-MAINTENANCE ALLOWANCE-FOSTER CARERS,INTERNAL FOSTER CARE PROVISION,Transfer Payments,Revenue
Walsall Council,http://opendatacommunities.org/id/metropolitan-district-council/walsall,WC106-757,25/08/2021,Childrens,REDACTED,12/07/2019,"1,600.00",74508-INTERNAL FOSTER CARERS-CARER FEES,INTERNAL FOSTER CARE PROVISION,Transfer Payments,Revenue
Walsall Council,http://opendatacommunities.org/id/metropolitan-district-council/walsall,WC106-758,26/08/2021,Economy & Environment,BRENNTAG UK LIMITED,04/07/2019,413.89,60503-CHEMICALS & SCIENTIFIC MATS-MATERIALS,OAK PARK,Supplies & Services,Revenue
Walsall Council,http://opendatacommunities.org/id/metropolitan-district-council/walsall,WC106-759,27/08/2021,Adult Social Care,REDACTED,08/07/2019,"1,337.64",73510-SHARED LIVES,LEARNING DISABILITY SUPPORT,Third Party Payments,Revenue
Walsall Council,http://opendatacommunities.org/id/metropolitan-district-council/walsall,WC106-760,28/08/2021,Adult Social Care,REDACTED,08/07/2019,"1,689.80",73510-SHARED LIVES,LEARNING DISABILITY SUPPORT,Third Party Payments,Revenue
Walsall Council,http://opendatacommunities.org/id/metropolitan-district-council/walsall,WC106-761,29/08/2021,Adult Social Care,REDACTED,10/07/2019,"1,806.56",73506-DIRECT PAYMENT,PHYSICAL SUPPORT,Third Party Payments,Revenue
Walsall Council,http://opendatacommunities.org/id/metropolitan-district-council/walsall,WC106-762,30/08/2021,Adult Social Care,REDACTED,10/07/2019,836.40,73506-DIRECT PAYMENT,PHYSICAL SUPPORT,Third Party Payments,Revenue
Walsall Council,http://opendatacommunities.org/id/metropolitan-district-council/walsall,WC106-763,31/08/2021,Economy & Environment,BRIAR ASSOCIATES,01/07/2019,250.00,63000-PROFESSIONAL FEES AND SERVICES,ASSET MANAGEMENT,Supplies & Services,Revenue
Walsall Council,http://opendatacommunities.org/id/metropolitan-district-council/walsall,WC106-764,01/09/2021,Adult Social Care,BRIDGEWOOD HEALTH CARE LTD,22/07/2019,"5,854.28",73500-RESIDENTIAL,SENSORY SUPPORT,Third Party Payments,Revenue
Walsall Council,http://opendatacommunities.org/id/metropolitan-district-council/walsall,WC106-765,02/09/2021,Resources and Transformation,BRISTOW & SUTOR,18/07/2019,-281.53,73014-LEGAL FEES-PRIV CONTRACTOR FEES,REVENUES,Third Party Payments,Revenue
Walsall Council,http://opendatacommunities.org/id/metropolitan-district-council/walsall,WC106-766,03/09/2021,Resources and Transformation,BRISTOW & SUTOR,08/07/2019,271.48,73014-LEGAL FEES-PRIV CONTRACTOR FEES,REVENUES,Third Party Payments,Revenue
Walsall Council,http://opendatacommunities.org/id/metropolitan-district-council/walsall,WC106-767,04/09/2021,Resources and Transformation,BRISTOW & SUTOR,08/07/2019,310.00,73014-LEGAL FEES-PRIV CONTRACTOR FEES,REVENUES,Third Party Payments,Revenue
Walsall Council,http://opendatacommunities.org/id/metropolitan-district-council/walsall,WC106-768,05/09/2021,Resources and Transformation,BRISTOW & SUTOR,08/07/2019,743.07,73014-LEGAL FEES-PRIV CONTRACTOR FEES,REVENUES,Third Party Payments,Revenue
Walsall Council,http://opendatacommunities.org/id/metropolitan-district-council/walsall,WC106-769,06/09/2021,Resources and Transformation,BRISTOW & SUTOR,08/07/2019,"1,170.40",73014-LEGAL FEES-PRIV CONTRACTOR FEES,REVENUES,Third Party Payments,Revenue
Walsall Council,http://opendatacommunities.org/id/metropolitan-district-council/walsall,WC106-770,07/09/2021,Resources and Transformation,BRITANNIA HOTELS LTD T/A BRITANNIA HOTEL WOLVERHAMPTON,22/07/2019,226.48,75501-BED & BREAKFAST PAYMENTS,BED & BREAKFAST PAYMENTS,Third Party Payments,Revenue
Walsall Council,http://opendatacommunities.org/id/metropolitan-district-council/walsall,WC106-771,08/09/2021,Resources and Transformation,BRITANNIA HOTELS LTD T/A BRITANNIA HOTEL WOLVERHAMPTON,24/07/2019,238.00,75501-BED & BREAKFAST PAYMENTS,BED & BREAKFAST PAYMENTS,Third Party Payments,Revenue
Walsall Council,http://opendatacommunities.org/id/metropolitan-district-council/walsall,WC106-772,09/09/2021,Resources and Transformation,BRITANNIA HOTELS LTD T/A BRITANNIA HOTEL WOLVERHAMPTON,15/07/2019,240.83,75501-BED & BREAKFAST PAYMENTS,BED & BREAKFAST PAYMENTS,Third Party Payments,Revenue
Walsall Council,http://opendatacommunities.org/id/metropolitan-district-council/walsall,WC106-773,10/09/2021,Resources and Transformation,BRITANNIA HOTELS LTD T/A BRITANNIA HOTEL WOLVERHAMPTON,22/07/2019,248.75,75501-BED & BREAKFAST PAYMENTS,BED & BREAKFAST PAYMENTS,Third Party Payments,Revenue
Walsall Council,http://opendatacommunities.org/id/metropolitan-district-council/walsall,WC106-774,11/09/2021,Resources and Transformation,BRITANNIA HOTELS LTD T/A BRITANNIA HOTEL WOLVERHAMPTON,15/07/2019,265.25,75501-BED & BREAKFAST PAYMENTS,BED & BREAKFAST PAYMENTS,Third Party Payments,Revenue
Walsall Council,http://opendatacommunities.org/id/metropolitan-district-council/walsall,WC106-775,12/09/2021,Resources and Transformation,BRITANNIA HOTELS LTD T/A BRITANNIA HOTEL WOLVERHAMPTON,22/07/2019,277.47,75501-BED & BREAKFAST PAYMENTS,BED & BREAKFAST PAYMENTS,Third Party Payments,Revenue
Walsall Council,http://opendatacommunities.org/id/metropolitan-district-council/walsall,WC106-776,13/09/2021,Resources and Transformation,BRITANNIA HOTELS LTD T/A BRITANNIA HOTEL WOLVERHAMPTON,22/07/2019,284.00,75501-BED & BREAKFAST PAYMENTS,BED & BREAKFAST PAYMENTS,Third Party Payments,Revenue
Walsall Council,http://opendatacommunities.org/id/metropolitan-district-council/walsall,WC106-777,14/09/2021,Resources and Transformation,BRITANNIA HOTELS LTD T/A BRITANNIA HOTEL WOLVERHAMPTON,22/07/2019,284.22,75501-BED & BREAKFAST PAYMENTS,BED & BREAKFAST PAYMENTS,Third Party Payments,Revenue
Walsall Council,http://opendatacommunities.org/id/metropolitan-district-council/walsall,WC106-778,15/09/2021,Resources and Transformation,BRITANNIA HOTELS LTD T/A BRITANNIA HOTEL WOLVERHAMPTON,24/07/2019,302.75,75501-BED & BREAKFAST PAYMENTS,BED & BREAKFAST PAYMENTS,Third Party Payments,Revenue
Walsall Council,http://opendatacommunities.org/id/metropolitan-district-council/walsall,WC106-779,16/09/2021,Resources and Transformation,BRITANNIA HOTELS LTD T/A BRITANNIA HOTEL WOLVERHAMPTON,23/07/2019,304.25,75501-BED & BREAKFAST PAYMENTS,BED & BREAKFAST PAYMENTS,Third Party Payments,Revenue
Walsall Council,http://opendatacommunities.org/id/metropolitan-district-council/walsall,WC106-780,17/09/2021,Resources and Transformation,BRITANNIA HOTELS LTD T/A BRITANNIA HOTEL WOLVERHAMPTON,26/07/2019,313.25,75501-BED & BREAKFAST PAYMENTS,BED & BREAKFAST PAYMENTS,Third Party Payments,Revenue
Walsall Council,http://opendatacommunities.org/id/metropolitan-district-council/walsall,WC106-781,18/09/2021,Resources and Transformation,BRITANNIA HOTELS LTD T/A BRITANNIA HOTEL WOLVERHAMPTON,18/07/2019,319.00,75501-BED & BREAKFAST PAYMENTS,BED & BREAKFAST PAYMENTS,Third Party Payments,Revenue
Walsall Council,http://opendatacommunities.org/id/metropolitan-district-council/walsall,WC106-782,19/09/2021,Resources and Transformation,BRITANNIA HOTELS LTD T/A BRITANNIA HOTEL WOLVERHAMPTON,29/07/2019,332.46,75501-BED & BREAKFAST PAYMENTS,BED & BREAKFAST PAYMENTS,Third Party Payments,Revenue
Walsall Council,http://opendatacommunities.org/id/metropolitan-district-council/walsall,WC106-783,20/09/2021,Resources and Transformation,BRITANNIA HOTELS LTD T/A BRITANNIA HOTEL WOLVERHAMPTON,29/07/2019,368.34,75501-BED & BREAKFAST PAYMENTS,BED & BREAKFAST PAYMENTS,Third Party Payments,Revenue
Walsall Council,http://opendatacommunities.org/id/metropolitan-district-council/walsall,WC106-784,21/09/2021,Resources and Transformation,BRITANNIA HOTELS LTD T/A BRITANNIA HOTEL WOLVERHAMPTON,05/07/2019,390.59,75501-BED & BREAKFAST PAYMENTS,BED & BREAKFAST PAYMENTS,Third Party Payments,Revenue
Walsall Council,http://opendatacommunities.org/id/metropolitan-district-council/walsall,WC106-785,22/09/2021,Resources and Transformation,BRITANNIA HOTELS LTD T/A BRITANNIA HOTEL WOLVERHAMPTON,22/07/2019,397.52,75501-BED & BREAKFAST PAYMENTS,BED & BREAKFAST PAYMENTS,Third Party Payments,Revenue
Walsall Council,http://opendatacommunities.org/id/metropolitan-district-council/walsall,WC106-786,23/09/2021,Resources and Transformation,BRITANNIA HOTELS LTD T/A BRITANNIA HOTEL WOLVERHAMPTON,15/07/2019,422.75,75501-BED & BREAKFAST PAYMENTS,BED & BREAKFAST PAYMENTS,Third Party Payments,Revenue
Walsall Council,http://opendatacommunities.org/id/metropolitan-district-council/walsall,WC106-787,24/09/2021,Resources and Transformation,BRITANNIA HOTELS LTD T/A BRITANNIA HOTEL WOLVERHAMPTON,18/07/2019,443.75,75501-BED & BREAKFAST PAYMENTS,BED & BREAKFAST PAYMENTS,Third Party Payments,Revenue
Walsall Council,http://opendatacommunities.org/id/metropolitan-district-council/walsall,WC106-788,25/09/2021,Resources and Transformation,BRITANNIA HOTELS LTD T/A BRITANNIA HOTEL WOLVERHAMPTON,22/07/2019,462.50,75501-BED & BREAKFAST PAYMENTS,BED & BREAKFAST PAYMENTS,Third Party Payments,Revenue
Walsall Council,http://opendatacommunities.org/id/metropolitan-district-council/walsall,WC106-789,26/09/2021,Resources and Transformation,BRITANNIA HOTELS LTD T/A BRITANNIA HOTEL WOLVERHAMPTON,26/07/2019,464.00,75501-BED & BREAKFAST PAYMENTS,BED & BREAKFAST PAYMENTS,Third Party Payments,Revenue
Walsall Council,http://opendatacommunities.org/id/metropolitan-district-council/walsall,WC106-790,27/09/2021,Resources and Transformation,BRITANNIA HOTELS LTD T/A BRITANNIA HOTEL WOLVERHAMPTON,22/07/2019,578.50,75501-BED & BREAKFAST PAYMENTS,BED & BREAKFAST PAYMENTS,Third Party Payments,Revenue
Walsall Council,http://opendatacommunities.org/id/metropolitan-district-council/walsall,WC106-791,28/09/2021,Resources and Transformation,BRITANNIA HOTELS LTD T/A BRITANNIA HOTEL WOLVERHAMPTON,05/07/2019,613.25,75501-BED & BREAKFAST PAYMENTS,BED & BREAKFAST PAYMENTS,Third Party Payments,Revenue
Walsall Council,http://opendatacommunities.org/id/metropolitan-district-council/walsall,WC106-792,29/09/2021,Resources and Transformation,BRITISH TELECOMMUNICATIONS LTD,23/07/2019,808.25,63603-COST OF CALLS-TELEPHONES,PROCESSING,Supplies & Services,Revenue
Walsall Council,http://opendatacommunities.org/id/metropolitan-district-council/walsall,WC106-793,30/09/2021,Economy & Environment,BRITISH TELECOMMUNICATIONS LTD,29/07/2019,"1,522.92",01002-PROJECT FEES,CFR 1280 JUNCTION AND CYCLING IMPROVEMENTS - RING ROAD IMPROVEMENTS Dft FUNDED,Capital,Capital
Walsall Council,http://opendatacommunities.org/id/metropolitan-district-council/walsall,WC106-794,01/10/2021,Adult Social Care,BROADWAY HALLS CARE HOME,22/07/2019,"1,972.24",73501-RESIDENTIAL EMI,MENTAL HEALTH SUPPORT,Third Party Payments,Revenue
Walsall Council,http://opendatacommunities.org/id/metropolitan-district-council/walsall,WC106-795,02/10/2021,Centrally Held,BROWNE JACOBSON SOLICITORS,08/07/2019,822.50,73014-LEGAL FEES-PRIV CONTRACTOR FEES,CORPORATE EXPENSES,Third Party Payments,Revenue
Walsall Council,http://opendatacommunities.org/id/metropolitan-district-council/walsall,WC106-796,03/10/2021,Holding Accounts,BROWNE JACOBSON SOLICITORS,08/07/2019,"1,362.50",67001-MISC INSURANCES - PAYMENT OF CLAIMS,PUBLIC LIABILITY,Supplies & Services,Revenue
Walsall Council,http://opendatacommunities.org/id/metropolitan-district-council/walsall,WC106-797,04/10/2021,Holding Accounts,BROWNE JACOBSON SOLICITORS,03/07/2019,"4,480.50",67001-MISC INSURANCES - PAYMENT OF CLAIMS,PUBLIC LIABILITY,Supplies & Services,Revenue
